Workbook

Sheet Instructions
A1: Project Name: | C1: Reclaim Model - Overview of Program
B2: DORIS | C2: All users are urged to read the Reclaim Model User Manual - Scroll down for overview description of program.
C3: Important! Reclaim 7.0 works better with no other excel files open.
C4: If other excel files are open ignore run time error and proceed
A5: Reclaim Menu | C5: The default Excel menu bar has an additional tab labelled "Add-Ins" that provides options specific to the Reclaim Model.
B6: Clear | C6: This option deletes all input data, deletes any duplicated elements and blanks out the project name. It also allows for segregation into land costs vs water costs if required.
B7: Duplicate | C7: This option Duplicates components of the project. E.g. if there is more than one Open Pit, use duplicate to add a second Open Pit. Quantities for the new Open Pit are erased, but the Activities and Cost Codes are carried over from the original Open Pit. The new Open Pit subtotal is added to the Summary page.
B8: Unit Costs | C8: This option opens a window of unit costs to provide easy reference. NOTE: the unit cost table has a filter in the 'UNITS' column. You can select to only see a particular unit (eg km) or multiple units (km and m3) or all units.
B9: Print All | C9: This option prints the Summary Worksheet, Unit Cost Worksheet, and the individual component worksheets having non-zero balances. Individual worksheets can be printed directly using standard printing methods, such as Ctl - P.
B10: Quit | C10: Select Quit to exit the program
B11: Help | C11: Redirects user to Instructions worksheet.
A13: WorkSheets
B14: Summary | C14: This worksheet contains a cumulative summary of costs for each component of the project. Associated costs such as engineering and project management are added as a percentage of the component costs.
B15: Components | C15: Costs are derived for individual closure and reclamation activities by multiplying a "quantity" of activity by a "unit cost". An activity can be edited, added, or deleted from worksheet. However, care should be taken not to modify cells that are defined and used elsewhere in the program.
C16: Do not change the content or column width of the first column of each component worksheet.
B17: Unit Costs | C17: This worksheet contains a look up table with costs for typical work associated with each closure and reclamation activity
A19: Limitations | C19: The Reclaim Program will NOT work if the worksheets are changed such that the following requirements are not met. Please review the following prior to modifiying worksheets.
B20: WorkSheet Names | C20: The names of the worksheets must not be changed.
B21: Defined Names | C21: Certain cells have defined names, which must not be changed. Where the cell is named, the name will appear in the "Name Box" to the left of the formula bar.
B22: First line of data | C22: The first line of data for any component worksheet starts on line 4. Do not change the first line of a component worksheet, ie the component name.
B23: Cell A1 | C23: Cell A1 on the component sheet MUST always contain the count of that component for the duplicate function to operate. DO NOT CHANGE.
B24: Adding Lines | C24: You can add lines to components and the unit cost table, as long as they are not the last lines. The last line might fall outside the named ranges. You can check the size of the named range by selecting the name from the drop down box at the top left of the sheet. Usually this box has a cell reference, or a name.
B25: Printing | C25: A component will only be printed if its sub-total is greater than zero. In addition, a component and the summary sheet cannot be printed if there is an error. Printing has been set to print 1 page per component.
A27: Conditions of Use | C27: The Reclamation Cost Estimating Model was prepared to serve as a guide for Government Agencies, mining companies, and others to estimate the cost of mine reclamation. This model is not intended to replace reclamation planning or to be used to determine the activities required to reclaim a site or to dictate how much should be spent on reclamation.
C29: Reclaim was prepared by Brodie Consulting Ltd. on behalf of AANDC. AANDC and Brodie Consulting Ltd. are not responsible for the completeness or accuracy of any reclamation estimate made using this model. The user agrees to check and take responsibility for all aspects of any cost estimate made using this model.
A31: The following table provides guidance as to whether water management and treatment is considered short term or long term. Short term closure activities
A32: may be costed within a component (eg 'Open Pit' or 'Rock Pile') or 'Water Management'. Long term or post-closure water treatment is costed in 'Water Treatment'.
D33: Short Term/ Capital Ex. | E33: Long term/ NPV
A34: Open Pit | C34: flood pit - install/operate pumping system | D34: x
C35: construct diversion ditches | D35: x
C36: treat 1st filling | D36: x
C37: install pump/decant system | D37: x
C38: passive/biological treatment | D38: x
C39: overflow treatment | E39: x
A40: Rock Pile/Heap Leach Facility | C40: construct diversion ditches | D40: x
C41: install groundwater collection system | D41: x
C42: install toe seepage collection system | D42: x
C43: collect and treat groundwater | E43: x
C44: collect and treat seepage (ARD/ML) | E44: x
C45: install passive treatment system | D45: x
C46: operate and maintain passive treatment system | E46: x
C47: operate pump and detoxify heap leach pile (cyanide destruction) | D47: x
A48: Tailings Facility | C48: construct diversion ditches | D48: x
C49: pump supernatant (to pit, U/G) | D49: x
C50: treat supernatant | D50: x
C51: install toe seepage collection system | D51: x
C52: collect and treat seepage (ARD/ML) | E52: x
C53: install passive treatment system | D53: x
C54: operate and maintain passive treatment system | E54: x
A55: U/G Mine | C55: accelerate flooding | D55: x
C56: install seepage collection system | D56: x
C57: install dewatering/pumping system | D57: x
C58: operate seepage/dewatering system (ARD/ML) | E58: x
A59: Water Management | C59: refill lakes
C60: redirect creeks/streams | D60: x
C61: stabilize water management ponds | D61: x
C62: stabilize/close sediment ponds | D62: x
C63: fresh water supply - breach embankment | D63: x
C64: fresh water supply - remove piping system | D64: x
C65: construct water treatment plant | D65: x
C66: construct sludge pond | D66: x
C67: water control in reclamation quarry | D67: x
C68: operate/maintain water treatment plant | E68: x

Sheet Summary
C1: DORIS NORTH PROJECT - 2015 RECLAMATION COST ESTIMATE (2016 UPDATE)
B3: DIRECT COSTS | C3: COMPONENT NAME | D3: PRINCIPLE ESTIMATE | E3: WATER LICENCE | F3: ROBERTS BAY JETTY | G3: MARINE OUTFALL
B5: OPEN PIT | C5: =IF(ISBLANK('Open Pit'!$C$1),"",'Open Pit'!$C$1) -> Roberts Bay Area / Airstrip | D5: =Pit1Total -> 457188.0501 | E5: =+D5-F5 -> 446478.6301 | F5: =SUM('Open Pit'!H61:H64) -> 10709.42
B6: UG MINE | C6: =IF(ISBLANK('UG Mine'!$C$1),"",'UG Mine'!$C$1) -> U/G Workings and Reagent Pads | D6: =UG1Total -> 248726.0121 | E6: =+D6 -> 248726.0121
B7: TAILINGS | C7: =IF(ISBLANK(Tailings!$C$1),"",Tailings!$C$1) -> North and South Dams / Interim Dyke | D7: =Tailings1Total -> 7312644.74 | E7: =+D7 -> 7312644.74
B8: ROCK PILE | C8: =IF(ISBLANK('Rock Pile'!$C$1),"",'Rock Pile'!$C$1) -> Doris Windy Road / Secondary Road | D8: =RP1Total -> 379285.1141 | E8: =+D8 -> 379285.1141
B9: DORIS CAMP | C9: =IF(ISBLANK('Bldgs & Equip'!$C$1),"",'Bldgs & Equip'!$C$1) -> Doris Camp | D9: =Bldg1Total -> 3876328.857 | E9: =+D9 -> 3876328.857
B10: CHEMICALS | C10: =IF(ISBLANK(Chemicals!$C$1),"",Chemicals!$C$1) -> Quarry #2 / Doris Mtn / Doris Waste Area / Ocean Discharge System . Off-Site Disposal | D10: =Chem1Total -> 632071.2071 | E10: =+D10-G10 -> 340231.1571 | G10: =Chemicals!M115+Chemicals!M109 -> 291840.05
B11: SURFACE AND GROUNDWATER MANAGEMENT | C11: =IF(ISBLANK('Water Treatment'!$C$1),"",'Water Treatment'!$C$1) ->  | D11: =Water1Total -> 1450000 | E11: =+D11 -> 1450000
B12: INTERIM CARE AND MAINTENANCE (18 months) | D12: =ICMTotal -> 2438175 | E12: =+D12 -> 2438175
C13: SUBTOTAL: Direct Costs | D13: =SUM(D5:D12) -> 16794418.98 | E13: 16491869.51 | F13: 10709.42 | G13: 291840.05
C14: PERCENT OF SUBTOTAL | E14: =E13/E13 -> 1
B16: INDIRECT COSTS | D16: PRINCIPLE ESTIMATE | E16: WATER LICENCE | F16: ROBERTS BAY JETTY | G16: MARINE OUTFALL
B17: MOBILIZATION/DEMOBILIZATION | C17: =IF(ISBLANK(Mobilization!$C$1),"",Mobilization!$C$1) ->  | D17: =MobTotal -> 7800688.4 | E17: =+D17-F17-G17 -> 7660159.922 | F17: =($F$13/$D$13)*D17 -> 4974.322033 | G17: =($G$13/$D$13)*D17 -> 135554.1561
B18: POST-CLOSURE MONITORING AND MAINTENANCE | C18: =IF(ISBLANK(PostClosure!$C$1),"",PostClosure!$C$1) ->  | D18: =PC1Total -> 1320000.002 | E18: =+D18-F18-G18 -> 1296220.358 | F18: 841.7340569 | G18: 22937.90973
B19: ENGINEERING | C19: 0.05 | D19: =C19*$D$13 -> 839720.949 | E19: 824593.4755 | F19: 535.471 | G19: 14592.0025
B20: PROJECT MANAGEMENT | C20: 0.05 | D20: 839720.949 | E20: 824593.4755 | F20: 535.471 | G20: 14592.0025
B21: HEALTH AND SAFETY PLANS/MONITORING & QA/QC | C21: 0.01 | D21: 167944.1898 | E21: 164918.6951 | F21: 107.0942 | G21: 2918.4005
B22: BONDING/INSURANCE | C22: 0.01 | D22: 167944.1898 | E22: 164918.6951 | F22: 107.0942 | G22: 2918.4005
B23: CONTINGENCY | C23: 0.2 | D23: 3358883.796 | E23: 3298373.902 | F23: 2141.884 | G23: 58368.01
B24: MARKET PRICE FACTOR ADJUSTMENT | C24: 0 | D24: 0 | E24: 0 | F24: 0 | G24: 0
C25: SUBTOTAL: Indirect Costs | D25: =SUM(D17:D24) -> 14494902.48 | E25: =SUM(E17:E24) -> 14233778.52 | F25: 9243.07049 | G25: 251880.8819
B27: TOTAL COSTS | D27: =D13+D25 -> 31289321.46 | E27: =E13+E25 -> 30725648.03 | F27: =F13+F25 -> 19952.49049 | G27: =+G25+G13 -> 543720.9319

Sheet Open Pit
A1: 1 | B1: Open Pit Name: | C1: Roberts Bay Area / Airstrip
B3: ACTIVITY/MATERIAL | C3: Notes | D3: Units | E3: Quantity | F3: Cost Code | G3: Unit Cost | H3: Cost | I3: % Land | J3: Land Cost | K3: Water Cost
B4: CONTROL ACCESS
B5: Fence | D5: m | F5: =NA() ->  | G5: =IF(ISNA(F5),0,INDEX(IF(UPPER(RIGHT(F5,1))=Low,UnitCostLow, IF(UPPER(RIGHT(F5,1))=High,UnitCostHigh,UnitCostSpecified)),MATCH(UPPER(LEFT(F5,LEN(F5)-1)),CostCode,0))) -> 0 | H5: =G5*E5 -> 0 | J5: =H5*I5 -> 0 | K5: =H5*(1-I5) -> 0
B6: Signs | D6: each | F6: =NA() ->  | G6: 0 | H6: =G6*E6 -> 0 | J6: =H6*I6 -> 0 | K6: =H6*(1-I6) -> 0
B7: Berm at crest | D7: m3 | F7: =NA() ->  | G7: 0 | H7: =G7*E7 -> 0 | J7: 0 | K7: 0
B8: Block roads | D8: m3 | F8: =NA() ->  | G8: 0 | H8: =G8*E8 -> 0 | J8: 0 | K8: 0
B9: Other | F9: =NA() ->  | G9: =IF(ISNA(F9),0,INDEX(IF(UPPER(RIGHT(F9,1))=Low,UnitCostLow, IF(UPPER(RIGHT(F9,1))=High,UnitCostHigh,UnitCostSpecified)),MATCH(UPPER(LEFT(F9,LEN(F9)-1)),CostCode,0))) -> 0 | H9: =G9*E9 -> 0 | J9: =H9*I9 -> 0 | K9: =H9*(1-I9) -> 0
B10: STABILITY STUDY
B11: Conduct stability and setback study | D11: allow | F11: =NA() ->  | G11: =IF(ISNA(F11),0,INDEX(IF(UPPER(RIGHT(F11,1))=Low,UnitCostLow, IF(UPPER(RIGHT(F11,1))=High,UnitCostHigh,UnitCostSpecified)),MATCH(UPPER(LEFT(F11,LEN(F11)-1)),CostCode,0))) -> 0 | H11: =G11*E11 -> 0 | J11: =H11*I11 -> 0 | K11: =H11*(1-I11) -> 0
B12: STABILIZE SLOPES
B13: Off-load crest, soil A | D13: m3 | F13: =NA() ->  | G13: 0 | H13: =G13*E13 -> 0 | J13: 0 | K13: 0
B14: Off-load crest, soil B | D14: m3 | F14: =NA() ->  | G14: 0 | H14: 0 | J14: 0 | K14: 0
B15: Doze/trim overburden at crest | D15: m3 | F15: =NA() ->  | G15: 0 | H15: 0 | J15: 0 | K15: 0
B16: Drill & blast pit crest | D16: m3 | F16: =NA() ->  | G16: 0 | H16: 0 | J16: 0 | K16: 0
B17: Buttress slope | D17: m3 | F17: =NA() ->  | G17: 0 | H17: 0 | J17: 0 | K17: 0
B18: Other | F18: =NA() ->  | G18: 0 | H18: 0 | J18: 0 | K18: 0
B19: COVER/CONTOUR SLOPES
B20: Place fill, soil A | D20: m3 | F20: =NA() ->  | G20: 0 | H20: =G20*E20 -> 0 | J20: 0 | K20: 0
B21: Place fill, soil B | D21: m3 | F21: =NA() ->  | G21: 0 | H21: 0 | J21: 0 | K21: 0
B22: Rip rap | D22: m3 | F22: =NA() ->  | G22: 0 | H22: 0 | J22: 0 | K22: 0
B23: Vegetate slopes | D23: ha | F23: =NA() ->  | G23: 0 | H23: 0 | J23: 0 | K23: 0
B24: Vegetate pit floor | D24: ha | F24: =NA() ->  | G24: 0 | H24: 0 | J24: 0 | K24: 0
B25: Other | F25: =NA() ->  | G25: 0 | H25: 0 | J25: 0 | K25: 0
B26: CONSTRUCT DIVERSION DITCHES
B27: Excavate ditches -soil | D27: m3 | F27: =NA() ->  | G27: =IF(ISNA(F27),0,INDEX(IF(UPPER(RIGHT(F27,1))=Low,UnitCostLow, IF(UPPER(RIGHT(F27,1))=High,UnitCostHigh,UnitCostSpecified)),MATCH(UPPER(LEFT(F27,LEN(F27)-1)),CostCode,0))) -> 0 | H27: =G27*E27 -> 0 | J27: =H27*I27 -> 0 | K27: =H27*(1-I27) -> 0
B28: Excavate ditches -rock | D28: m3 | F28: =NA() ->  | G28: =IF(ISNA(F28),0,INDEX(IF(UPPER(RIGHT(F28,1))=Low,UnitCostLow, IF(UPPER(RIGHT(F28,1))=High,UnitCostHigh,UnitCostSpecified)),MATCH(UPPER(LEFT(F28,LEN(F28)-1)),CostCode,0))) -> 0 | H28: =G28*E28 -> 0 | J28: =H28*I28 -> 0 | K28: =H28*(1-I28) -> 0
B29: Rip rap in channel base | D29: m3 | F29: =NA() ->  | G29: =IF(ISNA(F29),0,INDEX(IF(UPPER(RIGHT(F29,1))=Low,UnitCostLow, IF(UPPER(RIGHT(F29,1))=High,UnitCostHigh,UnitCostSpecified)),MATCH(UPPER(LEFT(F29,LEN(F29)-1)),CostCode,0))) -> 0 | H29: =G29*E29 -> 0 | J29: =H29*I29 -> 0 | K29: =H29*(1-I29) -> 0
B30: CONSTRUCT SPILLWAY
B31: Excavate channel | D31: m3 | F31: =NA() ->  | G31: 0 | H31: =G31*E31 -> 0 | J31: 0 | K31: 0
B32: Concrete | D32: m3 | F32: =NA() ->  | G32: 0 | H32: =G32*E32 -> 0 | J32: 0 | K32: 0
B33: Rip rap | D33: m3 | F33: =NA() ->  | G33: 0 | H33: =G33*E33 -> 0 | J33: 0 | K33: 0
B34: Other | F34: =NA() ->  | G34: 0 | H34: =G34*E34 -> 0 | J34: 0 | K34: 0
B35: RECLAIM QUARRIES
B36: Contour slopes | D36: m3 | F36: =NA() ->  | G36: =IF(ISNA(F36),0,INDEX(IF(UPPER(RIGHT(F36,1))=Low,UnitCostLow, IF(UPPER(RIGHT(F36,1))=High,UnitCostHigh,UnitCostSpecified)),MATCH(UPPER(LEFT(F36,LEN(F36)-1)),CostCode,0))) -> 0 | H36: =G36*E36 -> 0 | J36: =H36*I36 -> 0 | K36: =H36*(1-I36) -> 0
B37: Place overburden | D37: m3 | F37: =NA() ->  | G37: =IF(ISNA(F37),0,INDEX(IF(UPPER(RIGHT(F37,1))=Low,UnitCostLow, IF(UPPER(RIGHT(F37,1))=High,UnitCostHigh,UnitCostSpecified)),MATCH(UPPER(LEFT(F37,LEN(F37)-1)),CostCode,0))) -> 0 | H37: =G37*E37 -> 0 | J37: =H37*I37 -> 0 | K37: =H37*(1-I37) -> 0
B38: Vegetate | D38: m3 | F38: =NA() ->  | G38: =IF(ISNA(F38),0,INDEX(IF(UPPER(RIGHT(F38,1))=Low,UnitCostLow, IF(UPPER(RIGHT(F38,1))=High,UnitCostHigh,UnitCostSpecified)),MATCH(UPPER(LEFT(F38,LEN(F38)-1)),CostCode,0))) -> 0 | H38: =G38*E38 -> 0 | J38: =H38*I38 -> 0 | K38: =H38*(1-I38) -> 0
B39: FLOOD PIT-Capital
B40: Remove stationary equipment (sump pumps) | D40: each | F40: =NA() ->  | G40: 0 | H40: =G40*E40 -> 0 | J40: 0 | K40: 0
B41: Remove dewatering pipeline | D41: m | F41: =NA() ->  | G41: =IF(ISNA(F41),0,INDEX(IF(UPPER(RIGHT(F41,1))=Low,UnitCostLow, IF(UPPER(RIGHT(F41,1))=High,UnitCostHigh,UnitCostSpecified)),MATCH(UPPER(LEFT(F41,LEN(F41)-1)),CostCode,0))) -> 0 | H41: 0 | J41: =H41*I41 -> 0 | K41: =H41*(1-I41) -> 0
B42: Remove power lines | D42: each | F42: =NA() ->  | G42: 0 | H42: 0 | J42: 0 | K42: 0
B43: Construct diversion ditches | D43: m3 | F43: =NA() ->  | G43: =IF(ISNA(F43),0,INDEX(IF(UPPER(RIGHT(F43,1))=Low,UnitCostLow, IF(UPPER(RIGHT(F43,1))=High,UnitCostHigh,UnitCostSpecified)),MATCH(UPPER(LEFT(F43,LEN(F43)-1)),CostCode,0))) -> 0 | H43: 0 | J43: =H43*I43 -> 0 | K43: =H43*(1-I43) -> 0
B44: -Ditch, mat'l A | D44: m3 | F44: =NA() ->  | G44: =IF(ISNA(F44),0,INDEX(IF(UPPER(RIGHT(F44,1))=Low,UnitCostLow, IF(UPPER(RIGHT(F44,1))=High,UnitCostHigh,UnitCostSpecified)),MATCH(UPPER(LEFT(F44,LEN(F44)-1)),CostCode,0))) -> 0 | H44: 0 | J44: =H44*I44 -> 0 | K44: =+H44*(1-I44) -> 0
B45: -Ditch, mat'l B | D45: m3 | F45: =NA() ->  | G45: =IF(ISNA(F45),0,INDEX(IF(UPPER(RIGHT(F45,1))=Low,UnitCostLow, IF(UPPER(RIGHT(F45,1))=High,UnitCostHigh,UnitCostSpecified)),MATCH(UPPER(LEFT(F45,LEN(F45)-1)),CostCode,0))) -> 0 | H45: 0 | J45: =H45*I45 -> 0 | K45: =+H45*(1-I45) -> 0
B46: Construct embankment/dam | D46: m3 | F46: =NA() ->  | G46: 0 | H46: 0 | J46: 0 | K46: 0
B47: Supply/install pump station | D47: each | F47: =NA() ->  | G47: 0 | H47: 0 | J47: 0 | K47: 0
B48: Supply/install piping system | D48: m | F48: =NA() ->  | G48: =IF(ISNA(F48),0,INDEX(IF(UPPER(RIGHT(F48,1))=Low,UnitCostLow, IF(UPPER(RIGHT(F48,1))=High,UnitCostHigh,UnitCostSpecified)),MATCH(UPPER(LEFT(F48,LEN(F48)-1)),CostCode,0))) -> 0 | H48: 0 | J48: =H48*I48 -> 0 | K48: =H48*(1-I48) -> 0
B49: Remove pump post-closure | D49: each | F49: =NA() ->  | G49: =IF(ISNA(F49),0,INDEX(IF(UPPER(RIGHT(F49,1))=Low,UnitCostLow, IF(UPPER(RIGHT(F49,1))=High,UnitCostHigh,UnitCostSpecified)),MATCH(UPPER(LEFT(F49,LEN(F49)-1)),CostCode,0))) -> 0 | H49: 0 | J49: =H49*I49 -> 0 | K49: =H49*(1-I49) -> 0
B50: Remove pipeline post-closure | D50: m | F50: =NA() ->  | G50: =IF(ISNA(F50),0,INDEX(IF(UPPER(RIGHT(F50,1))=Low,UnitCostLow, IF(UPPER(RIGHT(F50,1))=High,UnitCostHigh,UnitCostSpecified)),MATCH(UPPER(LEFT(F50,LEN(F50)-1)),CostCode,0))) -> 0 | H50: 0 | J50: =H50*I50 -> 0 | K50: =H50*(1-I50) -> 0
B51: FLOOD PIT-Annual Cost | E51: 60
B52: Operate pumps (power) | D52: m3 | E52: 60 | F52: =NA() ->  | G52: 0 | H52: =G52*E52 -> 0 | J52: 0 | K52: 0 | M52: =SUM(H52:H62) -> 7481.42
B53: Maintain pump/pipeline | D53: allow | F53: =NA() ->  | G53: =IF(ISNA(F53),0,INDEX(IF(UPPER(RIGHT(F53,1))=Low,UnitCostLow, IF(UPPER(RIGHT(F53,1))=High,UnitCostHigh,UnitCostSpecified)),MATCH(UPPER(LEFT(F53,LEN(F53)-1)),CostCode,0))) -> 0 | H53: 0 | J53: =H53*I53 -> 0 | K53: =H53*(1-I53) -> 0
B54: Labour: fuel management, commissioning/decom | D54: $/h | F54: =NA() ->  | G54: =IF(ISNA(F54),0,INDEX(IF(UPPER(RIGHT(F54,1))=Low,UnitCostLow, IF(UPPER(RIGHT(F54,1))=High,UnitCostHigh,UnitCostSpecified)),MATCH(UPPER(LEFT(F54,LEN(F54)-1)),CostCode,0))) -> 0 | H54: 0 | J54: =H54*I54 -> 0 | K54: =H54*(1-I54) -> 0
B55: Chemical addition, _____ kg/m3 of water | D55: tonne | F55: =NA() ->  | G55: 0 | H55: 0 | J55: 0 | K55: 0
B56: Chemicals, purchase and shipping | D56: tonne | F56: =NA() ->  | G56: 0 | H56: 0 | J56: 0 | K56: 0
B57: Passive/biological additives | D57: $/ha | F57: =NA() ->  | G57: =IF(ISNA(F57),0,INDEX(IF(UPPER(RIGHT(F57,1))=Low,UnitCostLow, IF(UPPER(RIGHT(F57,1))=High,UnitCostHigh,UnitCostSpecified)),MATCH(UPPER(LEFT(F57,LEN(F57)-1)),CostCode,0))) -> 0 | H57: 0 | J57: =H57*I57 -> 0 | K57: =H57*(1-I57) -> 0
B58: Passive additives purchase and shipping | D58: tonne | F58: =NA() ->  | G58: =IF(ISNA(F58),0,INDEX(IF(UPPER(RIGHT(F58,1))=Low,UnitCostLow, IF(UPPER(RIGHT(F58,1))=High,UnitCostHigh,UnitCostSpecified)),MATCH(UPPER(LEFT(F58,LEN(F58)-1)),CostCode,0))) -> 0 | H58: 0 | J58: =H58*I58 -> 0 | K58: =H58*(1-I58) -> 0
B59: Other | F59: =NA() ->  | G59: 0 | H59: 0 | J59: =H59*I59 -> 0 | K59: 0
B60: JETTY | M60: ROBERTS BAY AREA
B61: Remove rock fill to 0.3 m below LLWL, place in surrounding water | D61: m3 | E61: 1013.8 | F61: SB1H | G61: =IF(ISNA(F61),0,INDEX(IF(UPPER(RIGHT(F61,1))=Low,UnitCostLow, IF(UPPER(RIGHT(F61,1))=High,UnitCostHigh,UnitCostSpecified)),MATCH(UPPER(LEFT(F61,LEN(F61)-1)),CostCode,0))) -> 5.9 | H61: =G61*E61 -> 5981.42 | M61: =SUM(H61:H148) -> 437867.454
B62: Remove on-shore mooring points | D62: LS | E62: 1 | F62: OSHRL | G62: 1500 | H62: =G62*E62 -> 1500
B63: Remove mooring buoy | D63: LS | E63: 1 | F63: FSHRL | G63: 3000 | H63: =G63*E63 -> 3000
B64: Crown jetty for positive drainage | D64: m2 | E64: 1900 | F64: c518l | G64: 0.12 | H64: =G64*E64 -> 228
B65: ROBERTS BAY TANK FARM - 20ML | M65: Jetty Total | N65: =SUM(H61:H64) -> 10709.42
B66: Drain tanks into portable fuel storage (EnviroTanks) | D66: each | E66: 4 | F66: C203L | G66: =IF(ISNA(F66),0,INDEX(IF(UPPER(RIGHT(F66,1))=Low,UnitCostLow, IF(UPPER(RIGHT(F66,1))=High,UnitCostHigh,UnitCostSpecified)),MATCH(UPPER(LEFT(F66,LEN(F66)-1)),CostCode,0))) -> 10000 | H66: =G66*E66 -> 40000 | I66: 0.5 | J66: =H66*I66 -> 20000 | K66: =+H66*(1-I66) -> 20000
B67: Decommission fuel transfer facilities | D67: each | E67: 4 | F67: C102L | G67: 550 | H67: 2200 | I67: 0.9 | J67: 1980 | K67: 220
B68: Wash tanks | D68: each | E68: 4 | F68: C204L | G68: 1420 | H68: 5680 | I68: 0.5 | J68: 2840 | K68: 2840
B69: Operate oil/water separator | D69: m3 | E69: 50 | F69: C208L | G69: 30 | H69: 1500 | I69: 0.5 | J69: 750 | K69: 750
B70: Disconnect piping and controls | D70: each | E70: 4 | F70: C102L | G70: 550 | H70: 2200 | I70: 0.5 | J70: 1100 | K70: 1100
B71: Dismantle tanks and cut into manageable pieces | D71: each | E71: 4 | F71: CUT5L | G71: 15000 | H71: 60000 | I71: 0.8 | J71: 48000 | K71: 12000
B72: Load pieces for transportation | D72: m3 | E72: 43.5 | F72: C401L | G72: 13.13 | H72: 571.155 | I72: 0.9 | J72: =H72*I72 -> 514.0395 | K72: =+H72*(1-I72) -> 57.1155
B73: Haul cut metal to Landfill | D73: m3 | E73: 51.4 | F73: C415L | G73: 6.34 | H73: 325.876 | I73: 0.9 | J73: 293.2884 | K73: 32.5876
B74: Remove and stockpile liner protection cover | D74: m3 | E74: 5455 | F74: SB1L | G74: =IF(ISNA(F74),0,INDEX(IF(UPPER(RIGHT(F74,1))=Low,UnitCostLow, IF(UPPER(RIGHT(F74,1))=High,UnitCostHigh,UnitCostSpecified)),MATCH(UPPER(LEFT(F74,LEN(F74)-1)),CostCode,0))) -> 4.3 | H74: 23456.5 | I74: 0.9 | J74: 21110.85 | K74: 2345.65
B75: load contained contaminated soils into megabags for shipping off-site | D75: m3 | E75: 50 | F75: C412L | G75: =IF(ISNA(F75),0,INDEX(IF(UPPER(RIGHT(F75,1))=Low,UnitCostLow, IF(UPPER(RIGHT(F75,1))=High,UnitCostHigh,UnitCostSpecified)),MATCH(UPPER(LEFT(F75,LEN(F75)-1)),CostCode,0))) -> 100.25 | H75: =G75*E75 -> 5012.5 | I75: 0.9 | J75: 4511.25 | K75: 501.25
B76: haul contaminated material to Roberts Bay laydown | D76: m3 | E76: 56.8 | F76: C404L | G76: 6.34 | H76: =G76*E76 -> 360.112 | I76: 0.9 | J76: 324.1008 | K76: 36.0112
B77: Clean liner | D77: m2 | E77: 10300 | F77: C210L | G77: 0.39 | H77: 4017 | I77: 0.5 | J77: 2008.5 | K77: 2008.5
B78: Remove and cut liner into manageable pieces | D78: m2 | E78: 10300 | F78: C302L | G78: 0.56 | H78: 5768 | I78: 0.9 | J78: 5191.2 | K78: 576.8
B79: Load Debris into Waste Trucks | D79: m3 | E79: 92.7 | F79: C401L | G79: 13.13 | H79: 1217.151 | I79: 0.9 | J79: 1095.4359 | K79: 121.7151
B80: Haul containers to Quarry 3 Landfill | D80: m3 | E80: 92.7 | F80: C415L | G80: 6.34 | H80: 587.718 | I80: 0.9 | J80: 528.9462 | K80: 58.7718
B81: Level containment berms | D81: m2 | E81: 231.3 | F81: C505L | G81: 1.58 | H81: 365.454 | I81: 0.5 | J81: 182.727 | K81: 182.727
B82: Regrade area for positive drainage | D82: m2 | E82: 11530 | F82: C518L | G82: 0.12 | H82: 1383.6 | I82: 0.5 | J82: 691.8 | K82: 691.8
B83: QUARRY 1 TANK FARM
B84: 5ML Drain tanks into portable fuel storage (EnviroTanks) | D84: each | E84: 1 | F84: C203L | G84: =IF(ISNA(F84),0,INDEX(IF(UPPER(RIGHT(F84,1))=Low,UnitCostLow, IF(UPPER(RIGHT(F84,1))=High,UnitCostHigh,UnitCostSpecified)),MATCH(UPPER(LEFT(F84,LEN(F84)-1)),CostCode,0))) -> 10000 | H84: =G84*E84 -> 10000 | I84: 0.5 | J84: =H84*I84 -> 5000 | K84: =+H84*(1-I84) -> 5000
B85: 1ML Drain tanks into portable fuel storage (EnviroTanks) | D85: each | E85: 1 | F85: C203L | G85: 10000 | H85: =G85*E85 -> 10000 | I85: 0.5 | J85: 5000 | K85: 5000
B86: Decommission fuel transfer facilities | D86: each | E86: 2 | F86: C102L | G86: 550 | H86: =G86*E86 -> 1100 | I86: 0.9 | J86: 990 | K86: 110
B87: Wash tanks | D87: each | E87: 2 | F87: C204L | G87: 1420 | H87: 2840 | I87: 0.5 | J87: 1420 | K87: 1420
B88: Operate oil/water separator | D88: m3 | E88: 220 | F88: C208L | G88: 30 | H88: =G88*E88 -> 6600 | I88: 0.5 | J88: 3300 | K88: 3300
B89: Disconnect piping and controls | D89: each | E89: 2 | F89: C102L | G89: 550 | H89: 1100 | I89: 0.9 | J89: 990 | K89: 110
B90: Dismantle 5ML diesel fuel tank and cut into manageable pieces | D90: each | E90: 1 | F90: CUT5L | G90: 15000 | H90: 15000 | I90: 0.9 | J90: 13500 | K90: 1500
B91: Dismantle 1ML jet fuel tank and cut into manageable pieces | D91: each | E91: 1 | F91: CUT1L | G91: 15000 | H91: 15000 | I91: 0.9 | J91: 13500 | K91: 1500
B92: Prepare pieces for transportation | D92: m3 | E92: 174 | F92: C401L | G92: 13.13 | H92: 2284.62 | I92: 0.9 | J92: 2056.158 | K92: 228.462
B93: Haul cut metal to Landfill | D93: m3 | E93: 174 | F93: C415L | G93: 6.34 | H93: 1103.16 | I93: 0.9 | J93: 992.844 | K93: 110.316
B94: Remove and stockpile liner protection cover | D94: m3 | E94: 2190 | F94: SB1L | G94: 4.3 | H94: 9417 | I94: 0.9 | J94: 8475.3 | K94: 941.7
B95: load contained contaminated soils into megabags for shipping off-site | D95: m3 | E95: 50 | F95: C412L | G95: =IF(ISNA(F95),0,INDEX(IF(UPPER(RIGHT(F95,1))=Low,UnitCostLow, IF(UPPER(RIGHT(F95,1))=High,UnitCostHigh,UnitCostSpecified)),MATCH(UPPER(LEFT(F95,LEN(F95)-1)),CostCode,0))) -> 100.25 | H95: 5012.5 | I95: 0.9 | J95: 4511.25 | K95: 501.25
B96: haul megabags to Roberts Bay laydown | D96: m3 | E96: 53.4 | F96: C404L | G96: 6.34 | H96: 338.556 | I96: 0.9 | J96: 304.7004 | K96: 33.8556
B97: Clean liner | D97: m2 | E97: 6521 | F97: C210L | G97: 0.39 | H97: 2543.19 | I97: 0.5 | J97: 1271.595 | K97: 1271.595
B98: Remove and cut liner into manageable pieces | D98: m2 | E98: 6521 | F98: C302L | G98: 0.56 | H98: 3651.76 | I98: 0.9 | J98: 3286.584 | K98: 365.176
B99: Drain and wash empty fuel drums | D99: each | E99: 150 | F99: C205L | G99: 60 | H99: 9000 | I99: 0.5 | J99: 4500 | K99: 4500
B100: Crush empty fuel drums | D100: each | E100: 150 | F100: C301L | G100: 35 | H100: 5250 | I100: 0.9 | J100: 4725 | K100: 525
B101: Load debris for transport to landfill | D101: m3 | E101: 68.2 | F101: C401L | G101: 13.13 | H101: 895.466 | I101: 0.9 | J101: 805.9194 | K101: 89.5466
B102: Haul waste to Landfill | D102: m3 | E102: 68.2 | F102: C415L | G102: 6.34 | H102: 432.388 | I102: 0.9 | J102: 389.1492 | K102: 43.2388
B103: Level containment berms | D103: m2 | E103: 279.3 | F103: C505L | G103: 1.58 | H103: =G103*E103 -> 441.294 | I103: 0.9 | J103: 397.1646 | K103: 44.1294
B104: Regrade area for positive drainage | D104: m2 | E104: 3650 | F104: C518L | G104: 0.12 | H104: =G104*E104 -> 438 | I104: 0.5 | J104: 219 | K104: 219
B105: MECHANICAL SHOP COMPLEX
B106: Decommission electrical, mechanical, heating (including connections to generator house & transformer) | D106: each | E106: 7 | F106: C105L | G106: =IF(ISNA(F106),0,INDEX(IF(UPPER(RIGHT(F106,1))=Low,UnitCostLow, IF(UPPER(RIGHT(F106,1))=High,UnitCostHigh,UnitCostSpecified)),MATCH(UPPER(LEFT(F106,LEN(F106)-1)),CostCode,0))) -> 640 | H106: =G106*E106 -> 4480 | I106: 0.9 | J106: =H106*I106 -> 4032 | K106: =+H106*(1-I106) -> 448
B107: Demolish (steel modular structure) | D107: m3 | E107: 2204.4 | F107: C305L | G107: 19 | H107: 41883.6 | I107: 0.9 | J107: 37695.24 | K107: 4188.36
B108: Demolish wood structures (warehouse roof, crew lounge) | D108: m3 | E108: 283.2 | F108: C305L | G108: 19 | H108: 5380.8 | I108: 0.9 | J108: 4842.72 | K108: 538.08
B109: Demolish tent structure (light vehicle shop) | D109: m3 | E109: 460.3 | F109: C305L | G109: 19 | H109: 8745.7 | I109: 0.9 | J109: 7871.13 | K109: 874.57
B110: Collect Debris | D110: m2 | E110: 685.8 | F110: C310L | G110: =IF(ISNA(F110),0,INDEX(IF(UPPER(RIGHT(F110,1))=Low,UnitCostLow, IF(UPPER(RIGHT(F110,1))=High,UnitCostHigh,UnitCostSpecified)),MATCH(UPPER(LEFT(F110,LEN(F110)-1)),CostCode,0))) -> 0.18 | H110: =G110*E110 -> 123.444 | I110: 0.9 | J110: 111.0996 | K110: 12.3444
B111: Load debris for transport to landfill | D111: m3 | E111: 867.1 | F111: C401L | G111: 13.13 | H111: 11385.023 | I111: 0.9 | J111: 10246.5207 | K111: 1138.5023
B112: Haul debris to Landfill | D112: m3 | E112: 867.1 | F112: C415L | G112: 6.34 | H112: 5497.414 | I112: 0.9 | J112: 4947.6726 | K112: 549.7414
B113: WASTE MANAGEMENT FACILITY
B114: Collect ashes and place in containers | D114: m3 | E114: 0.5 | F114: C207L | G114: =IF(ISNA(F114),0,INDEX(IF(UPPER(RIGHT(F114,1))=Low,UnitCostLow, IF(UPPER(RIGHT(F114,1))=High,UnitCostHigh,UnitCostSpecified)),MATCH(UPPER(LEFT(F114,LEN(F114)-1)),CostCode,0))) -> 13.13 | H114: =G114*E114 -> 6.565 | I114: 0.75 | J114: =H114*I114 -> 4.92375 | K114: =+H114*(1-I114) -> 1.64125
B115: Dismantle (welding crew) | D115: each | E115: 2 | F115: C308L | G115: 1500 | H115: 3000 | I115: 0.95 | J115: 2850 | K115: 150
B116: Demolish wood structures (roof, entryway, etc.) | D116: m3 | E116: 76.2 | F116: C305L | G116: 19 | H116: 1447.8 | I116: 0.9 | J116: 1303.02 | K116: 144.78
B117: Disconnect containers and prep for shipping off-site | D117: each | E117: 11 | F117: C108L | G117: 1325 | H117: 14575 | I117: 0.9 | J117: 13117.5 | K117: 1457.5
B118: Collect all debris | D118: m2 | E118: 128.7 | F118: C310L | G118: 0.18 | H118: 23.166 | I118: 0.9 | J118: 20.8494 | K118: 2.3166
B119: Load debris for transport to landfill | D119: m3 | E119: 152.5 | F119: C401L | G119: 13.13 | H119: 2002.325 | I119: 0.9 | J119: 1802.0925 | K119: 200.2325
B120: Haul debris to Landfill | D120: m3 | E120: 152.5 | F120: C415L | G120: 6.34 | H120: 966.85 | I120: 0.9 | J120: 870.165 | K120: 96.685
B121: LAYDOWN AREA
B122: Decommission vehicle plug system | D122: each | E122: 1 | F122: C105L | G122: =IF(ISNA(F122),0,INDEX(IF(UPPER(RIGHT(F122,1))=Low,UnitCostLow, IF(UPPER(RIGHT(F122,1))=High,UnitCostHigh,UnitCostSpecified)),MATCH(UPPER(LEFT(F122,LEN(F122)-1)),CostCode,0))) -> 640 | H122: =G122*E122 -> 640 | I122: 0.9 | J122: =H122*I122 -> 576 | K122: =+H122*(1-I122) -> 64
B123: Remove cables and posts | D123: each | E123: 8 | F123: C314L | G123: 150 | H123: 1200 | I123: 0.9 | J123: 1080 | K123: 120
B124: Collect all debris | D124: m2 | E124: 24491.6 | F124: C310L | G124: 0.18 | H124: 4408.488 | I124: 0.9 | J124: 3967.6392 | K124: 440.8488
B125: Load debris for transport to landfill | D125: m3 | E125: 10 | F125: C401L | G125: 13.13 | H125: 131.3 | I125: 0.9 | J125: 118.17 | K125: 13.13
B126: Haul debris to Landfill | D126: m3 | E126: 10 | F126: C415L | G126: 6.34 | H126: 63.4 | I126: 0.9 | J126: 57.06 | K126: 6.34
B127: Regrade area for positive drainage | D127: m2 | E127: 24491.6 | F127: C518L | G127: 0.12 | H127: 2938.992 | I127: 0.9 | J127: 2645.0928 | K127: 293.8992
B128: Laydown Area Expansion Collect all debris | D128: m2 | E128: 38800 | F128: C310L | G128: 0.18 | H128: 6984 | I128: 0.9 | J128: 6285.6 | K128: 698.4
B129: Load waste into containers for shipping off-site | D129: m3 | E129: 10 | F129: C401L | G129: 13.13 | H129: 131.3 | I129: 0.9 | J129: 118.17 | K129: 13.13
B130: Haul debris to Landfill | D130: m3 | E130: 10 | F130: C415L | G130: 6.34 | H130: 63.4 | I130: 0.9 | J130: 57.06 | K130: 6.34
B131: Breach safety berms and Regrade area for positive drainage | D131: m2 | E131: 38800 | F131: C518L | G131: 0.12 | H131: 4656 | I131: 0.5 | J131: 2328 | K131: 2328
B132: OVERBURDEN DUMP
B133: Collect all debris | D133: m2 | E133: 10448 | F133: C310L | G133: =IF(ISNA(F133),0,INDEX(IF(UPPER(RIGHT(F133,1))=Low,UnitCostLow, IF(UPPER(RIGHT(F133,1))=High,UnitCostHigh,UnitCostSpecified)),MATCH(UPPER(LEFT(F133,LEN(F133)-1)),CostCode,0))) -> 0.18 | H133: =G133*E133 -> 1880.64 | I133: 0.9 | J133: =H133*I133 -> 1692.576 | K133: =+H133*(1-I133) -> 188.064
B134: Load waste into containers for shipping off-site | D134: m3 | E134: 10 | F134: C401L | G134: =IF(ISNA(F134),0,INDEX(IF(UPPER(RIGHT(F134,1))=Low,UnitCostLow, IF(UPPER(RIGHT(F134,1))=High,UnitCostHigh,UnitCostSpecified)),MATCH(UPPER(LEFT(F134,LEN(F134)-1)),CostCode,0))) -> 13.13 | H134: =G134*E134 -> 131.3 | I134: 0.9 | J134: =H134*I134 -> 118.17 | K134: =+H134*(1-I134) -> 13.13
B135: Haul debris to Landfill | D135: m3 | E135: 10 | F135: C415L | G135: =IF(ISNA(F135),0,INDEX(IF(UPPER(RIGHT(F135,1))=Low,UnitCostLow, IF(UPPER(RIGHT(F135,1))=High,UnitCostHigh,UnitCostSpecified)),MATCH(UPPER(LEFT(F135,LEN(F135)-1)),CostCode,0))) -> 6.34 | H135: =G135*E135 -> 63.4 | I135: 0.9 | J135: =H135*I135 -> 57.06 | K135: =+H135*(1-I135) -> 6.34
B136: Grade for positive drainage | D136: m2 | E136: 10448 | F136: C505L | G136: =IF(ISNA(F136),0,INDEX(IF(UPPER(RIGHT(F136,1))=Low,UnitCostLow, IF(UPPER(RIGHT(F136,1))=High,UnitCostHigh,UnitCostSpecified)),MATCH(UPPER(LEFT(F136,LEN(F136)-1)),CostCode,0))) -> 1.58 | H136: =G136*E136 -> 16507.84 | I136: 0.5 | J136: =H136*I136 -> 8253.92 | K136: =+H136*(1-I136) -> 8253.92
B137: Breach the berm to original ground in several locations (4 locations) to restore natural flow path | D137: m2 | E137: 378 | F137: C505L | G137: =IF(ISNA(F137),0,INDEX(IF(UPPER(RIGHT(F137,1))=Low,UnitCostLow, IF(UPPER(RIGHT(F137,1))=High,UnitCostHigh,UnitCostSpecified)),MATCH(UPPER(LEFT(F137,LEN(F137)-1)),CostCode,0))) -> 1.58 | H137: =G137*E137 -> 597.24 | I137: 0.5 | J137: =H137*I137 -> 298.62 | K137: =+H137*(1-I137) -> 298.62
B138: ROBERTS BAY ACCESS ROAD
B139: Crown road for positive drainage | D139: m2 | E139: 3378 | F139: C518L | G139: =IF(ISNA(F139),0,INDEX(IF(UPPER(RIGHT(F139,1))=Low,UnitCostLow, IF(UPPER(RIGHT(F139,1))=High,UnitCostHigh,UnitCostSpecified)),MATCH(UPPER(LEFT(F139,LEN(F139)-1)),CostCode,0))) -> 0.12 | H139: =G139*E139 -> 405.36 | I139: 0.5 | J139: =H139*I139 -> 202.68 | K139: =+H139*(1-I139) -> 202.68
B140: COMMUNICATIONS TOWER
B141: Decommission Tower | D141: each | E141: 1 | F141: C105L | G141: =IF(ISNA(F141),0,INDEX(IF(UPPER(RIGHT(F141,1))=Low,UnitCostLow, IF(UPPER(RIGHT(F141,1))=High,UnitCostHigh,UnitCostSpecified)),MATCH(UPPER(LEFT(F141,LEN(F141)-1)),CostCode,0))) -> 640 | H141: =G141*E141 -> 640 | I141: 0.9 | J141: =H141*I141 -> 576 | K141: =+H141*(1-I141) -> 64
B142: Remove communication equipment | D142: each | E142: 4 | F142: C107L | G142: 350 | H142: 1400 | I142: 0.9 | J142: 1260 | K142: 140
B143: Dismantle towers | D143: each | E143: 1 | F143: C311L | G143: 15500 | H143: 15500 | I143: 0.9 | J143: 13950 | K143: 1550
B144: Prep tower sections for shipping off-site | D144: m | E144: 8 | F144: C312L | G144: 1500 | H144: 12000 | I144: 0.9 | J144: 10800 | K144: 1200
B145: Collect all debris | D145: m2 | E145: 1.4 | F145: C310L | G145: 0.18 | H145: 0.252 | I145: 0.9 | J145: 0.2268 | K145: 0.0252
B146: Load waste into containers for shipping off-site | D146: m3 | E146: 10.5 | F146: C401L | G146: 13.13 | H146: 137.865 | I146: 0.9 | J146: 124.0785 | K146: 13.7865
B147: Haul hazardous waste to Roberts Bay | D147: m3 | E147: 5 | F147: C404L | G147: 6.34 | H147: 31.7 | I147: 0.9 | J147: 28.53 | K147: 3.17
B148: Haul debris to Landfill | D148: m2 | E148: 5.5 | F148: C415L | G148: 6.34 | H148: 34.87 | I148: 0.9 | J148: 31.383 | K148: 3.487
B149: ALL WEATHER AIRSTRIP | M149: AIRSTRIP
B150: Decommission Airstrip | D150: each | E150: 1 | F150: C109L | G150: =IF(ISNA(F150),0,INDEX(IF(UPPER(RIGHT(F150,1))=Low,UnitCostLow, IF(UPPER(RIGHT(F150,1))=High,UnitCostHigh,UnitCostSpecified)),MATCH(UPPER(LEFT(F150,LEN(F150)-1)),CostCode,0))) -> 1500 | H150: =G150*E150 -> 1500 | I150: 0.9 | J150: =H150*I150 -> 1350 | K150: =+H150*(1-I150) -> 150 | M150: =SUM(H150:H168) -> 19320.596
B151: Remove lighting fixtures (airstrip lighting, approach lights) | D151: each | E151: 70 | F151: C110L | G151: 50 | H151: 3500 | I151: 0.9 | J151: 3150 | K151: 350
B152: collect all debris | D152: m2 | E152: 2850 | F152: C310L | G152: 0.18 | H152: 513 | I152: 0.9 | J152: 461.7 | K152: 51.3
B153: load waste for transport to landfill | D153: m3 | E153: 1.2 | F153: C401L | G153: 13.13 | H153: 15.756 | I153: 0.9 | J153: 14.1804 | K153: 1.5756
B154: Haul debris to Landfill | D154: m3 | E154: 1.2 | F154: C416L | G154: 6.34 | H154: 7.608 | I154: 0.9 | J154: 6.8472 | K154: 0.7608
B155: crown airstrip and airstrip expansion for positive drainage | D155: m2 | E155: 42000 | F155: C518L | G155: 0.12 | H155: 5040 | I155: 0.5 | J155: 2520 | K155: 2520
B156: Other | F156: =NA() ->  | G156: =IF(ISNA(F156),0,INDEX(IF(UPPER(RIGHT(F156,1))=Low,UnitCostLow, IF(UPPER(RIGHT(F156,1))=High,UnitCostHigh,UnitCostSpecified)),MATCH(UPPER(LEFT(F156,LEN(F156)-1)),CostCode,0))) -> 0 | H156: 0 | J156: 0 | K156: 0
B157: SOUTH APRON
B158: crown for positive drainage | D158: m2 | E158: 4500 | F158: C518L | G158: =IF(ISNA(F158),0,INDEX(IF(UPPER(RIGHT(F158,1))=Low,UnitCostLow, IF(UPPER(RIGHT(F158,1))=High,UnitCostHigh,UnitCostSpecified)),MATCH(UPPER(LEFT(F158,LEN(F158)-1)),CostCode,0))) -> 0.12 | H158: =G158*E158 -> 540 | I158: 0.5 | J158: =H158*I158 -> 270 | K158: =+H158*(1-I158) -> 270
B159: Other | F159: =NA() ->  | G159: =IF(ISNA(F159),0,INDEX(IF(UPPER(RIGHT(F159,1))=Low,UnitCostLow, IF(UPPER(RIGHT(F159,1))=High,UnitCostHigh,UnitCostSpecified)),MATCH(UPPER(LEFT(F159,LEN(F159)-1)),CostCode,0))) -> 0 | H159: =G159*E159 -> 0 | J159: =H159*I159 -> 0 | K159: =+H159*(1-I159) -> 0
B160: NORTH APRON
B161: Decommission electrical, and heating from traffic control tower | D161: each | E161: 1 | F161: C107L | G161: =IF(ISNA(F161),0,INDEX(IF(UPPER(RIGHT(F161,1))=Low,UnitCostLow, IF(UPPER(RIGHT(F161,1))=High,UnitCostHigh,UnitCostSpecified)),MATCH(UPPER(LEFT(F161,LEN(F161)-1)),CostCode,0))) -> 350 | H161: =G161*E161 -> 350 | I161: 0.9 | J161: =H161*I161 -> 315 | K161: =+H161*(1-I161) -> 35
B162: demolish control tower structure (wood shack) | D162: m3 | E162: 11.7 | F162: C305L | G162: 19 | H162: =G162*E162 -> 222.3 | I162: 0.9 | J162: 200.07 | K162: 22.23
B163: disconnect containers and prep for shipping off-site | D163: each | E163: 5 | F163: C108L | G163: 1325 | H163: =G163*E163 -> 6625 | I163: 0.9 | J163: 5962.5 | K163: 662.5
B164: collect all debris | D164: m2 | E164: 12.2 | F164: C310L | G164: 0.18 | H164: 2.196 | I164: 0.9 | J164: 1.9764 | K164: 0.2196
B165: load waste for transport to landfill | D165: m3 | E165: 17.6 | F165: C401L | G165: 13.13 | H165: 231.088 | I165: 0.9 | J165: 207.9792 | K165: 23.1088
B166: haul debris to landfill | D166: m3 | E166: 17.6 | F166: C416L | G166: 6.34 | H166: 111.584 | I166: 0.9 | J166: 100.4256 | K166: 11.1584
B167: crown for positive drainage | D167: m2 | E167: 5517.2 | F167: C518L | G167: 0.12 | H167: 662.064 | I167: 0.5 | J167: 331.032 | K167: 331.032
B168: Other | F168: =NA() ->  | G168: =IF(ISNA(F168),0,INDEX(IF(UPPER(RIGHT(F168,1))=Low,UnitCostLow, IF(UPPER(RIGHT(F168,1))=High,UnitCostHigh,UnitCostSpecified)),MATCH(UPPER(LEFT(F168,LEN(F168)-1)),CostCode,0))) -> 0 | H168: =G168*E168 -> 0 | J168: =H168*I168 -> 0 | K168: =+H168*(1-I168) -> 0
G169: Annual pumping costs | H169: =SUM(H52:H59)+0.0001 -> 0.0001
B170: Number of years of pump flooding | D170: years
G171: Total pumping costs | H171: =H169*E170 -> 0 | J171: =H171*I171 -> 0 | K171: =H171*(1-I171) -> 0
G172: Total | H172: =SUM(H60:H168)+H171+0.0001 -> 457188.0501 | J172: =SUM(J5:J168)+J171 -> 345989.483 | K172: =SUM(K5:K168)+K171 -> 100489.147
G173: % of Total | J173: =J172/H172 -> 0.7567771795 | K173: =K172/H172 -> 0.2197982798

Sheet UG Mine
A1: 1 | B1: Underground Mine Name | C1: U/G Workings and Reagent Pads | G1: UG Mine # | H1: 1
B3: ACTIVITY/MATERIAL | C3: Notes | D3: Unit | E3: Qty | F3: Cost Code | G3: Unit Cost | H3: Cost | I3: % Land | J3: Land Cost | K3: Water Cost
B4: CONTROL ACCESS
B5: Fence | D5: m | F5: =NA() ->  | G5: =IF(ISNA(F5),0,INDEX(IF(UPPER(RIGHT(F5,1))=Low,UnitCostLow, IF(UPPER(RIGHT(F5,1))=High,UnitCostHigh,UnitCostSpecified)),MATCH(UPPER(LEFT(F5,LEN(F5)-1)),CostCode,0))) -> 0 | H5: =G5*E5 -> 0 | J5: =H5*I5 -> 0 | K5: =H5*(1-I5) -> 0
B6: Signs | D6: each | F6: =NA() ->  | G6: 0 | H6: 0 | J6: =H6*I6 -> 0 | K6: =H6*(1-I6) -> 0
B7: Block roads | D7: m3 | F7: =NA() ->  | G7: 0 | H7: =G7*E7 -> 0 | J7: 0 | K7: 0
B8: Berm | D8: m3 | F8: =NA() ->  | G8: 0 | H8: 0 | J8: 0 | K8: 0
B9: Concrete wall in portals | D9: m3 | F9: =NA() ->  | G9: 0 | H9: 0 | J9: =H9*I9 -> 0 | K9: =H9*(1-I9) -> 0
B10: Backfill portal #1 | D10: m3 | F10: =NA() ->  | G10: 0 | H10: 0 | J10: 0 | K10: 0
B11: Backfill portal #2 | D11: m3 | F11: =NA() ->  | G11: 0 | H11: 0 | J11: 0 | K11: 0
B12: Cap raise # 1 | D12: m3 | F12: =NA() ->  | G12: 0 | H12: 0 | J12: 0 | K12: 0
B13: Cap raise #2 | D13: m3 | F13: =NA() ->  | G13: 0 | H13: 0 | J13: 0 | K13: 0
B14: Cap shaft #1 | D14: m3 | F14: =NA() ->  | G14: 0 | H14: 0 | J14: 0 | K14: 0
B15: Cap shaft #2 | D15: m3 | F15: =NA() ->  | G15: 0 | H15: 0 | J15: 0 | K15: 0
B16: Backfill adits | D16: m3 | F16: =NA() ->  | G16: 0 | H16: 0 | J16: =H16*I16 -> 0 | K16: =H16*(1-I16) -> 0
B17: Backfill open stope | D17: m3 | F17: =NA() ->  | G17: 0 | H17: 0 | J17: 0 | K17: 0
B18: Concrete cap over open stope | D18: m3 | F18: =NA() ->  | G18: 0 | H18: 0 | J18: 0 | K18: 0
B19: Other | F19: =NA() ->  | G19: 0 | H19: 0 | J19: 0 | K19: 0
B20: REMOVE HAZARDOUS MATERIALS
B21: Remove hazardous materials, U/G labor | D21: mandays | F21: =NA() ->  | G21: =IF(ISNA(F21),0,INDEX(IF(UPPER(RIGHT(F21,1))=Low,UnitCostLow, IF(UPPER(RIGHT(F21,1))=High,UnitCostHigh,UnitCostSpecified)),MATCH(UPPER(LEFT(F21,LEN(F21)-1)),CostCode,0))) -> 0 | H21: =G21*E21 -> 0 | J21: =H21*I21 -> 0 | K21: =H21*(1-I21) -> 0
B22: Remove/decontam. stationary & elect. equip | D22: mandays | F22: =NA() ->  | G22: =IF(ISNA(F22),0,INDEX(IF(UPPER(RIGHT(F22,1))=Low,UnitCostLow, IF(UPPER(RIGHT(F22,1))=High,UnitCostHigh,UnitCostSpecified)),MATCH(UPPER(LEFT(F22,LEN(F22)-1)),CostCode,0))) -> 0 | H22: =G22*E22 -> 0 | J22: =H22*I22 -> 0 | K22: =H22*(1-I22) -> 0
B23: Remove/decontam. mobile equipment | D23: each | F23: =NA() ->  | G23: =IF(ISNA(F23),0,INDEX(IF(UPPER(RIGHT(F23,1))=Low,UnitCostLow, IF(UPPER(RIGHT(F23,1))=High,UnitCostHigh,UnitCostSpecified)),MATCH(UPPER(LEFT(F23,LEN(F23)-1)),CostCode,0))) -> 0 | H23: =G23*E23 -> 0 | J23: =H23*I23 -> 0 | K23: =H23*(1-I23) -> 0
B24: Remove misc. haz. mat & explosives | D24: kg | F24: =NA() ->  | G24: =IF(ISNA(F24),0,INDEX(IF(UPPER(RIGHT(F24,1))=Low,UnitCostLow, IF(UPPER(RIGHT(F24,1))=High,UnitCostHigh,UnitCostSpecified)),MATCH(UPPER(LEFT(F24,LEN(F24)-1)),CostCode,0))) -> 0 | H24: =G24*E24 -> 0 | J24: =H24*I24 -> 0 | K24: =H24*(1-I24) -> 0
B25: Other | F25: =NA() ->  | G25: =IF(ISNA(F25),0,INDEX(IF(UPPER(RIGHT(F25,1))=Low,UnitCostLow, IF(UPPER(RIGHT(F25,1))=High,UnitCostHigh,UnitCostSpecified)),MATCH(UPPER(LEFT(F25,LEN(F25)-1)),CostCode,0))) -> 0 | H25: =G25*E25 -> 0 | J25: =H25*I25 -> 0 | K25: =H25*(1-I25) -> 0
B26: INSTALL BULKHEADS
B27: Bulkheads to control water flow | D27: each | F27: =NA() ->  | G27: =IF(ISNA(F27),0,INDEX(IF(UPPER(RIGHT(F27,1))=Low,UnitCostLow, IF(UPPER(RIGHT(F27,1))=High,UnitCostHigh,UnitCostSpecified)),MATCH(UPPER(LEFT(F27,LEN(F27)-1)),CostCode,0))) -> 0 | H27: =G27*E27 -> 0 | J27: =H27*I27 -> 0 | K27: =H27*(1-I27) -> 0
B28: Grout bulkhead | D28: m3 | F28: =NA() ->  | G28: =IF(ISNA(F28),0,INDEX(IF(UPPER(RIGHT(F28,1))=Low,UnitCostLow, IF(UPPER(RIGHT(F28,1))=High,UnitCostHigh,UnitCostSpecified)),MATCH(UPPER(LEFT(F28,LEN(F28)-1)),CostCode,0))) -> 0 | H28: =G28*E28 -> 0 | J28: =H28*I28 -> 0 | K28: =H28*(1-I28) -> 0
B29: FLOOD MINE
B30: Supply/install pump | D30: each | F30: =NA() ->  | G30: =IF(ISNA(F30),0,INDEX(IF(UPPER(RIGHT(F30,1))=Low,UnitCostLow, IF(UPPER(RIGHT(F30,1))=High,UnitCostHigh,UnitCostSpecified)),MATCH(UPPER(LEFT(F30,LEN(F30)-1)),CostCode,0))) -> 0 | H30: =G30*E30 -> 0 | J30: 0 | K30: 0
B31: Supply/install piping system | D31: each | F31: =NA() ->  | G31: =IF(ISNA(F31),0,INDEX(IF(UPPER(RIGHT(F31,1))=Low,UnitCostLow, IF(UPPER(RIGHT(F31,1))=High,UnitCostHigh,UnitCostSpecified)),MATCH(UPPER(LEFT(F31,LEN(F31)-1)),CostCode,0))) -> 0 | H31: =G31*E31 -> 0 | J31: =H31*I31 -> 0 | K31: =H31*(1-I31) -> 0
B32: Operate pumps to flood workings | D32: m3 | F32: =NA() ->  | G32: =IF(ISNA(F32),0,INDEX(IF(UPPER(RIGHT(F32,1))=Low,UnitCostLow, IF(UPPER(RIGHT(F32,1))=High,UnitCostHigh,UnitCostSpecified)),MATCH(UPPER(LEFT(F32,LEN(F32)-1)),CostCode,0))) -> 0 | H32: =G32*E32 -> 0 | J32: 0 | K32: 0
B33: Other | F33: =NA() ->  | G33: =IF(ISNA(F33),0,INDEX(IF(UPPER(RIGHT(F33,1))=Low,UnitCostLow, IF(UPPER(RIGHT(F33,1))=High,UnitCostHigh,UnitCostSpecified)),MATCH(UPPER(LEFT(F33,LEN(F33)-1)),CostCode,0))) -> 0 | H33: =G33*E33 -> 0 | J33: 0 | K33: 0
B34: INSTALL GROUNDWATER COLLECTION SYSTEM
B35: Excavate/install sumps | D35: m2 | F35: =NA() ->  | G35: =IF(ISNA(F35),0,INDEX(IF(UPPER(RIGHT(F35,1))=Low,UnitCostLow, IF(UPPER(RIGHT(F35,1))=High,UnitCostHigh,UnitCostSpecified)),MATCH(UPPER(LEFT(F35,LEN(F35)-1)),CostCode,0))) -> 0 | H35: =G35*E35 -> 0 | J35: =H35*I35 -> 0 | K35: =+H35*(1-I35) -> 0
B36: Install pumping wells | D36: m3 | F36: =NA() ->  | G36: =IF(ISNA(F36),0,INDEX(IF(UPPER(RIGHT(F36,1))=Low,UnitCostLow, IF(UPPER(RIGHT(F36,1))=High,UnitCostHigh,UnitCostSpecified)),MATCH(UPPER(LEFT(F36,LEN(F36)-1)),CostCode,0))) -> 0 | H36: =G36*E36 -> 0 | J36: =H36*I36 -> 0 | K36: =+H36*(1-I36) -> 0
B37: Install pumps/pipelines/power supply | D37: LS | F37: =NA() ->  | G37: =IF(ISNA(F37),0,INDEX(IF(UPPER(RIGHT(F37,1))=Low,UnitCostLow, IF(UPPER(RIGHT(F37,1))=High,UnitCostHigh,UnitCostSpecified)),MATCH(UPPER(LEFT(F37,LEN(F37)-1)),CostCode,0))) -> 0 | H37: =G37*E37 -> 0 | J37: =H37*I37 -> 0 | K37: =+H37*(1-I37) -> 0
B38: SPECIALIZED ITEMS
B39: Install water quality monitoring pipes | D39: each | F39: =NA() ->  | G39: =IF(ISNA(F39),0,INDEX(IF(UPPER(RIGHT(F39,1))=Low,UnitCostLow, IF(UPPER(RIGHT(F39,1))=High,UnitCostHigh,UnitCostSpecified)),MATCH(UPPER(LEFT(F39,LEN(F39)-1)),CostCode,0))) -> 0 | H39: =G39*E39 -> 0 | J39: =H39*I39 -> 0 | K39: 0
B40: Install permanent pumping system | D40: each | F40: =NA() ->  | G40: =IF(ISNA(F40),0,INDEX(IF(UPPER(RIGHT(F40,1))=Low,UnitCostLow, IF(UPPER(RIGHT(F40,1))=High,UnitCostHigh,UnitCostSpecified)),MATCH(UPPER(LEFT(F40,LEN(F40)-1)),CostCode,0))) -> 0 | H40: =G40*E40 -> 0 | J40: =H40*I40 -> 0 | K40: 0
B41: DORIS NORTH DECLINE PORTAL | M41: UNDERGROUND
B42: remove ducts, pipes, electrical cables | D42: lm | E42: 100 | F42: C316L | G42: =IF(ISNA(F42),0,INDEX(IF(UPPER(RIGHT(F42,1))=Low,UnitCostLow, IF(UPPER(RIGHT(F42,1))=High,UnitCostHigh,UnitCostSpecified)),MATCH(UPPER(LEFT(F42,LEN(F42)-1)),CostCode,0))) -> 113 | H42: =G42*E42 -> 11300 | I42: 0.9 | J42: =H42*I42 -> 10170 | K42: =H42*(1-I42) -> 1130 | M42: =SUM(H42:H74) -> 216806.72
B43: construct portal plug | D43: m3 | E43: 707 | F43: C503L | G43: =IF(ISNA(F43),0,INDEX(IF(UPPER(RIGHT(F43,1))=Low,UnitCostLow, IF(UPPER(RIGHT(F43,1))=High,UnitCostHigh,UnitCostSpecified)),MATCH(UPPER(LEFT(F43,LEN(F43)-1)),CostCode,0))) -> 24.53 | H43: =G43*E43 -> 17342.71 | I43: 0.9 | J43: =H43*I43 -> 15608.439 | K43: =H43*(1-I43) -> 1734.271
B44: regrade area for positive drainage | D44: m2 | E44: 1446 | F44: C518L | G44: =IF(ISNA(F44),0,INDEX(IF(UPPER(RIGHT(F44,1))=Low,UnitCostLow, IF(UPPER(RIGHT(F44,1))=High,UnitCostHigh,UnitCostSpecified)),MATCH(UPPER(LEFT(F44,LEN(F44)-1)),CostCode,0))) -> 0.12 | H44: =G44*E44 -> 173.52 | I44: 0.5 | J44: =H44*I44 -> 86.76 | K44: =H44*(1-I44) -> 86.76
B45: DORIS NORTH VENT RAISE
B46: Remove ducts, pipes, and cables | D46: lm | E46: 100 | F46: C316L | G46: =IF(ISNA(F46),0,INDEX(IF(UPPER(RIGHT(F46,1))=Low,UnitCostLow, IF(UPPER(RIGHT(F46,1))=High,UnitCostHigh,UnitCostSpecified)),MATCH(UPPER(LEFT(F46,LEN(F46)-1)),CostCode,0))) -> 113 | H46: =G46*E46 -> 11300 | I46: 0.9 | J46: =H46*I46 -> 10170 | K46: =H46*(1-I46) -> 1130
B47: Construct a concrete cap (0.5 m thick reinforced concrete) to seal the top | D47: each | E47: 1 | F47: C603L | G47: 40000 | H47: 40000 | I47: 0.9 | J47: 36000 | K47: 4000
B48: Decommission and dismantle all ventilation and heating facilities | D48: each | E48: 4 | F48: C105L | G48: 640 | H48: 2560 | I48: 0.9 | J48: 2304 | K48: 256
B49: Prepare units for shipping off-site | D49: each | E49: 1 | F49: C108L | G49: 1325 | H49: =G49*E49 -> 1325 | I49: 0.9 | J49: =H49*I49 -> 1192.5 | K49: =H49*(1-I49) -> 132.5
B50: Haul units to Roberts Bay | D50: hrs | E50: 3 | F50: C404AL | G50: 155 | H50: 465 | I50: 0.9 | J50: 418.5 | K50: 46.5
B51: Regrade pads for positive drainage | D51: m2 | E51: 4150 | F51: C518L | G51: 0.12 | H51: 498 | I51: 0.5 | J51: 249 | K51: 249
B52: Drain and decommission Enviro Tank | D52: each | E52: 1 | F52: C203L | G52: 10000 | H52: 10000 | I52: 0.5 | J52: 5000 | K52: 5000
B53: Haul Enviro Tank to Roberts Bay | D53: hrs | E53: 1.5 | F53: C404AL | G53: 155 | H53: 232.5 | I53: 0.9 | J53: 209.25 | K53: 23.25
B54: Remove liner and cut into manageable pieces | D54: m2 | E54: 1230 | F54: C302L | G54: 0.56 | H54: 688.8 | I54: 0.9 | J54: 619.92 | K54: 68.88
B55: Load waste for transport to landfill | D55: m3 | E55: 11 | F55: C401L | G55: 13.13 | H55: 144.43 | I55: 0.9 | J55: 129.987 | K55: 14.443
B56: Haul waste to landfill | D56: m3 | E56: 11 | F56: C414L | G56: 6.34 | H56: 69.74 | I56: 0.9 | J56: 62.766 | K56: 6.974
B57: Backfill area to prevent permanent ponding | D57: m2 | E57: 4150 | F57: C505L | G57: 1.58 | H57: 6557 | I57: 0.9 | J57: 5901.3 | K57: 655.7
B58: DORIS CONNECTOR VENT RAISE
B59: Remove ducts, pipes, and cables | D59: lm | E59: 100 | F59: C316L | G59: =IF(ISNA(F59),0,INDEX(IF(UPPER(RIGHT(F59,1))=Low,UnitCostLow, IF(UPPER(RIGHT(F59,1))=High,UnitCostHigh,UnitCostSpecified)),MATCH(UPPER(LEFT(F59,LEN(F59)-1)),CostCode,0))) -> 113 | H59: =G59*E59 -> 11300 | I59: 0.9 | J59: =H59*I59 -> 10170 | K59: =H59*(1-I59) -> 1130
B60: Decommission and dismantle all ventilation facilities | D60: each | E60: 2 | F60: C105L | G60: 640 | H60: 1280 | I60: 0.9 | J60: 1152 | K60: 128
B61: Prepare units for shipping off-site | D61: each | E61: 1 | F61: C108L | G61: 1325 | H61: =G61*E61 -> 1325 | I61: 0.9 | J61: =H61*I61 -> 1192.5 | K61: =H61*(1-I61) -> 132.5
B62: Haul units to Roberts Bay | D62: hrs | E62: 1.5 | F62: C404L | G62: 6.34 | H62: 9.51 | I62: 0.9 | J62: 8.559 | K62: 0.951
B63: Construct a concrete cap (0.5 m thick reinforced concrete) to seal the top | D63: each | E63: 1 | F63: C603L | G63: 40000 | H63: 40000 | I63: 0.8 | J63: 32000 | K63: 8000
B64: Remove culvert | D64: each | E64: 1 | F64: RCULL | G64: 2625 | H64: 2625 | I64: 0.9 | J64: 2362.5 | K64: 262.5
B65: Crown road for positive drainage | D65: km | E65: 0.2 | F65: CRWNL | G65: 1190 | H65: 238 | I65: 0.5 | J65: 119 | K65: 119
B66: DORIS CENTRAL VENT RAISE
B67: Remove ducts, pipes, and cables | D67: lm | E67: 100 | F67: C316L | G67: =IF(ISNA(F67),0,INDEX(IF(UPPER(RIGHT(F67,1))=Low,UnitCostLow, IF(UPPER(RIGHT(F67,1))=High,UnitCostHigh,UnitCostSpecified)),MATCH(UPPER(LEFT(F67,LEN(F67)-1)),CostCode,0))) -> 113 | H67: =G67*E67 -> 11300 | I67: 0.9 | J67: =H67*I67 -> 10170 | K67: =H67*(1-I67) -> 1130
B68: Decommission and dismantle all ventilation facilities | D68: each | E68: 2 | F68: C105L | G68: 640 | H68: 1280 | I68: 0.9 | J68: 1152 | K68: 128
B69: Prepare units for shipping off-site | D69: each | E69: 1 | F69: C108L | G69: 1325 | H69: =G69*E69 -> 1325 | I69: 0.9 | J69: =H69*I69 -> 1192.5 | K69: =H69*(1-I69) -> 132.5
B70: Haul units to Roberts Bay | D70: hrs | E70: 1.5 | F70: C404L | G70: 6.34 | H70: 9.51 | I70: 0.9 | J70: 8.559 | K70: 0.951
B71: Construct a concrete cap (0.5 m thick reinforced concrete) to seal the top | D71: each | E71: 1 | F71: C603L | G71: 40000 | H71: 40000 | I71: 0.8 | J71: 32000 | K71: 8000
B72: Remove culvert | D72: each | E72: 1 | F72: RCULL | G72: 2625 | H72: 2625 | I72: 0 | J72: 0 | K72: 2625
B73: Crown road for positive drainage | D73: km | E73: 0.7 | F73: CRWNL | G73: 1190 | H73: 833 | I73: 0.5 | J73: 416.5 | K73: 416.5
B74: Other | F74: =NA() ->  | G74: 0 | H74: 0 | J74: 0 | K74: 0
B75: EQUIPMENT LAYDOWN AREA | M75: REAGENT PADS
B76: collect all debris | D76: m2 | E76: 21870 | F76: C310L | G76: =IF(ISNA(F76),0,INDEX(IF(UPPER(RIGHT(F76,1))=Low,UnitCostLow, IF(UPPER(RIGHT(F76,1))=High,UnitCostHigh,UnitCostSpecified)),MATCH(UPPER(LEFT(F76,LEN(F76)-1)),CostCode,0))) -> 0.18 | H76: =G76*E76 -> 3936.6 | I76: 0.9 | J76: =H76*I76 -> 3542.94 | K76: =H76*(1-I76) -> 393.66 | M76: =SUM(H76:H101) -> 31919.292
B77: load waste for transport to landfill | D77: m3 | E77: 20 | F77: C401L | G77: =IF(ISNA(F77),0,INDEX(IF(UPPER(RIGHT(F77,1))=Low,UnitCostLow, IF(UPPER(RIGHT(F77,1))=High,UnitCostHigh,UnitCostSpecified)),MATCH(UPPER(LEFT(F77,LEN(F77)-1)),CostCode,0))) -> 13.13 | H77: =G77*E77 -> 262.6 | I77: 0.9 | J77: =H77*I77 -> 236.34 | K77: =H77*(1-I77) -> 26.26
B78: regrade area for positive drainage | D78: m2 | E78: 21870 | F78: C518L | G78: =IF(ISNA(F78),0,INDEX(IF(UPPER(RIGHT(F78,1))=Low,UnitCostLow, IF(UPPER(RIGHT(F78,1))=High,UnitCostHigh,UnitCostSpecified)),MATCH(UPPER(LEFT(F78,LEN(F78)-1)),CostCode,0))) -> 0.12 | H78: =G78*E78 -> 2624.4 | I78: 0.5 | J78: =H78*I78 -> 1312.2 | K78: =H78*(1-I78) -> 1312.2
B79: haul waste to Landfill | D79: m3 | E79: 20 | F79: C417L | G79: =IF(ISNA(F79),0,INDEX(IF(UPPER(RIGHT(F79,1))=Low,UnitCostLow, IF(UPPER(RIGHT(F79,1))=High,UnitCostHigh,UnitCostSpecified)),MATCH(UPPER(LEFT(F79,LEN(F79)-1)),CostCode,0))) -> 6.34 | H79: =G79*E79 -> 126.8 | I79: 0.9 | J79: =H79*I79 -> 114.12 | K79: =H79*(1-I79) -> 12.68
B80: Other | F80: =NA() ->  | G80: =IF(ISNA(F80),0,INDEX(IF(UPPER(RIGHT(F80,1))=Low,UnitCostLow, IF(UPPER(RIGHT(F80,1))=High,UnitCostHigh,UnitCostSpecified)),MATCH(UPPER(LEFT(F80,LEN(F80)-1)),CostCode,0))) -> 0 | H80: =G80*E80 -> 0 | J80: =H80*I80 -> 0 | K80: =H80*(1-I80) -> 0
B81: MATERIALS LAYDOWN AREA
B82: collect all debris | D82: m2 | E82: 33399 | F82: C310L | G82: =IF(ISNA(F82),0,INDEX(IF(UPPER(RIGHT(F82,1))=Low,UnitCostLow, IF(UPPER(RIGHT(F82,1))=High,UnitCostHigh,UnitCostSpecified)),MATCH(UPPER(LEFT(F82,LEN(F82)-1)),CostCode,0))) -> 0.18 | H82: =G82*E82 -> 6011.82 | I82: 0.9 | J82: =H82*I82 -> 5410.638 | K82: =H82*(1-I82) -> 601.182
B83: load waste to ship to Landfill | D83: m3 | E83: 20 | F83: C401L | G83: =IF(ISNA(F83),0,INDEX(IF(UPPER(RIGHT(F83,1))=Low,UnitCostLow, IF(UPPER(RIGHT(F83,1))=High,UnitCostHigh,UnitCostSpecified)),MATCH(UPPER(LEFT(F83,LEN(F83)-1)),CostCode,0))) -> 13.13 | H83: =G83*E83 -> 262.6 | I83: 0.9 | J83: =H83*I83 -> 236.34 | K83: =H83*(1-I83) -> 26.26
B84: regrade area for positive drainage | D84: m2 | E84: 33399 | F84: C518L | G84: =IF(ISNA(F84),0,INDEX(IF(UPPER(RIGHT(F84,1))=Low,UnitCostLow, IF(UPPER(RIGHT(F84,1))=High,UnitCostHigh,UnitCostSpecified)),MATCH(UPPER(LEFT(F84,LEN(F84)-1)),CostCode,0))) -> 0.12 | H84: =G84*E84 -> 4007.88 | I84: 0.5 | J84: =H84*I84 -> 2003.94 | K84: =H84*(1-I84) -> 2003.94
B85: haul waste to Landfill | D85: m3 | E85: 20 | F85: C417L | G85: =IF(ISNA(F85),0,INDEX(IF(UPPER(RIGHT(F85,1))=Low,UnitCostLow, IF(UPPER(RIGHT(F85,1))=High,UnitCostHigh,UnitCostSpecified)),MATCH(UPPER(LEFT(F85,LEN(F85)-1)),CostCode,0))) -> 6.34 | H85: =G85*E85 -> 126.8 | I85: 0.9 | J85: =H85*I85 -> 114.12 | K85: =H85*(1-I85) -> 12.68
B86: Other | F86: =NA() ->  | G86: =IF(ISNA(F86),0,INDEX(IF(UPPER(RIGHT(F86,1))=Low,UnitCostLow, IF(UPPER(RIGHT(F86,1))=High,UnitCostHigh,UnitCostSpecified)),MATCH(UPPER(LEFT(F86,LEN(F86)-1)),CostCode,0))) -> 0 | H86: =G86*E86 -> 0 | J86: =H86*I86 -> 0 | K86: =H86*(1-I86) -> 0
B87: AMMONIUM NITARATE STORAGE BUILDING
B88: remove and stockpile liner protection cover | D88: m3 | E88: 1505 | F88: SB1L | G88: =IF(ISNA(F88),0,INDEX(IF(UPPER(RIGHT(F88,1))=Low,UnitCostLow, IF(UPPER(RIGHT(F88,1))=High,UnitCostHigh,UnitCostSpecified)),MATCH(UPPER(LEFT(F88,LEN(F88)-1)),CostCode,0))) -> 4.3 | H88: =G88*E88 -> 6471.5 | I88: 0.9 | J88: =H88*I88 -> 5824.35 | K88: =H88*(1-I88) -> 647.15
B89: clean liner | D89: m2 | E89: 2800 | F89: C210L | G89: =IF(ISNA(F89),0,INDEX(IF(UPPER(RIGHT(F89,1))=Low,UnitCostLow, IF(UPPER(RIGHT(F89,1))=High,UnitCostHigh,UnitCostSpecified)),MATCH(UPPER(LEFT(F89,LEN(F89)-1)),CostCode,0))) -> 0.39 | H89: =G89*E89 -> 1092 | I89: 0.5 | J89: =H89*I89 -> 546 | K89: =H89*(1-I89) -> 546
B90: remove and cut liner into manageable pieces | D90: m2 | E90: 2800 | F90: C302L | G90: 0.56 | H90: 1568 | I90: 0.9 | J90: 1411.2 | K90: 156.8
B91: load waste for transport to landfill | D91: m3 | E91: 25.2 | F91: C401L | G91: 13.13 | H91: 330.876 | I91: 0.9 | J91: 297.7884 | K91: 33.0876
B92: Haul waste to Landfill | D92: m3 | E92: 25.2 | F92: C417L | G92: 6.34 | H92: 159.768 | I92: 0.9 | J92: 143.7912 | K92: 15.9768
B93: level containment berms | D93: m2 | E93: 32 | F93: C505L | G93: 1.58 | H93: 50.56 | I93: 0.5 | J93: 25.28 | K93: 25.28
B94: regrade area for positive drainage | D94: m2 | E94: 3858 | F94: C518L | G94: 0.12 | H94: 462.96 | I94: 0.5 | J94: 231.48 | K94: 231.48
B95: Other | F95: =NA() ->  | G95: 0 | H95: 0 | J95: 0 | K95: 0
B96: EXPLORATION DRILLING SUPPORT BUILDING
B97: Decommission electrical, mechanical, heating | D97: each | E97: 2 | F97: C105L | G97: =IF(ISNA(F97),0,INDEX(IF(UPPER(RIGHT(F97,1))=Low,UnitCostLow, IF(UPPER(RIGHT(F97,1))=High,UnitCostHigh,UnitCostSpecified)),MATCH(UPPER(LEFT(F97,LEN(F97)-1)),CostCode,0))) -> 640 | H97: =G97*E97 -> 1280 | I97: 0.9 | J97: =H97*I97 -> 1152 | K97: =H97*(1-I97) -> 128
B98: demolish building (tent structure) | D98: m3 | E98: 149.6 | F98: C305L | G98: =IF(ISNA(F98),0,INDEX(IF(UPPER(RIGHT(F98,1))=Low,UnitCostLow, IF(UPPER(RIGHT(F98,1))=High,UnitCostHigh,UnitCostSpecified)),MATCH(UPPER(LEFT(F98,LEN(F98)-1)),CostCode,0))) -> 19 | H98: =G98*E98 -> 2842.4 | I98: 0.9 | J98: =H98*I98 -> 2558.16 | K98: =H98*(1-I98) -> 284.24
B99: collect all debris | D99: m2 | E99: 335 | F99: C310L | G99: =IF(ISNA(F99),0,INDEX(IF(UPPER(RIGHT(F99,1))=Low,UnitCostLow, IF(UPPER(RIGHT(F99,1))=High,UnitCostHigh,UnitCostSpecified)),MATCH(UPPER(LEFT(F99,LEN(F99)-1)),CostCode,0))) -> 0.18 | H99: =G99*E99 -> 60.3 | I99: 0.9 | J99: =H99*I99 -> 54.27 | K99: =H99*(1-I99) -> 6.03
B100: load waste for transport to landfill | D100: m3 | E100: 12.4 | F100: C401L | G100: =IF(ISNA(F100),0,INDEX(IF(UPPER(RIGHT(F100,1))=Low,UnitCostLow, IF(UPPER(RIGHT(F100,1))=High,UnitCostHigh,UnitCostSpecified)),MATCH(UPPER(LEFT(F100,LEN(F100)-1)),CostCode,0))) -> 13.13 | H100: =G100*E100 -> 162.812 | I100: 0.9 | J100: =H100*I100 -> 146.5308 | K100: =H100*(1-I100) -> 16.2812
B101: haul waste to Landfill | D101: m3 | E101: 12.4 | F101: C417L | G101: =IF(ISNA(F101),0,INDEX(IF(UPPER(RIGHT(F101,1))=Low,UnitCostLow, IF(UPPER(RIGHT(F101,1))=High,UnitCostHigh,UnitCostSpecified)),MATCH(UPPER(LEFT(F101,LEN(F101)-1)),CostCode,0))) -> 6.34 | H101: =G101*E101 -> 78.616 | I101: 0.9 | J101: =H101*I101 -> 70.7544 | K101: =H101*(1-I101) -> 7.8616
G102: Total | H102: =SUM(H5:H101)+0.0001 -> 248726.0121 | J102: =SUM(J5:J101) -> 205498.7828 | K102: =SUM(K5:K101) -> 43227.2292
G103: % of Total | J103: =J102/H102 -> 0.8262054341 | K103: =K102/H102 -> 0.1737945655
... 1 more rows

Sheet Tailings
A1: 1 | B1: Tailings Impoundment Name: | C1: North and South Dams / Interim Dyke
B3: ACTIVITY/MATERIAL | C3: Notes | D3: Units | E3: Quantity | F3: Cost Code | G3: Unit Cost | H3: Cost | I3: % Land | J3: Land Cost | K3: Water Cost
B4: CONTROL ACCESS
B5: Fence | D5: m | F5: =NA() ->  | G5: =IF(ISNA(F5),0,INDEX(IF(UPPER(RIGHT(F5,1))=Low,UnitCostLow, IF(UPPER(RIGHT(F5,1))=High,UnitCostHigh,UnitCostSpecified)),MATCH(UPPER(LEFT(F5,LEN(F5)-1)),CostCode,0))) -> 0 | H5: =G5*E5 -> 0 | J5: =H5*I5 -> 0 | K5: =+H5*(1-I5) -> 0
B6: Signs | D6: each | F6: =NA() ->  | G6: =IF(ISNA(F6),0,INDEX(IF(UPPER(RIGHT(F6,1))=Low,UnitCostLow, IF(UPPER(RIGHT(F6,1))=High,UnitCostHigh,UnitCostSpecified)),MATCH(UPPER(LEFT(F6,LEN(F6)-1)),CostCode,0))) -> 0 | H6: =G6*E6 -> 0 | J6: =H6*I6 -> 0 | K6: =+H6*(1-I6) -> 0
B7: Berm | D7: m3 | F7: =NA() ->  | G7: =IF(ISNA(F7),0,INDEX(IF(UPPER(RIGHT(F7,1))=Low,UnitCostLow, IF(UPPER(RIGHT(F7,1))=High,UnitCostHigh,UnitCostSpecified)),MATCH(UPPER(LEFT(F7,LEN(F7)-1)),CostCode,0))) -> 0 | H7: =G7*E7 -> 0 | J7: =H7*I7 -> 0 | K7: =+H7*(1-I7) -> 0
B8: Block roads | D8: m3 | F8: =NA() ->  | G8: =IF(ISNA(F8),0,INDEX(IF(UPPER(RIGHT(F8,1))=Low,UnitCostLow, IF(UPPER(RIGHT(F8,1))=High,UnitCostHigh,UnitCostSpecified)),MATCH(UPPER(LEFT(F8,LEN(F8)-1)),CostCode,0))) -> 0 | H8: =G8*E8 -> 0 | J8: =H8*I8 -> 0 | K8: =+H8*(1-I8) -> 0
B9: Crown Access Roads | D9: km | E9: 0.2 | F9: CRWNL | G9: =IF(ISNA(F9),0,INDEX(IF(UPPER(RIGHT(F9,1))=Low,UnitCostLow, IF(UPPER(RIGHT(F9,1))=High,UnitCostHigh,UnitCostSpecified)),MATCH(UPPER(LEFT(F9,LEN(F9)-1)),CostCode,0))) -> 1190 | H9: =G9*E9 -> 238 | I9: 0.5 | J9: =H9*I9 -> 119 | K9: =+H9*(1-I9) -> 119
B10: STABILIZE EMBANKMENT(S)
B11: Breach North dam by cutting a 20 m slot down to original ground (drill and blast) | D11: m3 | E11: 7028 | F11: RB1H | G11: =IF(ISNA(F11),0,INDEX(IF(UPPER(RIGHT(F11,1))=Low,UnitCostLow, IF(UPPER(RIGHT(F11,1))=High,UnitCostHigh,UnitCostSpecified)),MATCH(UPPER(LEFT(F11,LEN(F11)-1)),CostCode,0))) -> 31.99 | H11: =G11*E11 -> 224825.72 | I11: 0.5 | J11: =H11*I11 -> 112412.86 | K11: =+H11*(1-I11) -> 112412.86
B12: Load and haul material | D12: m3 | E12: 31021.1 | F12: SB3H | G12: 8.9 | H12: 276087.79 | I12: 0.5 | J12: 138043.895 | K12: 138043.895
B13: Clad the cut core faces for thermal protection | D13: m3 | E13: 614.2 | F13: RR2H | G13: 20.65 | H13: 12683.23 | I13: 0.5 | J13: 6341.615 | K13: 6341.615
B14: Vegetate | D14: ha | F14: =NA() ->  | G14: 0 | H14: 0 | J14: 0 | K14: 0
B15: Raise crest | D15: m3 | F15: =NA() ->  | G15: 0 | H15: 0 | J15: 0 | K15: 0
B16: Flatten slopes | D16: m3 | F16: =NA() ->  | G16: 0 | H16: 0 | J16: 0 | K16: 0
B17: SHORELINE PROTECTION
B18: Install separation geotextile | D18: m2 | E18: 54340 | F18: GSTH | G18: =IF(ISNA(F18),0,INDEX(IF(UPPER(RIGHT(F18,1))=Low,UnitCostLow, IF(UPPER(RIGHT(F18,1))=High,UnitCostHigh,UnitCostSpecified)),MATCH(UPPER(LEFT(F18,LEN(F18)-1)),CostCode,0))) -> 18 | H18: =G18*E18 -> 978120 | I18: 0.95 | J18: =H18*I18 -> 929214 | K18: =+H18*(1-I18) -> 48906
B19: Haul and place riprap to prevent erosion | D19: m3 | E19: 24700 | F19: SBSH | G19: =IF(ISNA(F19),0,INDEX(IF(UPPER(RIGHT(F19,1))=Low,UnitCostLow, IF(UPPER(RIGHT(F19,1))=High,UnitCostHigh,UnitCostSpecified)),MATCH(UPPER(LEFT(F19,LEN(F19)-1)),CostCode,0))) -> 6.3 | H19: =G19*E19 -> 155610 | I19: 0.95 | J19: =H19*I19 -> 147829.5 | K19: =+H19*(1-I19) -> 7780.5
B20: Recontour Interim Dyke Crest | D20: m3 | E20: 2000 | F20: DRH | G20: =IF(ISNA(F20),0,INDEX(IF(UPPER(RIGHT(F20,1))=Low,UnitCostLow, IF(UPPER(RIGHT(F20,1))=High,UnitCostHigh,UnitCostSpecified)),MATCH(UPPER(LEFT(F20,LEN(F20)-1)),CostCode,0))) -> 2.4 | H20: 4800 | I20: 0.5 | J20: =H20*I20 -> 2400 | K20: =+H20*(1-I20) -> 2400
B21: COVER TAILINGS
B22: Grade/shape tailings surface | D22: m3 | F22: =NA() ->  | G22: =IF(ISNA(F22),0,INDEX(IF(UPPER(RIGHT(F22,1))=Low,UnitCostLow, IF(UPPER(RIGHT(F22,1))=High,UnitCostHigh,UnitCostSpecified)),MATCH(UPPER(LEFT(F22,LEN(F22)-1)),CostCode,0))) -> 0 | H22: =G22*E22 -> 0 | J22: =H22*I22 -> 0 | K22: =+H22*(1-I22) -> 0
B23: Liner bedding | D23: m3 | F23: =NA() ->  | G23: 0 | H23: =G23*E23 -> 0 | J23: =H23*I23 -> 0 | K23: =+H23*(1-I23) -> 0
B24: Grade/shape tailings surface | D24: m2 | E24: 440000 | F24: SBTL | G24: 1.35 | H24: =G24*E24 -> 594000 | I24: 0.5 | J24: =H24*I24 -> 297000 | K24: =+H24*(1-I24) -> 297000
B25: Supply geotextile/geosynthetic | D25: m2 | F25: =NA() ->  | G25: 0 | H25: 0 | J25: 0 | K25: 0
B26: Install geotextile/geosynthetic | D26: m2 | F26: =NA() ->  | G26: 0 | H26: =G26*E26 -> 0 | J26: =H26*I26 -> 0 | K26: =+H26*(1-I26) -> 0
B27: Soil cover | D27: m3 | F27: =NA() ->  | G27: 0 | H27: 0 | J27: 0 | K27: 0
B28: Produce ROQ (quarry drill and blast | D28: m3 | E28: 132000 | F28: RB1H | G28: 31.99 | H28: 4222680 | I28: 0.5 | J28: 2111340 | K28: 2111340
B29: LHDP ROQ (0.3m thick cover) | D29: m3 | E29: 132000 | F29: SBSH | G29: 6.3 | H29: =G29*E29 -> 831600 | I29: 0.5 | J29: =H29*I29 -> 415800 | K29: =+H29*(1-I29) -> 415800
B30: Vegetate | D30: m2 | F30: =NA() ->  | G30: 0 | H30: =G30*E30 -> 0 | J30: =H30*I30 -> 0 | K30: =+H30*(1-I30) -> 0
B31: Other | F31: =NA() ->  | G31: 0 | H31: =G31*E31 -> 0 | J31: =H31*I31 -> 0 | K31: =+H31*(1-I31) -> 0
B32: BURY PAG ROCK
B33: Relocate PAG rock | D33: m3 | F33: =NA() ->  | G33: =IF(ISNA(F33),0,INDEX(IF(UPPER(RIGHT(F33,1))=Low,UnitCostLow, IF(UPPER(RIGHT(F33,1))=High,UnitCostHigh,UnitCostSpecified)),MATCH(UPPER(LEFT(F33,LEN(F33)-1)),CostCode,0))) -> 0 | H33: =G33*E33 -> 0 | J33: =H33*I33 -> 0 | K33: =+H33*(1-I33) -> 0
B34: Place cover over PAG rock | D34: m3 | F34: =NA() ->  | G34: =IF(ISNA(F34),0,INDEX(IF(UPPER(RIGHT(F34,1))=Low,UnitCostLow, IF(UPPER(RIGHT(F34,1))=High,UnitCostHigh,UnitCostSpecified)),MATCH(UPPER(LEFT(F34,LEN(F34)-1)),CostCode,0))) -> 0 | H34: =G34*E34 -> 0 | J34: =H34*I34 -> 0 | K34: =+H34*(1-I34) -> 0
B35: Raise crest of dam | D35: m3 | F35: =NA() ->  | G35: =IF(ISNA(F35),0,INDEX(IF(UPPER(RIGHT(F35,1))=Low,UnitCostLow, IF(UPPER(RIGHT(F35,1))=High,UnitCostHigh,UnitCostSpecified)),MATCH(UPPER(LEFT(F35,LEN(F35)-1)),CostCode,0))) -> 0 | H35: =G35*E35 -> 0 | J35: =H35*I35 -> 0 | K35: =+H35*(1-I35) -> 0
B36: Other | F36: =NA() ->  | G36: =IF(ISNA(F36),0,INDEX(IF(UPPER(RIGHT(F36,1))=Low,UnitCostLow, IF(UPPER(RIGHT(F36,1))=High,UnitCostHigh,UnitCostSpecified)),MATCH(UPPER(LEFT(F36,LEN(F36)-1)),CostCode,0))) -> 0 | H36: =G36*E36 -> 0 | J36: =H36*I36 -> 0 | K36: =+H36*(1-I36) -> 0
B37: STABILIZE DECANT SYSTEM
B38: Excavate and replace | D38: m3 | F38: =NA() ->  | G38: =IF(ISNA(F38),0,INDEX(IF(UPPER(RIGHT(F38,1))=Low,UnitCostLow, IF(UPPER(RIGHT(F38,1))=High,UnitCostHigh,UnitCostSpecified)),MATCH(UPPER(LEFT(F38,LEN(F38)-1)),CostCode,0))) -> 0 | H38: =G38*E38 -> 0 | J38: =H38*I38 -> 0 | K38: =+H38*(1-I38) -> 0
B39: Plug/backfill with concrete or clay | D39: m3 | F39: =NA() ->  | G39: =IF(ISNA(F39),0,INDEX(IF(UPPER(RIGHT(F39,1))=Low,UnitCostLow, IF(UPPER(RIGHT(F39,1))=High,UnitCostHigh,UnitCostSpecified)),MATCH(UPPER(LEFT(F39,LEN(F39)-1)),CostCode,0))) -> 0 | H39: =G39*E39 -> 0 | J39: =H39*I39 -> 0 | K39: =+H39*(1-I39) -> 0
B40: Other | F40: =NA() ->  | G40: =IF(ISNA(F40),0,INDEX(IF(UPPER(RIGHT(F40,1))=Low,UnitCostLow, IF(UPPER(RIGHT(F40,1))=High,UnitCostHigh,UnitCostSpecified)),MATCH(UPPER(LEFT(F40,LEN(F40)-1)),CostCode,0))) -> 0 | H40: =G40*E40 -> 0 | J40: =H40*I40 -> 0 | K40: =+H40*(1-I40) -> 0
B41: REMOVE TAILINGS DISCHARGE
B42: Cyclones | D42: m3 | F42: =NA() ->  | G42: =IF(ISNA(F42),0,INDEX(IF(UPPER(RIGHT(F42,1))=Low,UnitCostLow, IF(UPPER(RIGHT(F42,1))=High,UnitCostHigh,UnitCostSpecified)),MATCH(UPPER(LEFT(F42,LEN(F42)-1)),CostCode,0))) -> 0 | H42: =G42*E42 -> 0 | J42: =H42*I42 -> 0 | K42: =+H42*(1-I42) -> 0
B43: Pipe | D43: m3 | F43: =NA() ->  | G43: =IF(ISNA(F43),0,INDEX(IF(UPPER(RIGHT(F43,1))=Low,UnitCostLow, IF(UPPER(RIGHT(F43,1))=High,UnitCostHigh,UnitCostSpecified)),MATCH(UPPER(LEFT(F43,LEN(F43)-1)),CostCode,0))) -> 0 | H43: =G43*E43 -> 0 | J43: =H43*I43 -> 0 | K43: =+H43*(1-I43) -> 0
B44: Remove reclaim barge | D44: allow | F44: =NA() ->  | G44: =IF(ISNA(F44),0,INDEX(IF(UPPER(RIGHT(F44,1))=Low,UnitCostLow, IF(UPPER(RIGHT(F44,1))=High,UnitCostHigh,UnitCostSpecified)),MATCH(UPPER(LEFT(F44,LEN(F44)-1)),CostCode,0))) -> 0 | H44: =G44*E44 -> 0 | J44: =H44*I44 -> 0 | K44: =+H44*(1-I44) -> 0
B45: CONSTRUCT DIVERSION DITCHES
B46: Excavate ditches -soil | D46: m3 | F46: =NA() ->  | G46: =IF(ISNA(F46),0,INDEX(IF(UPPER(RIGHT(F46,1))=Low,UnitCostLow, IF(UPPER(RIGHT(F46,1))=High,UnitCostHigh,UnitCostSpecified)),MATCH(UPPER(LEFT(F46,LEN(F46)-1)),CostCode,0))) -> 0 | H46: =G46*E46 -> 0 | J46: =H46*I46 -> 0 | K46: =+H46*(1-I46) -> 0
B47: Excavate ditches -rock | D47: m3 | F47: =NA() ->  | G47: =IF(ISNA(F47),0,INDEX(IF(UPPER(RIGHT(F47,1))=Low,UnitCostLow, IF(UPPER(RIGHT(F47,1))=High,UnitCostHigh,UnitCostSpecified)),MATCH(UPPER(LEFT(F47,LEN(F47)-1)),CostCode,0))) -> 0 | H47: =G47*E47 -> 0 | J47: =H47*I47 -> 0 | K47: =+H47*(1-I47) -> 0
B48: Rip rap in channel base | D48: m3 | F48: =NA() ->  | G48: =IF(ISNA(F48),0,INDEX(IF(UPPER(RIGHT(F48,1))=Low,UnitCostLow, IF(UPPER(RIGHT(F48,1))=High,UnitCostHigh,UnitCostSpecified)),MATCH(UPPER(LEFT(F48,LEN(F48)-1)),CostCode,0))) -> 0 | H48: =G48*E48 -> 0 | J48: =H48*I48 -> 0 | K48: =+H48*(1-I48) -> 0
B49: FLOOD TAILINGS
B50: Doze tailings to final contour | D50: m3 | F50: =NA() ->  | G50: =IF(ISNA(F50),0,INDEX(IF(UPPER(RIGHT(F50,1))=Low,UnitCostLow, IF(UPPER(RIGHT(F50,1))=High,UnitCostHigh,UnitCostSpecified)),MATCH(UPPER(LEFT(F50,LEN(F50)-1)),CostCode,0))) -> 0 | H50: =G50*E50 -> 0 | J50: =H50*I50 -> 0 | K50: =+H50*(1-I50) -> 0
B51: Raise crest of dam | D51: m3 | E51: 60 | F51: =NA() ->  | G51: =IF(ISNA(F51),0,INDEX(IF(UPPER(RIGHT(F51,1))=Low,UnitCostLow, IF(UPPER(RIGHT(F51,1))=High,UnitCostHigh,UnitCostSpecified)),MATCH(UPPER(LEFT(F51,LEN(F51)-1)),CostCode,0))) -> 0 | H51: =G51*E51 -> 0 | J51: =H51*I51 -> 0 | K51: =+H51*(1-I51) -> 0
B52: Other | E52: 60 | F52: =NA() ->  | G52: =IF(ISNA(F52),0,INDEX(IF(UPPER(RIGHT(F52,1))=Low,UnitCostLow, IF(UPPER(RIGHT(F52,1))=High,UnitCostHigh,UnitCostSpecified)),MATCH(UPPER(LEFT(F52,LEN(F52)-1)),CostCode,0))) -> 0 | H52: =G52*E52 -> 0 | J52: =H52*I52 -> 0 | K52: =+H52*(1-I52) -> 0
B53: UPGRADE SPILLWAY
B54: Excavate channel, rock | D54: m3 | F54: =NA() ->  | G54: =IF(ISNA(F54),0,INDEX(IF(UPPER(RIGHT(F54,1))=Low,UnitCostLow, IF(UPPER(RIGHT(F54,1))=High,UnitCostHigh,UnitCostSpecified)),MATCH(UPPER(LEFT(F54,LEN(F54)-1)),CostCode,0))) -> 0 | H54: =G54*E54 -> 0 | J54: =H54*I54 -> 0 | K54: =+H54*(1-I54) -> 0
B55: Excavate channel, soil | D55: m3 | F55: =NA() ->  | G55: =IF(ISNA(F55),0,INDEX(IF(UPPER(RIGHT(F55,1))=Low,UnitCostLow, IF(UPPER(RIGHT(F55,1))=High,UnitCostHigh,UnitCostSpecified)),MATCH(UPPER(LEFT(F55,LEN(F55)-1)),CostCode,0))) -> 0 | H55: =G55*E55 -> 0 | J55: =H55*I55 -> 0 | K55: =+H55*(1-I55) -> 0
B56: Concrete | D56: m3 | F56: =NA() ->  | G56: =IF(ISNA(F56),0,INDEX(IF(UPPER(RIGHT(F56,1))=Low,UnitCostLow, IF(UPPER(RIGHT(F56,1))=High,UnitCostHigh,UnitCostSpecified)),MATCH(UPPER(LEFT(F56,LEN(F56)-1)),CostCode,0))) -> 0 | H56: =G56*E56 -> 0 | J56: =H56*I56 -> 0 | K56: =+H56*(1-I56) -> 0
B57: Rip rap | D57: m3 | F57: =NA() ->  | G57: =IF(ISNA(F57),0,INDEX(IF(UPPER(RIGHT(F57,1))=Low,UnitCostLow, IF(UPPER(RIGHT(F57,1))=High,UnitCostHigh,UnitCostSpecified)),MATCH(UPPER(LEFT(F57,LEN(F57)-1)),CostCode,0))) -> 0 | H57: =G57*E57 -> 0 | J57: =H57*I57 -> 0 | K57: =+H57*(1-I57) -> 0
B58: Other | F58: =NA() ->  | G58: =IF(ISNA(F58),0,INDEX(IF(UPPER(RIGHT(F58,1))=Low,UnitCostLow, IF(UPPER(RIGHT(F58,1))=High,UnitCostHigh,UnitCostSpecified)),MATCH(UPPER(LEFT(F58,LEN(F58)-1)),CostCode,0))) -> 0 | H58: =G58*E58 -> 0 | J58: =H58*I58 -> 0 | K58: =+H58*(1-I58) -> 0
B59: CONSTRUCT SEEPAGE COLLECTION POND
B60: Excavate seepage collection pond | D60: m3 | F60: =NA() ->  | G60: =IF(ISNA(F60),0,INDEX(IF(UPPER(RIGHT(F60,1))=Low,UnitCostLow, IF(UPPER(RIGHT(F60,1))=High,UnitCostHigh,UnitCostSpecified)),MATCH(UPPER(LEFT(F60,LEN(F60)-1)),CostCode,0))) -> 0 | H60: =G60*E60 -> 0 | J60: =H60*I60 -> 0 | K60: =+H60*(1-I60) -> 0
B61: Doze & spread excavated material | D61: m3 | F61: =NA() ->  | G61: 0 | H61: 0 | J61: 0 | K61: 0
B62: Vegetate spread material | D62: ha | F62: =NA() ->  | G62: 0 | H62: 0 | J62: 0 | K62: 0
B63: Bedding layer | D63: m3 | F63: =NA() ->  | G63: 0 | H63: 0 | J63: 0 | K63: 0
B64: Supply geomembrane | D64: m2 | F64: =NA() ->  | G64: 0 | H64: 0 | J64: 0 | K64: 0
B65: Install geomembrane | D65: m2 | F65: =NA() ->  | G65: 0 | H65: 0 | J65: 0 | K65: 0
B66: Erosion protection layer | D66: m3 | F66: =NA() ->  | G66: 0 | H66: 0 | J66: 0 | K66: 0
B67: INSTALL GROUNDWATER COLLECTION SYSTEM
B68: Excavate/install sumps | D68: m3 | F68: =NA() ->  | G68: =IF(ISNA(F68),0,INDEX(IF(UPPER(RIGHT(F68,1))=Low,UnitCostLow, IF(UPPER(RIGHT(F68,1))=High,UnitCostHigh,UnitCostSpecified)),MATCH(UPPER(LEFT(F68,LEN(F68)-1)),CostCode,0))) -> 0 | H68: =G68*E68 -> 0 | J68: =H68*I68 -> 0 | K68: =+H68*(1-I68) -> 0
B69: Install pumping wells | D69: m3 | F69: =NA() ->  | G69: =IF(ISNA(F69),0,INDEX(IF(UPPER(RIGHT(F69,1))=Low,UnitCostLow, IF(UPPER(RIGHT(F69,1))=High,UnitCostHigh,UnitCostSpecified)),MATCH(UPPER(LEFT(F69,LEN(F69)-1)),CostCode,0))) -> 0 | H69: =G69*E69 -> 0 | J69: =H69*I69 -> 0 | K69: =+H69*(1-I69) -> 0
B70: Install pumps/pipelines/power supply | D70: LS | F70: =NA() ->  | G70: =IF(ISNA(F70),0,INDEX(IF(UPPER(RIGHT(F70,1))=Low,UnitCostLow, IF(UPPER(RIGHT(F70,1))=High,UnitCostHigh,UnitCostSpecified)),MATCH(UPPER(LEFT(F70,LEN(F70)-1)),CostCode,0))) -> 0 | H70: =G70*E70 -> 0 | J70: =H70*I70 -> 0 | K70: =+H70*(1-I70) -> 0
B71: SPECIALIZED ITEMS
B72: Remove thermosyphons radiators and towers | D72: each | E72: 12 | F72: THRL | G72: =IF(ISNA(F72),0,INDEX(IF(UPPER(RIGHT(F72,1))=Low,UnitCostLow, IF(UPPER(RIGHT(F72,1))=High,UnitCostHigh,UnitCostSpecified)),MATCH(UPPER(LEFT(F72,LEN(F72)-1)),CostCode,0))) -> 1000 | H72: =G72*E72 -> 12000 | I72: 0.15 | J72: =H72*I72 -> 1800 | K72: =+H72*(1-I72) -> 10200
B73: Install permanent instrumentation, supply & technician | D73: each | F73: =NA() ->  | G73: =IF(ISNA(F73),0,INDEX(IF(UPPER(RIGHT(F73,1))=Low,UnitCostLow, IF(UPPER(RIGHT(F73,1))=High,UnitCostHigh,UnitCostSpecified)),MATCH(UPPER(LEFT(F73,LEN(F73)-1)),CostCode,0))) -> 0 | H73: =G73*E73 -> 0 | J73: =H73*I73 -> 0 | K73: =+H73*(1-I73) -> 0
B74: Install permanent instrumentation, drilling | D74: each | F74: =NA() ->  | G74: =IF(ISNA(F74),0,INDEX(IF(UPPER(RIGHT(F74,1))=Low,UnitCostLow, IF(UPPER(RIGHT(F74,1))=High,UnitCostHigh,UnitCostSpecified)),MATCH(UPPER(LEFT(F74,LEN(F74)-1)),CostCode,0))) -> 0 | H74: =G74*E74 -> 0 | K74: =+H74*(1-I74) -> 0
B75: TREAT SEEPAGE - see "Water Management" and "Water Treatment"
B76: TREAT SUPERNATANT
B77: Pump water (to pit, U/G) | D77: m3 | F77: =NA() ->  | G77: =IF(ISNA(F77),0,INDEX(IF(UPPER(RIGHT(F77,1))=Low,UnitCostLow, IF(UPPER(RIGHT(F77,1))=High,UnitCostHigh,UnitCostSpecified)),MATCH(UPPER(LEFT(F77,LEN(F77)-1)),CostCode,0))) -> 0 | H77: =G77*E77 -> 0 | J77: =H77*I77 -> 0 | K77: =+H77*(1-I77) -> 0
B78: Equipment maintenance and parts | D78: allow | F78: =NA() ->  | G78: =IF(ISNA(F78),0,INDEX(IF(UPPER(RIGHT(F78,1))=Low,UnitCostLow, IF(UPPER(RIGHT(F78,1))=High,UnitCostHigh,UnitCostSpecified)),MATCH(UPPER(LEFT(F78,LEN(F78)-1)),CostCode,0))) -> 0 | H78: =G78*E78 -> 0 | J78: =H78*I78 -> 0 | K78: =+H78*(1-I78) -> 0
B79: Supply reagents | D79: tonne | F79: =NA() ->  | G79: =IF(ISNA(F79),0,INDEX(IF(UPPER(RIGHT(F79,1))=Low,UnitCostLow, IF(UPPER(RIGHT(F79,1))=High,UnitCostHigh,UnitCostSpecified)),MATCH(UPPER(LEFT(F79,LEN(F79)-1)),CostCode,0))) -> 0 | H79: =G79*E79 -> 0 | J79: =H79*I79 -> 0 | K79: =+H79*(1-I79) -> 0
G80: Annual treatment costs | H80: =SUM(H77:H79)+0.0001 -> 0.0001
B81: Number of years of treatment | D81: years
G82: Total treatment costs | H82: =H80*E81 -> 0 | K82: =H82 -> 0
G83: Total | H83: =SUM(H5:H74)+H82+0.0001 -> 7312644.74 | J83: =SUM(J5:J74)+J82 -> 4162300.87 | K83: =SUM(K5:K74)+K82 -> 3150343.87
G84: % of Total | J84: =J83/H83 -> 0.5691922715 | K84: =K83/H83 -> 0.4308077285
B257: TREAT SEEPAGE - see "Water Management" and "Water Treatment"
B258: TREAT SUPERNATANT
B259: Pump water (to pit, U/G) | D259: m3 | F259: =NA() ->  | G259: =IF(ISNA(F259),0,INDEX(IF(UPPER(RIGHT(F259,1))=Low,UnitCostLow, IF(UPPER(RIGHT(F259,1))=High,UnitCostHigh,UnitCostSpecified)),MATCH(UPPER(LEFT(F259,LEN(F259)-1)),CostCode,0))) -> 0 | H259: =G259*E259 -> 0 | J259: =H259*I259 -> 0 | K259: =+H259*(1-I259) -> 0
B260: Equipment maintenance and parts | D260: allow | F260: =NA() ->  | G260: =IF(ISNA(F260),0,INDEX(IF(UPPER(RIGHT(F260,1))=Low,UnitCostLow, IF(UPPER(RIGHT(F260,1))=High,UnitCostHigh,UnitCostSpecified)),MATCH(UPPER(LEFT(F260,LEN(F260)-1)),CostCode,0))) -> 0 | H260: =G260*E260 -> 0 | J260: =H260*I260 -> 0 | K260: =+H260*(1-I260) -> 0
B261: Supply reagents | D261: tonne | F261: =NA() ->  | G261: =IF(ISNA(F261),0,INDEX(IF(UPPER(RIGHT(F261,1))=Low,UnitCostLow, IF(UPPER(RIGHT(F261,1))=High,UnitCostHigh,UnitCostSpecified)),MATCH(UPPER(LEFT(F261,LEN(F261)-1)),CostCode,0))) -> 0 | H261: =G261*E261 -> 0 | J261: =H261*I261 -> 0 | K261: =+H261*(1-I261) -> 0
G262: Annual treatment costs | H262: =SUM(H259:H261)+0.0001 -> 0.0001
B263: Number of years of treatment | D263: years
G264: Total treatment costs | H264: =H262*E263 -> 0 | K264: =H264 -> 0
G265: Total | H265: =SUM(H5:H74)+H264+0.0001 -> 7312644.74 | J265: =SUM(J5:J74)+J264 -> 4162300.87 | K265: =SUM(K5:K74)+K264 -> 3150343.87
G266: % of Total | J266: =J265/H265 -> 0.5691922715 | K266: =K265/H265 -> 0.4308077285
B267: * for construction of passive treatment system refer to "Water Management"

Sheet Rock Pile
A1: 1 | B1: Rock Pile Name: | C1: Doris Windy Road / Secondary Road
B3: ACTIVITY/MATERIAL | C3: Notes | D3: Units | E3: Quantity | F3: Cost Code | G3: Unit Cost | H3: Cost | I3: % Land | J3: Land Cost | K3: Water Cost
B4: STABILIZE SLOPES
B5: Flatten slopes with dozer | D5: m3 | F5: =NA() ->  | G5: =IF(ISNA(F5),0,INDEX(IF(UPPER(RIGHT(F5,1))=Low,UnitCostLow, IF(UPPER(RIGHT(F5,1))=High,UnitCostHigh,UnitCostSpecified)),MATCH(UPPER(LEFT(F5,LEN(F5)-1)),CostCode,0))) -> 0 | H5: =G5*E5 -> 0 | J5: =H5*I5 -> 0 | K5: =+H5*(1-I5) -> 0
B6: Flatten "bubble dump" areas | D6: m3 | F6: =NA() ->  | G6: 0 | H6: 0 | J6: 0 | K6: 0
B7: Divert runon, ditch mat'l A | D7: m3 | F7: =NA() ->  | G7: 0 | H7: 0 | J7: 0 | K7: 0
B8: Divert runon, ditch mat'l B | D8: m3 | F8: =NA() ->  | G8: 0 | H8: 0 | J8: 0 | K8: 0
B9: Toe buttress, drain mat'l | D9: m3 | F9: =NA() ->  | G9: 0 | H9: 0 | J9: 0 | K9: 0
B10: Toe buttress, fill mat'l A | D10: m3 | F10: =NA() ->  | G10: 0 | H10: 0 | J10: 0 | K10: 0
B11: Toe buttress, fill mat'l B | D11: m3 | F11: =NA() ->  | G11: 0 | H11: 0 | J11: 0 | K11: 0
B12: Other | F12: =NA() ->  | G12: 0 | H12: 0 | J12: 0 | K12: 0
B13: COVER ROCK PILE
B14: Subgrade preparation - doze surface | D14: m3 | F14: =NA() ->  | G14: =IF(ISNA(F14),0,INDEX(IF(UPPER(RIGHT(F14,1))=Low,UnitCostLow, IF(UPPER(RIGHT(F14,1))=High,UnitCostHigh,UnitCostSpecified)),MATCH(UPPER(LEFT(F14,LEN(F14)-1)),CostCode,0))) -> 0 | H14: =G14*E14 -> 0 | J14: =H14*I14 -> 0 | K14: =+H14*(1-I14) -> 0
B15: Soil cover - excavate, haul, spread & compact | D15: m3 | F15: =NA() ->  | G15: 0 | H15: 0 | J15: 0 | K15: 0
B16: Rock cover - excavate, haul & spread | D16: m3 | F16: =NA() ->  | G16: 0 | H16: 0 | J16: 0 | K16: 0
B17: Excavate downslope drainage channel & chute | D17: m3 | F17: =NA() ->  | G17: 0 | H17: 0 | J17: 0 | K17: 0
B18: Rip rap drainage channel and chute | D18: m3 | F18: =NA() ->  | G18: 0 | H18: 0 | J18: 0 | K18: 0
B19: Vegetate | D19: ha | F19: =NA() ->  | G19: 0 | H19: 0 | J19: 0 | K19: 0
B20: Other | F20: =NA() ->  | G20: 0 | H20: 0 | J20: 0 | K20: 0
B21: VERY LOW PERMEABILITY COVER (in addition to above)
B22: Liner subgrade preparation - compact | D22: m2 | F22: =NA() ->  | G22: =IF(ISNA(F22),0,INDEX(IF(UPPER(RIGHT(F22,1))=Low,UnitCostLow, IF(UPPER(RIGHT(F22,1))=High,UnitCostHigh,UnitCostSpecified)),MATCH(UPPER(LEFT(F22,LEN(F22)-1)),CostCode,0))) -> 0 | H22: =G22*E22 -> 0 | J22: =H22*I22 -> 0 | K22: =+H22*(1-I22) -> 0
B23: Supply geomembrame | D23: m2 | F23: =NA() ->  | G23: =IF(ISNA(F23),0,INDEX(IF(UPPER(RIGHT(F23,1))=Low,UnitCostLow, IF(UPPER(RIGHT(F23,1))=High,UnitCostHigh,UnitCostSpecified)),MATCH(UPPER(LEFT(F23,LEN(F23)-1)),CostCode,0))) -> 0 | H23: =G23*E23 -> 0 | J23: 0 | K23: 0
B24: Install geomembrane | D24: m2 | F24: =NA() ->  | G24: =IF(ISNA(F24),0,INDEX(IF(UPPER(RIGHT(F24,1))=Low,UnitCostLow, IF(UPPER(RIGHT(F24,1))=High,UnitCostHigh,UnitCostSpecified)),MATCH(UPPER(LEFT(F24,LEN(F24)-1)),CostCode,0))) -> 0 | H24: =G24*E24 -> 0 | J24: 0 | K24: 0
B25: Protective cover - excavate, haul, spread & compact | D25: m3 | F25: =NA() ->  | G25: 0 | H25: 0 | J25: 0 | K25: 0
B26: Vegetate | D26: ha | F26: =NA() ->  | G26: 0 | H26: 0 | J26: 0 | K26: 0
B27: Install infiltration/seepage instrumentation | D27: allow | F27: =NA() ->  | G27: 0 | H27: 0 | J27: 0 | K27: 0
B28: CONSTRUCT DIVERSION DITCHES
B29: Excavate ditches -soil | D29: m3 | F29: =NA() ->  | G29: =IF(ISNA(F29),0,INDEX(IF(UPPER(RIGHT(F29,1))=Low,UnitCostLow, IF(UPPER(RIGHT(F29,1))=High,UnitCostHigh,UnitCostSpecified)),MATCH(UPPER(LEFT(F29,LEN(F29)-1)),CostCode,0))) -> 0 | H29: =G29*E29 -> 0 | J29: =H29*I29 -> 0 | K29: =+H29*(1-I29) -> 0
B30: Excavate ditches -rock | D30: m3 | F30: =NA() ->  | G30: =IF(ISNA(F30),0,INDEX(IF(UPPER(RIGHT(F30,1))=Low,UnitCostLow, IF(UPPER(RIGHT(F30,1))=High,UnitCostHigh,UnitCostSpecified)),MATCH(UPPER(LEFT(F30,LEN(F30)-1)),CostCode,0))) -> 0 | H30: =G30*E30 -> 0 | J30: =H30*I30 -> 0 | K30: =+H30*(1-I30) -> 0
B31: Rip rap in channel base | D31: m3 | F31: =NA() ->  | G31: =IF(ISNA(F31),0,INDEX(IF(UPPER(RIGHT(F31,1))=Low,UnitCostLow, IF(UPPER(RIGHT(F31,1))=High,UnitCostHigh,UnitCostSpecified)),MATCH(UPPER(LEFT(F31,LEN(F31)-1)),CostCode,0))) -> 0 | H31: =G31*E31 -> 0 | J31: =H31*I31 -> 0 | K31: =+H31*(1-I31) -> 0
B32: CONSTRUCT SEEPAGE COLLECTION POND
B33: Excavate seepage collection pond | D33: m3 | F33: =NA() ->  | G33: 0 | H33: 0 | J33: =H33*I33 -> 0 | K33: =+H33*(1-I33) -> 0
B34: Doze & spread excavated material | D34: m3 | F34: =NA() ->  | G34: 0 | H34: 0 | J34: 0 | K34: 0
B35: Vegetate spread material | D35: ha | F35: =NA() ->  | G35: 0 | H35: 0 | J35: 0 | K35: 0
B36: Bedding layer | D36: m3 | F36: =NA() ->  | G36: 0 | H36: 0 | J36: 0 | K36: 0
B37: Supply geomembrane | D37: m2 | F37: =NA() ->  | G37: 0 | H37: 0 | J37: 0 | K37: 0
B38: Install geomembrane | D38: m2 | F38: =NA() ->  | G38: 0 | H38: 0 | J38: 0 | K38: 0
B39: Erosion protection layer | D39: m3 | F39: =NA() ->  | G39: 0 | H39: 0 | J39: 0 | K39: 0
B40: INSTALL GROUNDWATER COLLECTION SYSTEM
B41: Excavate/install sumps | D41: m3 | F41: =NA() ->  | G41: =IF(ISNA(F41),0,INDEX(IF(UPPER(RIGHT(F41,1))=Low,UnitCostLow, IF(UPPER(RIGHT(F41,1))=High,UnitCostHigh,UnitCostSpecified)),MATCH(UPPER(LEFT(F41,LEN(F41)-1)),CostCode,0))) -> 0 | H41: =G41*E41 -> 0 | J41: =H41*I41 -> 0 | K41: =+H41*(1-I41) -> 0
B42: Install pumping wells | D42: m3 | F42: =NA() ->  | G42: =IF(ISNA(F42),0,INDEX(IF(UPPER(RIGHT(F42,1))=Low,UnitCostLow, IF(UPPER(RIGHT(F42,1))=High,UnitCostHigh,UnitCostSpecified)),MATCH(UPPER(LEFT(F42,LEN(F42)-1)),CostCode,0))) -> 0 | H42: =G42*E42 -> 0 | J42: =H42*I42 -> 0 | K42: =+H42*(1-I42) -> 0
B43: Install pumps/pipelines/power supply | D43: allow | F43: =NA() ->  | G43: =IF(ISNA(F43),0,INDEX(IF(UPPER(RIGHT(F43,1))=Low,UnitCostLow, IF(UPPER(RIGHT(F43,1))=High,UnitCostHigh,UnitCostSpecified)),MATCH(UPPER(LEFT(F43,LEN(F43)-1)),CostCode,0))) -> 0 | H43: =G43*E43 -> 0 | J43: =H43*I43 -> 0 | K43: =+H43*(1-I43) -> 0
B44: RELOCATE DUMPS
B45: Load, haul, dump or doze | D45: m3 | F45: =NA() ->  | G45: =IF(ISNA(F45),0,INDEX(IF(UPPER(RIGHT(F45,1))=Low,UnitCostLow, IF(UPPER(RIGHT(F45,1))=High,UnitCostHigh,UnitCostSpecified)),MATCH(UPPER(LEFT(F45,LEN(F45)-1)),CostCode,0))) -> 0 | H45: =G45*E45 -> 0 | J45: =H45*I45 -> 0 | K45: =+H45*(1-I45) -> 0
B46: Add lime | D46: tonne | F46: =NA() ->  | G46: =IF(ISNA(F46),0,INDEX(IF(UPPER(RIGHT(F46,1))=Low,UnitCostLow, IF(UPPER(RIGHT(F46,1))=High,UnitCostHigh,UnitCostSpecified)),MATCH(UPPER(LEFT(F46,LEN(F46)-1)),CostCode,0))) -> 0 | H46: =G46*E46 -> 0 | J46: =H46*I46 -> 0 | K46: =+H46*(1-I46) -> 0
B47: Contour reclaimed area | D47: ha | F47: =NA() ->  | G47: =IF(ISNA(F47),0,INDEX(IF(UPPER(RIGHT(F47,1))=Low,UnitCostLow, IF(UPPER(RIGHT(F47,1))=High,UnitCostHigh,UnitCostSpecified)),MATCH(UPPER(LEFT(F47,LEN(F47)-1)),CostCode,0))) -> 0 | H47: =G47*E47 -> 0 | J47: =H47*I47 -> 0 | K47: =+H47*(1-I47) -> 0
B48: Other | F48: =NA() ->  | G48: =IF(ISNA(F48),0,INDEX(IF(UPPER(RIGHT(F48,1))=Low,UnitCostLow, IF(UPPER(RIGHT(F48,1))=High,UnitCostHigh,UnitCostSpecified)),MATCH(UPPER(LEFT(F48,LEN(F48)-1)),CostCode,0))) -> 0 | H48: =G48*E48 -> 0 | J48: =H48*I48 -> 0 | K48: =+H48*(1-I48) -> 0
B49: SPECIALIZED ITEMS
B50: Install permanent instrumentation | D50: each | F50: =NA() ->  | G50: =IF(ISNA(F50),0,INDEX(IF(UPPER(RIGHT(F50,1))=Low,UnitCostLow, IF(UPPER(RIGHT(F50,1))=High,UnitCostHigh,UnitCostSpecified)),MATCH(UPPER(LEFT(F50,LEN(F50)-1)),CostCode,0))) -> 0 | H50: =G50*E50 -> 0 | J50: =H50*I50 -> 0 | K50: =+H50*(1-I50) -> 0
B51: Install permanent instrumentation, drilling | D51: each | E51: 60 | F51: =NA() ->  | G51: =IF(ISNA(F51),0,INDEX(IF(UPPER(RIGHT(F51,1))=Low,UnitCostLow, IF(UPPER(RIGHT(F51,1))=High,UnitCostHigh,UnitCostSpecified)),MATCH(UPPER(LEFT(F51,LEN(F51)-1)),CostCode,0))) -> 0 | H51: =G51*E51 -> 0 | J51: =H51*I51 -> 0 | K51: =+H51*(1-I51) -> 0
B52: TREAT ROCK PILE SEEPAGE - see "Water Management" | E52: 60 | M52: =SUM(H52:H62) -> 0.0001
B53: HEAP LEACH SEEPAGE TREATMENT - Cyanide Detox
B54: Cyanide destruction water treatment pumping | D54: m3 | F54: =NA() ->  | G54: =IF(ISNA(F54),0,INDEX(IF(UPPER(RIGHT(F54,1))=Low,UnitCostLow, IF(UPPER(RIGHT(F54,1))=High,UnitCostHigh,UnitCostSpecified)),MATCH(UPPER(LEFT(F54,LEN(F54)-1)),CostCode,0))) -> 0 | H54: =G54*E54 -> 0 | J54: =H54*I54 -> 0 | K54: =+H54*(1-I54) -> 0
B55: Reagents | D55: tonnes | F55: =NA() ->  | G55: =IF(ISNA(F55),0,INDEX(IF(UPPER(RIGHT(F55,1))=Low,UnitCostLow, IF(UPPER(RIGHT(F55,1))=High,UnitCostHigh,UnitCostSpecified)),MATCH(UPPER(LEFT(F55,LEN(F55)-1)),CostCode,0))) -> 0 | H55: =G55*E55 -> 0 | J55: =H55*I55 -> 0 | K55: =+H55*(1-I55) -> 0
B56: Electrician/mechanic to maintain treatment plant | D56: allow | F56: =NA() ->  | G56: =IF(ISNA(F56),0,INDEX(IF(UPPER(RIGHT(F56,1))=Low,UnitCostLow, IF(UPPER(RIGHT(F56,1))=High,UnitCostHigh,UnitCostSpecified)),MATCH(UPPER(LEFT(F56,LEN(F56)-1)),CostCode,0))) -> 0 | H56: =G56*E56 -> 0 | J56: =H56*I56 -> 0 | K56: =+H56*(1-I56) -> 0
B57: Equipment maintenance and parts | D57: allow | F57: =NA() ->  | G57: =IF(ISNA(F57),0,INDEX(IF(UPPER(RIGHT(F57,1))=Low,UnitCostLow, IF(UPPER(RIGHT(F57,1))=High,UnitCostHigh,UnitCostSpecified)),MATCH(UPPER(LEFT(F57,LEN(F57)-1)),CostCode,0))) -> 0 | H57: =G57*E57 -> 0 | J57: =H57*I57 -> 0 | K57: =+H57*(1-I57) -> 0
G58: Annual treatment costs | H58: =SUM(H54:H57)+0.0001 -> 0.0001
B59: Number of years of treatment | D59: years
G60: Total treatment costs | H60: =H58*E59 -> 0 | K60: =H60 -> 0
B61: HEAP LEACH SEEPAGE TREATMENT - ARD/ML**
B62: Upgrade/modify pumping system - report to WTP | D62: allow | F62: =NA() ->  | G62: =IF(ISNA(F62),0,INDEX(IF(UPPER(RIGHT(F62,1))=Low,UnitCostLow, IF(UPPER(RIGHT(F62,1))=High,UnitCostHigh,UnitCostSpecified)),MATCH(UPPER(LEFT(F62,LEN(F62)-1)),CostCode,0))) -> 0 | H62: =G62*E62 -> 0 | K62: =H62 -> 0
B63: ALL WEATHER ROAD | M63: DORIS WINDY ROAD
B64: NOT PART OF DORIS RECLAMATION COSTS | M64: =SUM(H63:H78) -> 4431.148
B67: QUARRY A
B68: No decomm required | F68: =NA() ->  | G68: =IF(ISNA(F68),0,INDEX(IF(UPPER(RIGHT(F68,1))=Low,UnitCostLow, IF(UPPER(RIGHT(F68,1))=High,UnitCostHigh,UnitCostSpecified)),MATCH(UPPER(LEFT(F68,LEN(F68)-1)),CostCode,0))) -> 0 | H68: =G68*E68 -> 0 | J68: =H68*I68 -> 0 | K68: =+H68*(1-I68) -> 0
B69: QUARRY B
B70: No decomm required | F70: =NA() ->  | G70: =IF(ISNA(F70),0,INDEX(IF(UPPER(RIGHT(F70,1))=Low,UnitCostLow, IF(UPPER(RIGHT(F70,1))=High,UnitCostHigh,UnitCostSpecified)),MATCH(UPPER(LEFT(F70,LEN(F70)-1)),CostCode,0))) -> 0 | H70: =G70*E70 -> 0 | J70: =H70*I70 -> 0 | K70: =+H70*(1-I70) -> 0
B71: QUARRY D
B72: Scale vertical walls | F72: =NA() ->  | G72: =IF(ISNA(F72),0,INDEX(IF(UPPER(RIGHT(F72,1))=Low,UnitCostLow, IF(UPPER(RIGHT(F72,1))=High,UnitCostHigh,UnitCostSpecified)),MATCH(UPPER(LEFT(F72,LEN(F72)-1)),CostCode,0))) -> 0 | H72: =G72*E72 -> 0 | J72: =H72*I72 -> 0 | K72: =+H72*(1-I72) -> 0
B73: EXPLOSIVES STORAGE FACILITY
B74: Remove all explosive magazines | D74: m3 | E74: 66.4 | F74: C305L | G74: =IF(ISNA(F74),0,INDEX(IF(UPPER(RIGHT(F74,1))=Low,UnitCostLow, IF(UPPER(RIGHT(F74,1))=High,UnitCostHigh,UnitCostSpecified)),MATCH(UPPER(LEFT(F74,LEN(F74)-1)),CostCode,0))) -> 19 | H74: =G74*E74 -> 1261.6 | I74: 0.9 | J74: =H74*I74 -> 1135.44 | K74: =+H74*(1-I74) -> 126.16
B75: Demolish entry gates | D75: m3 | E75: 0.5 | F75: C305L | G75: =IF(ISNA(F75),0,INDEX(IF(UPPER(RIGHT(F75,1))=Low,UnitCostLow, IF(UPPER(RIGHT(F75,1))=High,UnitCostHigh,UnitCostSpecified)),MATCH(UPPER(LEFT(F75,LEN(F75)-1)),CostCode,0))) -> 19 | H75: =G75*E75 -> 9.5 | I75: 0.9 | J75: =H75*I75 -> 8.55 | K75: =+H75*(1-I75) -> 0.95
B76: Load all debris for transport to landfill | D76: m3 | E76: 25.4 | F76: C401L | G76: =IF(ISNA(F76),0,INDEX(IF(UPPER(RIGHT(F76,1))=Low,UnitCostLow, IF(UPPER(RIGHT(F76,1))=High,UnitCostHigh,UnitCostSpecified)),MATCH(UPPER(LEFT(F76,LEN(F76)-1)),CostCode,0))) -> 13.13 | H76: =G76*E76 -> 333.502 | I76: 0.9 | J76: =H76*I76 -> 300.1518 | K76: =+H76*(1-I76) -> 33.3502
B77: Haul waste to the landfill | D77: m3 | E77: 25.4 | F77: C414L | G77: =IF(ISNA(F77),0,INDEX(IF(UPPER(RIGHT(F77,1))=Low,UnitCostLow, IF(UPPER(RIGHT(F77,1))=High,UnitCostHigh,UnitCostSpecified)),MATCH(UPPER(LEFT(F77,LEN(F77)-1)),CostCode,0))) -> 6.34 | H77: =G77*E77 -> 161.036 | I77: 0.9 | J77: =H77*I77 -> 144.9324 | K77: =+H77*(1-I77) -> 16.1036
B78: Regrade area for positive drainage | D78: m3 | E78: 2805.8 | F78: DSL | G78: =IF(ISNA(F78),0,INDEX(IF(UPPER(RIGHT(F78,1))=Low,UnitCostLow, IF(UPPER(RIGHT(F78,1))=High,UnitCostHigh,UnitCostSpecified)),MATCH(UPPER(LEFT(F78,LEN(F78)-1)),CostCode,0))) -> 0.95 | H78: =G78*E78 -> 2665.51 | I78: 0.5 | J78: =H78*I78 -> 1332.755 | K78: =+H78*(1-I78) -> 1332.755
B79: Secondary Road | M79: SECONDARY ROAD
B80: Remove Doris Creek bridge | D80: ls | E80: 1 | F80: RBRGL | G80: =IF(ISNA(F80),0,INDEX(IF(UPPER(RIGHT(F80,1))=Low,UnitCostLow, IF(UPPER(RIGHT(F80,1))=High,UnitCostHigh,UnitCostSpecified)),MATCH(UPPER(LEFT(F80,LEN(F80)-1)),CostCode,0))) -> 50000 | H80: =G80*E80 -> 50000 | I80: 0 | J80: =H80*I80 -> 0 | K80: =+H80*(1-I80) -> 50000 | M80: =SUM(H80:H111) -> 374853.966
B81: Cut tailings line running alongside the road into manageable pieces | D81: m | E81: 5750 | F81: PLDL | G81: =IF(ISNA(F81),0,INDEX(IF(UPPER(RIGHT(F81,1))=Low,UnitCostLow, IF(UPPER(RIGHT(F81,1))=High,UnitCostHigh,UnitCostSpecified)),MATCH(UPPER(LEFT(F81,LEN(F81)-1)),CostCode,0))) -> 11.5 | H81: =G81*E81 -> 66125 | I81: 0.5 | J81: =H81*I81 -> 33062.5 | K81: 33062.5
B82: Strap together or load pipe sections in containers for transport to landfill | D82: m3 | E82: 2760 | F82: C401L | G82: =IF(ISNA(F82),0,INDEX(IF(UPPER(RIGHT(F82,1))=Low,UnitCostLow, IF(UPPER(RIGHT(F82,1))=High,UnitCostHigh,UnitCostSpecified)),MATCH(UPPER(LEFT(F82,LEN(F82)-1)),CostCode,0))) -> 13.13 | H82: =G82*E82 -> 36238.8 | I82: 0.9 | J82: =H82*I82 -> 32614.92 | K82: 3623.88
B83: Haul waste to the landfill | D83: m3 | E83: 2760 | F83: C404L | G83: =IF(ISNA(F83),0,INDEX(IF(UPPER(RIGHT(F83,1))=Low,UnitCostLow, IF(UPPER(RIGHT(F83,1))=High,UnitCostHigh,UnitCostSpecified)),MATCH(UPPER(LEFT(F83,LEN(F83)-1)),CostCode,0))) -> 6.34 | H83: =G83*E83 -> 17498.4 | I83: 0.9 | J83: =H83*I83 -> 15748.56 | K83: 1749.84
B84: Remove pipe culvert east of the bridge | D84: lm | E84: 18.8 | F84: RCULL | G84: =IF(ISNA(F84),0,INDEX(IF(UPPER(RIGHT(F84,1))=Low,UnitCostLow, IF(UPPER(RIGHT(F84,1))=High,UnitCostHigh,UnitCostSpecified)),MATCH(UPPER(LEFT(F84,LEN(F84)-1)),CostCode,0))) -> 2625 | H84: =G84*E84 -> 49350 | I84: 0 | J84: =H84*I84 -> 0 | K84: 49350
B85: Tailings Discharge And Reclaim Water Pipelines
B86: Cut pipelines into manageable pieces | D86: lm | E86: 8125 | F86: PLDL | G86: =IF(ISNA(F86),0,INDEX(IF(UPPER(RIGHT(F86,1))=Low,UnitCostLow, IF(UPPER(RIGHT(F86,1))=High,UnitCostHigh,UnitCostSpecified)),MATCH(UPPER(LEFT(F86,LEN(F86)-1)),CostCode,0))) -> 11.5 | H86: =G86*E86 -> 93437.5 | I86: 0.5 | J86: =H86*I86 -> 46718.75 | K86: 46718.75
B87: decommission electrical (heat tracing) | D87: each | E87: 4 | F87: C105L | G87: =IF(ISNA(F87),0,INDEX(IF(UPPER(RIGHT(F87,1))=Low,UnitCostLow, IF(UPPER(RIGHT(F87,1))=High,UnitCostHigh,UnitCostSpecified)),MATCH(UPPER(LEFT(F87,LEN(F87)-1)),CostCode,0))) -> 640 | H87: =G87*E87 -> 2560 | I87: 0.9 | J87: =H87*I87 -> 2304 | K87: 256
B88: collect electrical cables and controllers and prep for shipping off-site | D88: m2 | E88: 4062.5 | F88: C310L | G88: =IF(ISNA(F88),0,INDEX(IF(UPPER(RIGHT(F88,1))=Low,UnitCostLow, IF(UPPER(RIGHT(F88,1))=High,UnitCostHigh,UnitCostSpecified)),MATCH(UPPER(LEFT(F88,LEN(F88)-1)),CostCode,0))) -> 0.18 | H88: =G88*E88 -> 731.25 | I88: 0.9 | J88: =H88*I88 -> 658.125 | K88: 73.125
B89: Load debris for transport to landfill | D89: m3 | E89: 306.3 | F89: C401L | G89: =IF(ISNA(F89),0,INDEX(IF(UPPER(RIGHT(F89,1))=Low,UnitCostLow, IF(UPPER(RIGHT(F89,1))=High,UnitCostHigh,UnitCostSpecified)),MATCH(UPPER(LEFT(F89,LEN(F89)-1)),CostCode,0))) -> 13.13 | H89: =G89*E89 -> 4021.719 | I89: 0.9 | J89: =H89*I89 -> 3619.5471 | K89: 402.1719
B90: Haul waste to the landfill | D90: m3 | E90: 306.3 | F90: C404L | G90: =IF(ISNA(F90),0,INDEX(IF(UPPER(RIGHT(F90,1))=Low,UnitCostLow, IF(UPPER(RIGHT(F90,1))=High,UnitCostHigh,UnitCostSpecified)),MATCH(UPPER(LEFT(F90,LEN(F90)-1)),CostCode,0))) -> 6.34 | H90: =G90*E90 -> 1941.942 | I90: 0.9 | J90: =H90*I90 -> 1747.7478 | K90: 194.1942
B91: TIA Access Road (Chainage 0+725)
B92: Crown road for positive drainage | D92: km | E92: 0.29 | F92: CRWNL | G92: =IF(ISNA(F92),0,INDEX(IF(UPPER(RIGHT(F92,1))=Low,UnitCostLow, IF(UPPER(RIGHT(F92,1))=High,UnitCostHigh,UnitCostSpecified)),MATCH(UPPER(LEFT(F92,LEN(F92)-1)),CostCode,0))) -> 1190 | H92: =G92*E92 -> 345.1 | I92: 0.5 | J92: =H92*I92 -> 172.55 | K92: 172.55
B93: Remove floating dock and bridge | D93: m3 | E93: 132 | F93: C401L | G93: =IF(ISNA(F93),0,INDEX(IF(UPPER(RIGHT(F93,1))=Low,UnitCostLow, IF(UPPER(RIGHT(F93,1))=High,UnitCostHigh,UnitCostSpecified)),MATCH(UPPER(LEFT(F93,LEN(F93)-1)),CostCode,0))) -> 13.13 | H93: =G93*E93 -> 1733.16 | I93: 0 | J93: =H93*I93 -> 0 | K93: 1733.16
B94: Load all debris to haul to Landfill | D94: m3 | E94: 132 | F94: C401L | G94: =IF(ISNA(F94),0,INDEX(IF(UPPER(RIGHT(F94,1))=Low,UnitCostLow, IF(UPPER(RIGHT(F94,1))=High,UnitCostHigh,UnitCostSpecified)),MATCH(UPPER(LEFT(F94,LEN(F94)-1)),CostCode,0))) -> 13.13 | H94: =G94*E94 -> 1733.16 | I94: 0.9 | J94: =H94*I94 -> 1559.844 | K94: 173.316
B95: Haul waste to the landfill | D95: m3 | E95: 132 | F95: C404L | G95: =IF(ISNA(F95),0,INDEX(IF(UPPER(RIGHT(F95,1))=Low,UnitCostLow, IF(UPPER(RIGHT(F95,1))=High,UnitCostHigh,UnitCostSpecified)),MATCH(UPPER(LEFT(F95,LEN(F95)-1)),CostCode,0))) -> 6.34 | H95: =G95*E95 -> 836.88 | I95: 0.9 | J95: =H95*I95 -> 753.192 | K95: 83.688
B96: Explosives Facility
B97: Remove all explosive magazines | D97: m3 | E97: 265.6 | F97: C305L | G97: =IF(ISNA(F97),0,INDEX(IF(UPPER(RIGHT(F97,1))=Low,UnitCostLow, IF(UPPER(RIGHT(F97,1))=High,UnitCostHigh,UnitCostSpecified)),MATCH(UPPER(LEFT(F97,LEN(F97)-1)),CostCode,0))) -> 19 | H97: =G97*E97 -> 5046.4 | I97: 0.9 | J97: =H97*I97 -> 4541.76 | K97: 504.64
B98: Demolish entry gates | D98: m3 | E98: 0.5 | F98: C305L | G98: 19 | H98: 9.5 | I98: 0.9 | J98: 8.55 | K98: 0.95
B99: remove and stockpile liner protection cover | D99: m3 | E99: 3031 | F99: SB1L | G99: 4.3 | H99: 13033.3 | I99: 0.9 | J99: 11729.97 | K99: 1303.33
B100: clean liner | D100: m2 | E100: 4442 | F100: C210L | G100: 0.39 | H100: 1732.38 | I100: 0.5 | J100: 866.19 | K100: 866.19
B101: remove and cut liner into manageable pieces | D101: m2 | E101: 4442 | F101: C302L | G101: 0.56 | H101: 2487.52 | I101: 0.9 | J101: 2238.768 | K101: 248.752
B102: load waste into containers for shipping off-site | D102: m3 | E102: 200 | F102: C401L | G102: 13.13 | H102: 2626 | I102: 0.9 | J102: 2363.4 | K102: 262.6
B103: Decommission electrical and heating from facilities | D103: each | E103: 2 | F103: C105L | G103: 640 | H103: 1280 | I103: 0.9 | J103: 1152 | K103: 128
B104: Demolish building (tent structure) | D104: m3 | E104: 430 | F104: C305L | G104: 19 | H104: 8170 | I104: 0.9 | J104: 7353 | K104: 817
B105: disconnect containers and prep for shipping off-site | D105: each | E105: 2 | F105: C108L | G105: 1325 | H105: 2650 | I105: 0.9 | J105: 2385 | K105: 265
B106: load waste into containers for shipping off-site | D106: m3 | E106: 41.5 | F106: C401L | G106: 13.13 | H106: 544.895 | I106: 0.9 | J106: 490.4055 | K106: 54.4895
B107: collect all debris | D107: m2 | E107: 18558 | F107: C310L | G107: 0.18 | H107: 3340.44 | I107: 0.9 | J107: 3006.396 | K107: 334.044
B108: Load all waste and debris and waste into containers | D108: m2 | E108: 18558 | F108: C310L | G108: 0.18 | H108: 3340.44 | I108: 0.9 | J108: 3006.396 | K108: 334.044
B109: Haul waste to landfill | D109: m3 | E109: 245 | F109: C404L | G109: 6.34 | H109: 1553.3 | I109: 0.9 | J109: 1397.97 | K109: 155.33
B110: Regrade pad area for positive drainage | D110: m2 | E110: 18558 | F110: C518L | G110: 0.12 | H110: 2226.96 | I110: 0.5 | J110: 1113.48 | K110: 1113.48
B111: Recontour berms to blend in with topography | D111: m2 | E111: 2166 | F111: C518L | G111: 0.12 | H111: 259.92 | I111: 0.5 | J111: 129.96 | K111: 129.96
G112: Total | H112: =SUM(H62:H111)+0.0001 -> 379285.1141 | J112: =SUM(J62:J111)+0.0001 -> 183664.8107 | K112: =SUM(K62:K111)+0.0001 -> 195620.3035
G113: % of Total | J113: =J112/H112 -> 0.4842394385 | K113: =K112/H112 -> 0.5157605617

Sheet Chemicals
A1: 1 | B1: Chemicals/Soil Area Name: | C1: Quarry #2 / Doris Mtn / Doris Waste Area / Ocean Discharge System . Off-Site Disposal
B3: Note: The procedures, equipment and packaging for clean up and removal of chemicals or contaminated soils are highly dependent on the nature of the chemicals and their existing state of containment. Government guidelines should be consulted on an individual chemical basis. Any estimate made here should be considered very rough unless specific evaluations have been conducted.
B4: ACTIVITY/MATERIAL | C4: Notes | D4: Units | E4: Quantity | F4: Cost Code | G4: Unit Cost | H4: Cost | I4: % Land | J4: Land Cost | K4: Water Cost
B5: HAZARDOUS MATERIALS AUDIT
B6: Hazardous materials audit | D6: mandays | F6: =NA() ->  | G6: =IF(ISNA(F6),0,INDEX(IF(UPPER(RIGHT(F6,1))=Low,UnitCostLow, IF(UPPER(RIGHT(F6,1))=High,UnitCostHigh,UnitCostSpecified)),MATCH(UPPER(LEFT(F6,LEN(F6)-1)),CostCode,0))) -> 0 | H6: =G6*E6 -> 0 | J6: =H6*I6 -> 0 | K6: =+H6*(1-I6) -> 0
B7: BUILDING DECONTAMINATION & CONSOLIDATION OF HAZARDOUS MATERIALS
B8: Environmental technician/coordinator | D8: mandays | F8: =NA() ->  | G8: =IF(ISNA(F8),0,INDEX(IF(UPPER(RIGHT(F8,1))=Low,UnitCostLow, IF(UPPER(RIGHT(F8,1))=High,UnitCostHigh,UnitCostSpecified)),MATCH(UPPER(LEFT(F8,LEN(F8)-1)),CostCode,0))) -> 0 | H8: =G8*E8 -> 0 | J8: =H8*I8 -> 0 | K8: =+H8*(1-I8) -> 0
B9: Decontaminate: oil, fuel | D9: mandays | F9: =NA() ->  | G9: =IF(ISNA(F9),0,INDEX(IF(UPPER(RIGHT(F9,1))=Low,UnitCostLow, IF(UPPER(RIGHT(F9,1))=High,UnitCostHigh,UnitCostSpecified)),MATCH(UPPER(LEFT(F9,LEN(F9)-1)),CostCode,0))) -> 0 | H9: 0 | J9: 0 | K9: 0
B10: Decontaminate maintenance shop | D10: mandays | F10: =NA() ->  | G10: =IF(ISNA(F10),0,INDEX(IF(UPPER(RIGHT(F10,1))=Low,UnitCostLow, IF(UPPER(RIGHT(F10,1))=High,UnitCostHigh,UnitCostSpecified)),MATCH(UPPER(LEFT(F10,LEN(F10)-1)),CostCode,0))) -> 0 | H10: 0 | J10: 0 | K10: 0
B11: Decontaminate power plant | D11: mandays | F11: =NA() ->  | G11: 0 | H11: 0 | J11: 0 | K11: 0
B12: Decontaminate bulk fuel storage | D12: mandays | F12: =NA() ->  | G12: 0 | H12: 0 | J12: 0 | K12: 0
B13: Decontaminate ANFO plant | D13: mandays | F13: =NA() ->  | G13: 0 | H13: 0 | J13: 0 | K13: 0
B14: Decontaminate offices/warehouse/accom | D14: mandays | F14: =NA() ->  | G14: 0 | H14: 0 | J14: 0 | K14: 0
B15: Removal of asbestos siding on buildings | D15: m2 | F15: =NA() ->  | G15: 0 | H15: 0 | J15: 0 | K15: 0
B16: Removal of friable asbestos on equipment | D16: m2 | F16: =NA() ->  | G16: 0 | H16: 0 | J16: 0 | K16: 0
B17: Other | F17: =NA() ->  | G17: 0 | H17: 0 | J17: 0 | K17: 0
B18: HAZARDOUS MATERIALS REMOVAL
B19: Waste oils | D19: litre | F19: =NA() ->  | G19: =IF(ISNA(F19),0,INDEX(IF(UPPER(RIGHT(F19,1))=Low,UnitCostLow, IF(UPPER(RIGHT(F19,1))=High,UnitCostHigh,UnitCostSpecified)),MATCH(UPPER(LEFT(F19,LEN(F19)-1)),CostCode,0))) -> 0 | H19: =G19*E19 -> 0 | J19: =H19*I19 -> 0 | K19: =+H19*(1-I19) -> 0
B20: Waste fuel | D20: litre | F20: =NA() ->  | G20: 0 | H20: 0 | J20: 0 | K20: 0
B21: Waste batteries | D21: kg | F21: =NA() ->  | G21: 0 | H21: 0 | J21: 0 | K21: 0
B22: Assay & environmental lab reagents | D22: kg | F22: =NA() ->  | G22: 0 | H22: 0 | J22: 0 | K22: 0
B23: Machine shop paints, solvents etc | D23: litre | F23: =NA() ->  | G23: 0 | H23: 0 | J23: 0 | K23: 0
B24: Glycol | D24: litre | F24: =NA() ->  | G24: 0 | H24: 0 | J24: 0 | K24: 0
B25: Process reagents | D25: kg | F25: =NA() ->  | G25: =IF(ISNA(F25),0,INDEX(IF(UPPER(RIGHT(F25,1))=Low,UnitCostLow, IF(UPPER(RIGHT(F25,1))=High,UnitCostHigh,UnitCostSpecified)),MATCH(UPPER(LEFT(F25,LEN(F25)-1)),CostCode,0))) -> 0 | H25: =G25*E25 -> 0 | J25: 0 | K25: 0
B26: Nuclear sources | D26: allow | F26: =NA() ->  | G26: =IF(ISNA(F26),0,INDEX(IF(UPPER(RIGHT(F26,1))=Low,UnitCostLow, IF(UPPER(RIGHT(F26,1))=High,UnitCostHigh,UnitCostSpecified)),MATCH(UPPER(LEFT(F26,LEN(F26)-1)),CostCode,0))) -> 0 | H26: 0 | J26: 0 | K26: 0
B27: Other hazardous materials | D27: allow | F27: =NA() ->  | G27: =IF(ISNA(F27),0,INDEX(IF(UPPER(RIGHT(F27,1))=Low,UnitCostLow, IF(UPPER(RIGHT(F27,1))=High,UnitCostHigh,UnitCostSpecified)),MATCH(UPPER(LEFT(F27,LEN(F27)-1)),CostCode,0))) -> 0 | H27: =G27*E27 -> 0 | J27: 0 | K27: 0
B28: HAZARDOUS MATERIALS
B29: Transportation to disposal facility | D29: allow | F29: =NA() ->  | G29: =IF(ISNA(F29),0,INDEX(IF(UPPER(RIGHT(F29,1))=Low,UnitCostLow, IF(UPPER(RIGHT(F29,1))=High,UnitCostHigh,UnitCostSpecified)),MATCH(UPPER(LEFT(F29,LEN(F29)-1)),CostCode,0))) -> 0 | H29: =G29*E29 -> 0 | J29: =H29*I29 -> 0 | K29: =+H29*(1-I29) -> 0
B30: Disposal fees | D30: allow | F30: =NA() ->  | G30: =IF(ISNA(F30),0,INDEX(IF(UPPER(RIGHT(F30,1))=Low,UnitCostLow, IF(UPPER(RIGHT(F30,1))=High,UnitCostHigh,UnitCostSpecified)),MATCH(UPPER(LEFT(F30,LEN(F30)-1)),CostCode,0))) -> 0 | H30: =G30*E30 -> 0 | J30: =H30*I30 -> 0 | K30: =+H30*(1-I30) -> 0
B31: Other | F31: =NA() ->  | G31: =IF(ISNA(F31),0,INDEX(IF(UPPER(RIGHT(F31,1))=Low,UnitCostLow, IF(UPPER(RIGHT(F31,1))=High,UnitCostHigh,UnitCostSpecified)),MATCH(UPPER(LEFT(F31,LEN(F31)-1)),CostCode,0))) -> 0 | H31: =G31*E31 -> 0 | J31: =H31*I31 -> 0 | K31: =+H31*(1-I31) -> 0
B32: CONTAMINATED SOILS
B33: Contam. soil investigation - Phase 1 | D33: each | F33: =NA() ->  | G33: =IF(ISNA(F33),0,INDEX(IF(UPPER(RIGHT(F33,1))=Low,UnitCostLow, IF(UPPER(RIGHT(F33,1))=High,UnitCostHigh,UnitCostSpecified)),MATCH(UPPER(LEFT(F33,LEN(F33)-1)),CostCode,0))) -> 0 | H33: =G33*E33 -> 0 | J33: =H33*I33 -> 0 | K33: =+H33*(1-I33) -> 0
B34: Contam. soil investigation - Phase 2 | D34: each | F34: =NA() ->  | G34: =IF(ISNA(F34),0,INDEX(IF(UPPER(RIGHT(F34,1))=Low,UnitCostLow, IF(UPPER(RIGHT(F34,1))=High,UnitCostHigh,UnitCostSpecified)),MATCH(UPPER(LEFT(F34,LEN(F34)-1)),CostCode,0))) -> 0 | H34: 0 | J34: 0 | K34: 0
B35: CONTAMINATED SOIL REMOVAL
B36: Excavate and transport to onsite facility | D36: m3 | F36: =NA() ->  | G36: =IF(ISNA(F36),0,INDEX(IF(UPPER(RIGHT(F36,1))=Low,UnitCostLow, IF(UPPER(RIGHT(F36,1))=High,UnitCostHigh,UnitCostSpecified)),MATCH(UPPER(LEFT(F36,LEN(F36)-1)),CostCode,0))) -> 0 | H36: =G36*E36 -> 0 | J36: =H36*I36 -> 0 | K36: =+H36*(1-I36) -> 0
B37: Manage hydrocarbon remediation at facility | D37: m3 | F37: =NA() ->  | G37: =IF(ISNA(F37),0,INDEX(IF(UPPER(RIGHT(F37,1))=Low,UnitCostLow, IF(UPPER(RIGHT(F37,1))=High,UnitCostHigh,UnitCostSpecified)),MATCH(UPPER(LEFT(F37,LEN(F37)-1)),CostCode,0))) -> 0 | H37: 0 | J37: 0 | K37: 0
B38: Reagents/stabilizing agent | D38: m2 | F38: =NA() ->  | G38: =IF(ISNA(F38),0,INDEX(IF(UPPER(RIGHT(F38,1))=Low,UnitCostLow, IF(UPPER(RIGHT(F38,1))=High,UnitCostHigh,UnitCostSpecified)),MATCH(UPPER(LEFT(F38,LEN(F38)-1)),CostCode,0))) -> 0 | H38: =G38*E38 -> 0 | J38: =H38*I38 -> 0 | K38: =+H38*(1-I38) -> 0
B39: Excavate and transport to offsite facility | D39: m3 | F39: =NA() ->  | G39: =IF(ISNA(F39),0,INDEX(IF(UPPER(RIGHT(F39,1))=Low,UnitCostLow, IF(UPPER(RIGHT(F39,1))=High,UnitCostHigh,UnitCostSpecified)),MATCH(UPPER(LEFT(F39,LEN(F39)-1)),CostCode,0))) -> 0 | H39: 0 | J39: 0 | K39: 0
B40: Contour decontaminated area | D40: m3 | F40: =NA() ->  | G40: =IF(ISNA(F40),0,INDEX(IF(UPPER(RIGHT(F40,1))=Low,UnitCostLow, IF(UPPER(RIGHT(F40,1))=High,UnitCostHigh,UnitCostSpecified)),MATCH(UPPER(LEFT(F40,LEN(F40)-1)),CostCode,0))) -> 0 | H40: 0 | J40: =H40*I40 -> 0 | K40: =+H40*(1-I40) -> 0
B41: CONTAMINATED SOIL VERY LOW PERMEABILITY COVER
B42: Supply geomembrame, HDPE, ES3, GCL | D42: m2 | F42: =NA() ->  | G42: =IF(ISNA(F42),0,INDEX(IF(UPPER(RIGHT(F42,1))=Low,UnitCostLow, IF(UPPER(RIGHT(F42,1))=High,UnitCostHigh,UnitCostSpecified)),MATCH(UPPER(LEFT(F42,LEN(F42)-1)),CostCode,0))) -> 0 | H42: =G42*E42 -> 0 | J42: =H42*I42 -> 0 | K42: =+H42*(1-I42) -> 0
B43: Upper and lower bedding layers | D43: m3 | F43: =NA() ->  | G43: 0 | H43: 0 | J43: 0 | K43: 0
B44: Install geomembrane, HDPE, ES3, GCL | D44: m2 | F44: =NA() ->  | G44: 0 | H44: 0 | J44: 0 | K44: 0
B45: Erosion protection layer | D45: m3 | F45: =NA() ->  | G45: 0 | H45: 0 | J45: 0 | K45: 0
B46: Vegetate | D46: m2 | F46: =NA() ->  | G46: 0 | H46: 0 | J46: 0 | K46: 0
B47: Install infiltration/seepage instrumentation | D47: allow | F47: =NA() ->  | G47: 0 | H47: 0 | J47: 0 | K47: 0
B48: Other | F48: =NA() ->  | G48: 0 | H48: 0 | J48: 0 | K48: 0
B49: OTHER
F50: =NA() ->  | G50: =IF(ISNA(F50),0,INDEX(IF(UPPER(RIGHT(F50,1))=Low,UnitCostLow, IF(UPPER(RIGHT(F50,1))=High,UnitCostHigh,UnitCostSpecified)),MATCH(UPPER(LEFT(F50,LEN(F50)-1)),CostCode,0))) -> 0 | H50: =G50*E50 -> 0 | J50: =H50*I50 -> 0 | K50: =+H50*(1-I50) -> 0
B51: QUARRY #2 | E51: 60 | M51: QUARRY #2
B52: No decomm required | E52: 60 | F52: =NA() ->  | G52: =IF(ISNA(F52),0,INDEX(IF(UPPER(RIGHT(F52,1))=Low,UnitCostLow, IF(UPPER(RIGHT(F52,1))=High,UnitCostHigh,UnitCostSpecified)),MATCH(UPPER(LEFT(F52,LEN(F52)-1)),CostCode,0))) -> 0 | H52: =G52*E52 -> 0 | J52: =H52*I52 -> 0 | K52: =+H52*(1-I52) -> 0 | M52: =SUM(H52:H62) -> 140604.32
B53: OVERBURDEN DUMP
B54: reslope to 3H:1V | D54: m3 | E54: 8781.3 | F54: SC1L | G54: =IF(ISNA(F54),0,INDEX(IF(UPPER(RIGHT(F54,1))=Low,UnitCostLow, IF(UPPER(RIGHT(F54,1))=High,UnitCostHigh,UnitCostSpecified)),MATCH(UPPER(LEFT(F54,LEN(F54)-1)),CostCode,0))) -> 6.8 | H54: =G54*E54 -> 59712.84 | I54: 0.5 | J54: =H54*I54 -> 29856.42 | K54: =+H54*(1-I54) -> 29856.42
B55: grade top for positive drainage | D55: m2 | E55: 18441 | F55: C505L | G55: =IF(ISNA(F55),0,INDEX(IF(UPPER(RIGHT(F55,1))=Low,UnitCostLow, IF(UPPER(RIGHT(F55,1))=High,UnitCostHigh,UnitCostSpecified)),MATCH(UPPER(LEFT(F55,LEN(F55)-1)),CostCode,0))) -> 1.58 | H55: =G55*E55 -> 29136.78 | I55: 0.5 | J55: =H55*I55 -> 14568.39 | K55: =+H55*(1-I55) -> 14568.39
B56: install erosion protection measures (coconut matting) | D56: m2 | E56: 2634 | F56: GSTH | G56: =IF(ISNA(F56),0,INDEX(IF(UPPER(RIGHT(F56,1))=Low,UnitCostLow, IF(UPPER(RIGHT(F56,1))=High,UnitCostHigh,UnitCostSpecified)),MATCH(UPPER(LEFT(F56,LEN(F56)-1)),CostCode,0))) -> 18 | H56: =G56*E56 -> 47412 | I56: 0.9 | J56: =H56*I56 -> 42670.8 | K56: =+H56*(1-I56) -> 4741.2
B57: Remove culvert | D57: ls | E57: 1 | F57: RCULL | G57: =IF(ISNA(F57),0,INDEX(IF(UPPER(RIGHT(F57,1))=Low,UnitCostLow, IF(UPPER(RIGHT(F57,1))=High,UnitCostHigh,UnitCostSpecified)),MATCH(UPPER(LEFT(F57,LEN(F57)-1)),CostCode,0))) -> 2625 | H57: =G57*E57 -> 2625 | I57: 0 | J57: =H57*I57 -> 0 | K57: =+H57*(1-I57) -> 2625
B58: Other | F58: =NA() ->  | G58: =IF(ISNA(F58),0,INDEX(IF(UPPER(RIGHT(F58,1))=Low,UnitCostLow, IF(UPPER(RIGHT(F58,1))=High,UnitCostHigh,UnitCostSpecified)),MATCH(UPPER(LEFT(F58,LEN(F58)-1)),CostCode,0))) -> 0 | H58: =G58*E58 -> 0 | J58: =H58*I58 -> 0 | K58: =+H58*(1-I58) -> 0
B59: TREATED SEWAGE DISCHARGE AREAS
B60: Fill in low-lying areas (assumed sourced within 0.5km) | D60: m3 | E60: 69.1 | F60: SB4H | G60: =IF(ISNA(F60),0,INDEX(IF(UPPER(RIGHT(F60,1))=Low,UnitCostLow, IF(UPPER(RIGHT(F60,1))=High,UnitCostHigh,UnitCostSpecified)),MATCH(UPPER(LEFT(F60,LEN(F60)-1)),CostCode,0))) -> 11 | H60: =G60*E60 -> 760.1 | I60: 0.5 | J60: =H60*I60 -> 380.05 | K60: =+H60*(1-I60) -> 380.05
B61: erosion protection: Supply and place cocoa matting | D61: m2 | E61: 53.2 | F61: GSTH | G61: =IF(ISNA(F61),0,INDEX(IF(UPPER(RIGHT(F61,1))=Low,UnitCostLow, IF(UPPER(RIGHT(F61,1))=High,UnitCostHigh,UnitCostSpecified)),MATCH(UPPER(LEFT(F61,LEN(F61)-1)),CostCode,0))) -> 18 | H61: =G61*E61 -> 957.6 | I61: 0.9 | J61: =H61*I61 -> 861.84 | K61: =+H61*(1-I61) -> 95.76
B62: Other | F62: =NA() ->  | G62: =IF(ISNA(F62),0,INDEX(IF(UPPER(RIGHT(F62,1))=Low,UnitCostLow, IF(UPPER(RIGHT(F62,1))=High,UnitCostHigh,UnitCostSpecified)),MATCH(UPPER(LEFT(F62,LEN(F62)-1)),CostCode,0))) -> 0 | H62: =G62*E62 -> 0 | J62: =H62*I62 -> 0 | K62: =+H62*(1-I62) -> 0
B63: Quarry #3 ‐ | M63: QUARRY #3
B64: No decomm required | F64: =NA() ->  | G64: =IF(ISNA(F64),0,INDEX(IF(UPPER(RIGHT(F64,1))=Low,UnitCostLow, IF(UPPER(RIGHT(F64,1))=High,UnitCostHigh,UnitCostSpecified)),MATCH(UPPER(LEFT(F64,LEN(F64)-1)),CostCode,0))) -> 0 | H64: =G64*E64 -> 0 | J64: =H64*I64 -> 0 | K64: =+H64*(1-I64) -> 0 | M64: =SUM(H64:H68) -> 47086
B65: Q#3 Access Road
B66: crown road for positive drainage | D66: km | E66: 0.2 | F66: CRWNL | G66: =IF(ISNA(F66),0,INDEX(IF(UPPER(RIGHT(F66,1))=Low,UnitCostLow, IF(UPPER(RIGHT(F66,1))=High,UnitCostHigh,UnitCostSpecified)),MATCH(UPPER(LEFT(F66,LEN(F66)-1)),CostCode,0))) -> 1190 | H66: =G66*E66 -> 238 | I66: 0.5 | J66: =H66*I66 -> 119 | K66: =+H66*(1-I66) -> 119
B67: Quarry #3 Landfill
B68: LHDP ROQ to construct 1m landfill cap1 | D68: m3 | E68: 19520 | F68: DRH | G68: =IF(ISNA(F68),0,INDEX(IF(UPPER(RIGHT(F68,1))=Low,UnitCostLow, IF(UPPER(RIGHT(F68,1))=High,UnitCostHigh,UnitCostSpecified)),MATCH(UPPER(LEFT(F68,LEN(F68)-1)),CostCode,0))) -> 2.4 | H68: =G68*E68 -> 46848 | I68: 0.8 | J68: =H68*I68 -> 37478.4 | K68: =+H68*(1-I68) -> 9369.6
B69: COMMUNICATIONS TOWER | M69: DORIS MOUNTAIN
B70: Remove communications equipment | D70: each | E70: 12 | F70: C107L | G70: =IF(ISNA(F70),0,INDEX(IF(UPPER(RIGHT(F70,1))=Low,UnitCostLow, IF(UPPER(RIGHT(F70,1))=High,UnitCostHigh,UnitCostSpecified)),MATCH(UPPER(LEFT(F70,LEN(F70)-1)),CostCode,0))) -> 350 | H70: =G70*E70 -> 4200 | I70: 0.9 | J70: =H70*I70 -> 3780 | K70: =+H70*(1-I70) -> 420 | M70: =SUM(H70:H77) -> 70975.658
B71: Dismantle the communications towers and prepare for shipping off-site | D71: each | E71: 2 | F71: C311L | G71: 15500 | H71: 31000 | I71: 0.9 | J71: 27900 | K71: 3100
B72: Demolish equipment housing shack | D72: m3 | E72: 9 | F72: C305L | G72: 19 | H72: 171 | I72: 0.9 | J72: 153.9 | K72: 17.1
B73: Remove electrical and fiber optics cables | D73: each | E73: 12 | F73: C105L | G73: 640 | H73: 7680 | I73: 0.9 | J73: 6912 | K73: 768
B74: Remove all equipment, material, and waste from Doris Mountain (helicopter) | D74: m3 | E74: 11 | F74: DEB1L | G74: 2500 | H74: 27500 | I74: 0.9 | J74: 24750 | K74: 2750
B75: load waste into trucks for transport to landfill | D75: m3 | E75: 11 | F75: C401L | G75: 13.13 | H75: 144.43 | I75: 0.9 | J75: 129.987 | K75: 14.443
B76: Transport Waste to Landfill | D76: m3 | E76: 11 | F76: C415L | G76: 6.34 | H76: 69.74 | I76: 0.9 | J76: 62.766 | K76: 6.974
B77: Transport Communications tower equipment to Roberts Bay | D77: m3 | E77: 33.2 | F77: C404L | G77: 6.34 | H77: 210.488 | I77: 0.9 | J77: 189.4392 | K77: 21.0488
B78: Land FARM | M78: DORIS WASTE MANAGEMENT AREA
B79: load contained contaminated soils into megabags for shipping off-site | D79: m3 | E79: 100 | F79: C412L | G79: =IF(ISNA(F79),0,INDEX(IF(UPPER(RIGHT(F79,1))=Low,UnitCostLow, IF(UPPER(RIGHT(F79,1))=High,UnitCostHigh,UnitCostSpecified)),MATCH(UPPER(LEFT(F79,LEN(F79)-1)),CostCode,0))) -> 100.25 | H79: =G79*E79 -> 10025 | I79: 0.9 | J79: =H79*I79 -> 9022.5 | K79: =+H79*(1-I79) -> 1002.5 | M79: =SUM(H79:H102) -> 46993.199
B80: haul megabags to Roberts Bay laydown | D80: m3 | E80: 100 | F80: C404L | G80: 6.34 | H80: 634 | I80: 0.9 | J80: 570.6 | K80: 63.4
B81: treat contained water and discharge | D81: ls | E81: 1 | F81: TRTL | G81: 6500 | H81: 6500 | I81: 0 | J81: 0 | K81: 6500
B82: remove and stockpile liner protection cover | D82: m3 | E82: 2591 | F82: SB1L | G82: 4.3 | H82: 11141.3 | I82: 0.9 | J82: 10027.17 | K82: 1114.13
B83: clean liner | D83: m2 | E83: 4384 | F83: C210L | G83: 0.39 | H83: 1709.76 | I83: 0.5 | J83: 854.88 | K83: 854.88
B84: remove and cut liner into manageable pieces | D84: m2 | E84: 13152 | F84: C302L | G84: 0.56 | H84: 7365.12 | I84: 0.9 | J84: 6628.608 | K84: 736.512
B85: load waste for transport to landfill | D85: m3 | E85: 118.4 | F85: C401L | G85: 13.13 | H85: 1554.592 | I85: 0.9 | J85: 1399.1328 | K85: 155.4592
B86: Haul Material to Landfill | D86: m3 | E86: 118.4 | F86: C414L | G86: 6.34 | H86: 750.656 | I86: 0.9 | J86: 675.5904 | K86: 75.0656
B87: level containment berms | D87: m2 | E87: 3134.8 | F87: C505L | G87: 1.58 | H87: 4952.984 | I87: 0.9 | J87: 4457.6856 | K87: 495.2984
B88: regrade area for positive drainage | D88: m2 | E88: 4384 | F88: C518L | G88: 0.12 | H88: 526.08 | I88: 0.5 | J88: 263.04 | K88: 263.04
B89: Other | F89: =NA() ->  | G89: 0 | H89: 0 | J89: 0 | K89: 0
B90: BATCH PLANT PAD
B91: collect all debris | D91: m2 | E91: 740.3 | F91: C310L | G91: =IF(ISNA(F91),0,INDEX(IF(UPPER(RIGHT(F91,1))=Low,UnitCostLow, IF(UPPER(RIGHT(F91,1))=High,UnitCostHigh,UnitCostSpecified)),MATCH(UPPER(LEFT(F91,LEN(F91)-1)),CostCode,0))) -> 0.18 | H91: =G91*E91 -> 133.254 | I91: 0.9 | J91: =H91*I91 -> 119.9286 | K91: =+H91*(1-I91) -> 13.3254
B92: load waste for transport to landfill | D92: m3 | E92: 3 | F92: C401L | G92: =IF(ISNA(F92),0,INDEX(IF(UPPER(RIGHT(F92,1))=Low,UnitCostLow, IF(UPPER(RIGHT(F92,1))=High,UnitCostHigh,UnitCostSpecified)),MATCH(UPPER(LEFT(F92,LEN(F92)-1)),CostCode,0))) -> 13.13 | H92: =G92*E92 -> 39.39 | I92: 0.9 | J92: =H92*I92 -> 35.451 | K92: =+H92*(1-I92) -> 3.939
B93: haul waste to Landfill | D93: m3 | E93: 3 | F93: C414L | G93: =IF(ISNA(F93),0,INDEX(IF(UPPER(RIGHT(F93,1))=Low,UnitCostLow, IF(UPPER(RIGHT(F93,1))=High,UnitCostHigh,UnitCostSpecified)),MATCH(UPPER(LEFT(F93,LEN(F93)-1)),CostCode,0))) -> 6.34 | H93: =G93*E93 -> 19.02 | I93: 0.9 | J93: =H93*I93 -> 17.118 | K93: =+H93*(1-I93) -> 1.902
B94: regrade area for positive drainage | D94: m2 | E94: 740.3 | F94: C518L | G94: =IF(ISNA(F94),0,INDEX(IF(UPPER(RIGHT(F94,1))=Low,UnitCostLow, IF(UPPER(RIGHT(F94,1))=High,UnitCostHigh,UnitCostSpecified)),MATCH(UPPER(LEFT(F94,LEN(F94)-1)),CostCode,0))) -> 0.12 | H94: =G94*E94 -> 88.836 | I94: 0.5 | J94: =H94*I94 -> 44.418 | K94: =+H94*(1-I94) -> 44.418
B95: Other | F95: =NA() ->  | G95: =IF(ISNA(F95),0,INDEX(IF(UPPER(RIGHT(F95,1))=Low,UnitCostLow, IF(UPPER(RIGHT(F95,1))=High,UnitCostHigh,UnitCostSpecified)),MATCH(UPPER(LEFT(F95,LEN(F95)-1)),CostCode,0))) -> 0 | H95: =G95*E95 -> 0 | J95: =H95*I95 -> 0 | K95: =+H95*(1-I95) -> 0
B96: BURN PAD
B97: Collect ashes and place in containers | D97: m3 | E97: 0.1 | F97: C207L | G97: =IF(ISNA(F97),0,INDEX(IF(UPPER(RIGHT(F97,1))=Low,UnitCostLow, IF(UPPER(RIGHT(F97,1))=High,UnitCostHigh,UnitCostSpecified)),MATCH(UPPER(LEFT(F97,LEN(F97)-1)),CostCode,0))) -> 13.13 | H97: =G97*E97 -> 1.313 | I97: 0.9 | J97: =H97*I97 -> 1.1817 | K97: =+H97*(1-I97) -> 0.1313
B98: Dismantle (welding crew) | D98: each | E98: 1 | F98: C308L | G98: 1500 | H98: 1500 | I98: 0.9 | J98: 1350 | K98: 150
B99: load waste into containers for shipping off-site | D99: m3 | E99: 0.2 | F99: C401L | G99: 13.13 | H99: 2.626 | I99: 0.9 | J99: 2.3634 | K99: 0.2626
B100: haul containers to Roberts Bay laydown | D100: m3 | E100: 0.2 | F100: C404L | G100: 6.34 | H100: 1.268 | I100: 0.9 | J100: 1.1412 | K100: 0.1268
B101: regrade area for positive drainage | D101: m2 | E101: 400 | F101: C518L | G101: 0.12 | H101: 48 | I101: 0.5 | J101: 24 | K101: 24
B102: Other | F102: =NA() ->  | G102: 0 | H102: 0 | J102: 0 | K102: 0
B103: OFF-SITE SHIPPING BY BARGE | M103: OFF-SITE SHIPPING BY BARGE
B104: hazardous waste | D104: m3 | E104: 120 | F104: hz1l | G104: 218.81 | H104: 26257.2 | I104: 0.5 | J104: 13128.6 | K104: 13128.6 | M104: =SUM(H104:H106) -> 34571.98
B105: hazardous solid waste | D105: m3 | E105: 38 | F105: hz2l | G105: 218.81 | H105: 8314.78 | I105: 0.5 | J105: 4157.39 | K105: 4157.39
B106: hydrocarbon contaminated soils | D106: m3 | E106: 0 | F106: hy1l | G106: 1082 | H106: =G106*E106 -> 0 | I106: 0.5 | J106: =H106*I106 -> 0 | K106: =+H106*(1-I106) -> 0
B108: ROBERTS BAY DISCHARGE SYSTEM (MARINE BASED) | M108: ROBERTS BAY OCEAN DISCHARGE SYSTEM (MARINE BASED)
B109: Retrieve Pipeline; cut pipelines into manageable pieces | D109: lm | E109: 2461 | F109: PLRH | G109: =IF(ISNA(F109),0,INDEX(IF(UPPER(RIGHT(F109,1))=Low,UnitCostLow, IF(UPPER(RIGHT(F109,1))=High,UnitCostHigh,UnitCostSpecified)),MATCH(UPPER(LEFT(F109,LEN(F109)-1)),CostCode,0))) -> 72 | H109: =G109*E109 -> 177192 | M109: =SUM(H109:H112) -> 194253.75
B110: Load debris for transport to landfill | D110: m3 | E110: 525 | F110: C401L | G110: =IF(ISNA(F110),0,INDEX(IF(UPPER(RIGHT(F110,1))=Low,UnitCostLow, IF(UPPER(RIGHT(F110,1))=High,UnitCostHigh,UnitCostSpecified)),MATCH(UPPER(LEFT(F110,LEN(F110)-1)),CostCode,0))) -> 13.13 | H110: =G110*E110 -> 6893.25
B111: haul debris to landfill | D111: m3 | E111: 525 | F111: C404L | G111: =IF(ISNA(F111),0,INDEX(IF(UPPER(RIGHT(F111,1))=Low,UnitCostLow, IF(UPPER(RIGHT(F111,1))=High,UnitCostHigh,UnitCostSpecified)),MATCH(UPPER(LEFT(F111,LEN(F111)-1)),CostCode,0))) -> 6.34 | H111: =G111*E111 -> 3328.5
B112: Retrieve and dismantle diffuser | D112: lm | E112: 95 | F112: PLRH | G112: =IF(ISNA(F112),0,INDEX(IF(UPPER(RIGHT(F112,1))=Low,UnitCostLow, IF(UPPER(RIGHT(F112,1))=High,UnitCostHigh,UnitCostSpecified)),MATCH(UPPER(LEFT(F112,LEN(F112)-1)),CostCode,0))) -> 72 | H112: =G112*E112 -> 6840
B114: ROBERTS BAY DISCHARGE SYSTEM (LAND BASED) | M114: ROBERTS BAY OCEAN DISCHARGE SYSTEM (LAND BASED)
B115: Cut pipelines into manageable pieces | D115: lm | E115: 5470 | F115: PLDL | G115: =IF(ISNA(F115),0,INDEX(IF(UPPER(RIGHT(F115,1))=Low,UnitCostLow, IF(UPPER(RIGHT(F115,1))=High,UnitCostHigh,UnitCostSpecified)),MATCH(UPPER(LEFT(F115,LEN(F115)-1)),CostCode,0))) -> 11.5 | H115: =G115*E115 -> 62905 | M115: =SUM(H115:H120) -> 97586.3
B116: Decommission electrical (heat tracing) | D116: each | E116: 11 | F116: C106L | G116: 750 | H116: 8250
B117: Collect electrical cables and controllers and prep for shipping off-site | D117: m2 | E117: 5470 | F117: C310L | G117: 0.18 | H117: 984.6
B118: Load debris for transport to landfill | D118: m3 | E118: 1160 | F118: C401L | G118: 13.13 | H118: 15230.8
B119: haul debris to landfill | D119: m3 | E119: 1160 | F119: C404L | G119: 6.34 | H119: 7354.4
B120: Remove rock fill to 0.3 m below LLWL | D120: m3 | E120: 485 | F120: SB1H | G120: 5.9 | H120: 2861.5
G122: Total | H122: =SUM(H51:H120)+0.0001 -> 632071.2071 | J122: =SUM(J6:J120) -> 242593.7909 | K122: =SUM(K51:K120) -> 97637.3661
G123: % of Total | J123: =J122/H122 -> 0.3838076916 | K123: =K122/H122 -> 0.154472099
B125: 1. The landfill cap will be 1 m thick; therefore no processing to produce a specific gradation will be required. Assumed rock will be present in the Quarry for use as it is landfilled; therefore no loading / transport required.

Sheet Bldgs & Equip
A1: 1 | B1: Building / Equip Name: | C1: Doris Camp
B3: ACTIVITY/MATERIAL | C3: Notes | D3: Units | E3: Quantity | F3: Cost Code | G3: Unit Cost | H3: Cost | I3: % Land | J3: Land Cost | K3: Water Cost
B4: DISPOSE MOBILE EQUIPMENT
B5: Decontaminate and ship off-site | D5: allow | F5: =NA() ->  | G5: =IF(ISNA(F5),0,INDEX(IF(UPPER(RIGHT(F5,1))=Low,UnitCostLow, IF(UPPER(RIGHT(F5,1))=High,UnitCostHigh,UnitCostSpecified)),MATCH(UPPER(LEFT(F5,LEN(F5)-1)),CostCode,0))) -> 0 | H5: =G5*E5 -> 0 | J5: =H5*I5 -> 0 | K5: =+H5*(1-I5) -> 0
B6: Decontaminate and dispose on-site | D6: allow | F6: =NA() ->  | G6: =IF(ISNA(F6),0,INDEX(IF(UPPER(RIGHT(F6,1))=Low,UnitCostLow, IF(UPPER(RIGHT(F6,1))=High,UnitCostHigh,UnitCostSpecified)),MATCH(UPPER(LEFT(F6,LEN(F6)-1)),CostCode,0))) -> 0 | H6: =G6*E6 -> 0 | J6: =H6*I6 -> 0 | K6: =+H6*(1-I6) -> 0
B7: Other | F7: =NA() ->  | G7: =IF(ISNA(F7),0,INDEX(IF(UPPER(RIGHT(F7,1))=Low,UnitCostLow, IF(UPPER(RIGHT(F7,1))=High,UnitCostHigh,UnitCostSpecified)),MATCH(UPPER(LEFT(F7,LEN(F7)-1)),CostCode,0))) -> 0 | H7: =G7*E7 -> 0 | J7: 0 | K7: 0
B8: REMOVE BUILDINGS - see note below
B9: Accommodation Complex | D9: m2 | F9: =NA() ->  | G9: =IF(ISNA(F9),0,INDEX(IF(UPPER(RIGHT(F9,1))=Low,UnitCostLow, IF(UPPER(RIGHT(F9,1))=High,UnitCostHigh,UnitCostSpecified)),MATCH(UPPER(LEFT(F9,LEN(F9)-1)),CostCode,0))) -> 0 | H9: =G9*E9 -> 0 | J9: 0 | K9: 0
B10: Process Facilities | D10: m2 | F10: =NA() ->  | G10: 0 | H10: 0 | J10: 0 | K10: 0
B11: Offices, Repair, Lab, Warehouse | D11: m2 | F11: =NA() ->  | G11: 0 | H11: 0 | J11: 0 | K11: 0
B12: Storage Facilities | D12: m2 | F12: =NA() ->  | G12: 0 | H12: 0 | J12: 0 | K12: 0
B13: Water and Wastewater Treatment Facilities | D13: m2 | F13: =NA() ->  | G13: 0 | H13: 0 | J13: 0 | K13: 0
B14: U/G Heating Plant | D14: m2 | F14: =NA() ->  | G14: 0 | H14: 0 | J14: 0 | K14: 0
B15: Emulsion Plant | D15: m2 | F15: =NA() ->  | G15: 0 | H15: 0 | J15: 0 | K15: 0
B16: AN Storage Facility | D16: m2 | F16: =NA() ->  | G16: =IF(ISNA(F16),0,INDEX(IF(UPPER(RIGHT(F16,1))=Low,UnitCostLow, IF(UPPER(RIGHT(F16,1))=High,UnitCostHigh,UnitCostSpecified)),MATCH(UPPER(LEFT(F16,LEN(F16)-1)),CostCode,0))) -> 0 | H16: 0 | J16: =H16*I16 -> 0 | K16: =+H16*(1-I16) -> 0
B17: Warehouse, Shops and Other | D17: m2 | F17: =NA() ->  | G17: =IF(ISNA(F17),0,INDEX(IF(UPPER(RIGHT(F17,1))=Low,UnitCostLow, IF(UPPER(RIGHT(F17,1))=High,UnitCostHigh,UnitCostSpecified)),MATCH(UPPER(LEFT(F17,LEN(F17)-1)),CostCode,0))) -> 0 | H17: 0 | J17: =H17*I17 -> 0 | K17: =+H17*(1-I17) -> 0
B18: Storage Facility at Laydown/Airstrip | D18: m2 | F18: =NA() ->  | G18: =IF(ISNA(F18),0,INDEX(IF(UPPER(RIGHT(F18,1))=Low,UnitCostLow, IF(UPPER(RIGHT(F18,1))=High,UnitCostHigh,UnitCostSpecified)),MATCH(UPPER(LEFT(F18,LEN(F18)-1)),CostCode,0))) -> 0 | H18: 0 | J18: =H18*I18 -> 0 | K18: =+H18*(1-I18) -> 0
B19: Fuel tanks | D19: m2 | F19: =NA() ->  | G19: =IF(ISNA(F19),0,INDEX(IF(UPPER(RIGHT(F19,1))=Low,UnitCostLow, IF(UPPER(RIGHT(F19,1))=High,UnitCostHigh,UnitCostSpecified)),MATCH(UPPER(LEFT(F19,LEN(F19)-1)),CostCode,0))) -> 0 | H19: 0 | J19: =H19*I19 -> 0 | K19: =+H19*(1-I19) -> 0
B20: Fuel Tanks | D20: m2 | F20: =NA() ->  | G20: =IF(ISNA(F20),0,INDEX(IF(UPPER(RIGHT(F20,1))=Low,UnitCostLow, IF(UPPER(RIGHT(F20,1))=High,UnitCostHigh,UnitCostSpecified)),MATCH(UPPER(LEFT(F20,LEN(F20)-1)),CostCode,0))) -> 0 | H20: 0 | J20: =H20*I20 -> 0 | K20: =+H20*(1-I20) -> 0
B21: Freshwater intake | D21: m2 | F21: =NA() ->  | G21: 0 | H21: 0 | J21: 0 | K21: 0
B22: Reclaim pumps | D22: m2 | F22: =NA() ->  | G22: 0 | H22: 0 | J22: 0 | K22: 0
B23: Outfall & Diffuser | D23: m2 | F23: =NA() ->  | G23: 0 | H23: 0 | J23: 0 | K23: 0
B24: Airstrip lighting, navigation, electrician | D24: mandays | F24: =NA() ->  | G24: =IF(ISNA(F24),0,INDEX(IF(UPPER(RIGHT(F24,1))=Low,UnitCostLow, IF(UPPER(RIGHT(F24,1))=High,UnitCostHigh,UnitCostSpecified)),MATCH(UPPER(LEFT(F24,LEN(F24)-1)),CostCode,0))) -> 0 | H24: 0 | J24: 0 | K24: 0
B25: Airstrip lighting, navigation, mechanical | D25: mandays | F25: =NA() ->  | G25: =IF(ISNA(F25),0,INDEX(IF(UPPER(RIGHT(F25,1))=Low,UnitCostLow, IF(UPPER(RIGHT(F25,1))=High,UnitCostHigh,UnitCostSpecified)),MATCH(UPPER(LEFT(F25,LEN(F25)-1)),CostCode,0))) -> 0 | H25: 0 | J25: 0 | K25: 0
B26: Break foundation slabs | C26: total of all buildings | D26: m2 | F26: =NA() ->  | G26: =IF(ISNA(F26),0,INDEX(IF(UPPER(RIGHT(F26,1))=Low,UnitCostLow, IF(UPPER(RIGHT(F26,1))=High,UnitCostHigh,UnitCostSpecified)),MATCH(UPPER(LEFT(F26,LEN(F26)-1)),CostCode,0))) -> 0 | H26: 0 | J26: 0 | K26: 0
B27: Consolidate & dump boneyard debris | D27: m3 | F27: =NA() ->  | G27: 0 | H27: 0 | J27: 0 | K27: 0
B28: Other | F28: =NA() ->  | G28: 0 | H28: 0 | J28: 0 | K28: 0
B29: LANDFILL FOR DEMOLITION WASTE
B30: Place rock cover | D30: m3 | F30: =NA() ->  | G30: =IF(ISNA(F30),0,INDEX(IF(UPPER(RIGHT(F30,1))=Low,UnitCostLow, IF(UPPER(RIGHT(F30,1))=High,UnitCostHigh,UnitCostSpecified)),MATCH(UPPER(LEFT(F30,LEN(F30)-1)),CostCode,0))) -> 0 | H30: =G30*E30 -> 0 | J30: =H30*I30 -> 0 | K30: =+H30*(1-I30) -> 0
B31: Place soil cover | D31: m3 | F31: =NA() ->  | G31: =IF(ISNA(F31),0,INDEX(IF(UPPER(RIGHT(F31,1))=Low,UnitCostLow, IF(UPPER(RIGHT(F31,1))=High,UnitCostHigh,UnitCostSpecified)),MATCH(UPPER(LEFT(F31,LEN(F31)-1)),CostCode,0))) -> 0 | H31: =G31*E31 -> 0 | J31: 0 | K31: 0
B32: Vegetate | D32: ha | F32: =NA() ->  | G32: =IF(ISNA(F32),0,INDEX(IF(UPPER(RIGHT(F32,1))=Low,UnitCostLow, IF(UPPER(RIGHT(F32,1))=High,UnitCostHigh,UnitCostSpecified)),MATCH(UPPER(LEFT(F32,LEN(F32)-1)),CostCode,0))) -> 0 | H32: =G32*E32 -> 0 | J32: 0 | K32: 0
B33: GRADE AND CONTOUR PADS
B34: Accommodation Complex | D34: ha | F34: =NA() ->  | G34: =IF(ISNA(F34),0,INDEX(IF(UPPER(RIGHT(F34,1))=Low,UnitCostLow, IF(UPPER(RIGHT(F34,1))=High,UnitCostHigh,UnitCostSpecified)),MATCH(UPPER(LEFT(F34,LEN(F34)-1)),CostCode,0))) -> 0 | H34: =G34*E34 -> 0 | J34: 0 | K34: 0
B35: Process Facilities | D35: ha | F35: =NA() ->  | G35: 0 | H35: 0 | J35: 0 | K35: 0
B36: Offices, Repair, Lab, Warehouse | D36: ha | F36: =NA() ->  | G36: 0 | H36: 0 | J36: 0 | K36: 0
B37: Storage Facilities | D37: ha | F37: =NA() ->  | G37: 0 | H37: 0 | J37: 0 | K37: 0
B38: Water and Wastewater Treatment Facilities | D38: ha | F38: =NA() ->  | G38: 0 | H38: 0 | J38: 0 | K38: 0
B39: U/G Heating Plant | D39: ha | F39: =NA() ->  | G39: 0 | H39: 0 | J39: 0 | K39: 0
B40: Emulsion Plant | D40: ha | F40: =NA() ->  | G40: 0 | H40: 0 | J40: 0 | K40: 0
B41: Warehouse, Shops and Other | D41: ha | F41: =NA() ->  | G41: 0 | H41: 0 | J41: 0 | K41: 0
B42: Place rock cover | D42: m3 | F42: =NA() ->  | G42: 0 | H42: 0 | J42: 0 | K42: 0
B43: Vegetate | D43: ha | F43: =NA() ->  | G43: 0 | H43: 0 | J43: 0 | K43: 0
B44: Other | F44: =NA() ->  | G44: 0 | H44: 0 | J44: 0 | K44: 0
B45: PUNCTURE LINED SUMPS
B46: Puncture liner and place soil cover | D46: m3 | F46: =NA() ->  | G46: =IF(ISNA(F46),0,INDEX(IF(UPPER(RIGHT(F46,1))=Low,UnitCostLow, IF(UPPER(RIGHT(F46,1))=High,UnitCostHigh,UnitCostSpecified)),MATCH(UPPER(LEFT(F46,LEN(F46)-1)),CostCode,0))) -> 0 | H46: =G46*E46 -> 0 | J46: =H46*I46 -> 0 | K46: =+H46*(1-I46) -> 0
B47: RECLAIM ROADS
B48: Remove culverts | D48: each | F48: =NA() ->  | G48: =IF(ISNA(F48),0,INDEX(IF(UPPER(RIGHT(F48,1))=Low,UnitCostLow, IF(UPPER(RIGHT(F48,1))=High,UnitCostHigh,UnitCostSpecified)),MATCH(UPPER(LEFT(F48,LEN(F48)-1)),CostCode,0))) -> 0 | H48: =G48*E48 -> 0 | J48: 0 | K48: 0
B49: Remove bridges | D49: each | F49: =NA() ->  | G49: 0 | H49: 0 | J49: 0 | K49: 0
B50: Scarify and install water breaks | D50: ha | F50: =NA() ->  | G50: 0 | H50: 0 | J50: 0 | K50: 0
B51: Scarify airstrip | D51: ha | E51: 60 | F51: =NA() ->  | G51: 0 | H51: 0 | J51: 0 | K51: 0
B52: Scarify laydown areas | D52: ha | E52: 60 | F52: =NA() ->  | G52: 0 | H52: 0 | J52: 0 | K52: 0 | M52: =SUM(H52:H62) -> 204186.64
B53: Vegetate | D53: ha | F53: =NA() ->  | G53: 0 | H53: 0 | J53: =H53*I53 -> 0 | K53: 0
B54: Other | F54: =NA() ->  | G54: 0 | H54: 0 | J54: =H54*I54 -> 0 | K54: 0
B55: SPECIALIZED ITEMS
B56: Dispose of misc. debris and laydown area refuse | F56: =NA() ->  | G56: =IF(ISNA(F56),0,INDEX(IF(UPPER(RIGHT(F56,1))=Low,UnitCostLow, IF(UPPER(RIGHT(F56,1))=High,UnitCostHigh,UnitCostSpecified)),MATCH(UPPER(LEFT(F56,LEN(F56)-1)),CostCode,0))) -> 0 | H56: =G56*E56 -> 0 | J56: =H56*I56 -> 0 | K56: 0
B57: ACCOMODATION COMPLEX | M57: DORIS CAMP
B58: Decommission (electrical, mechanical, plumbing) | D58: each | E58: 103 | F58: C105L | G58: =IF(ISNA(F58),0,INDEX(IF(UPPER(RIGHT(F58,1))=Low,UnitCostLow, IF(UPPER(RIGHT(F58,1))=High,UnitCostHigh,UnitCostSpecified)),MATCH(UPPER(LEFT(F58,LEN(F58)-1)),CostCode,0))) -> 640 | H58: =G58*E58 -> 65920 | I58: 0.9 | J58: =H58*I58 -> 59328 | K58: =+H58*(1-I58) -> 6592 | M58: =SUM(H58:H239) -> 3876328.857
B59: disconnect trailers and prep for moving (remove boards/piping, etc.; wrap in plastic) | D59: each | E59: 83 | F59: C108L | G59: 1325 | H59: 109975 | I59: 0.9 | J59: 98977.5 | K59: 10997.5
B60: haul trailers to Roberts Bay for shipping off-site | D60: m3 | E60: 2756 | F60: C404L | G60: 6.34 | H60: 17473.04 | I60: 0.9 | J60: 15725.736 | K60: 1747.304
B61: demolish cabins | D61: m3 | E61: 319.1 | F61: C305L | G61: 19 | H61: 6062.9 | I61: 0.9 | J61: 5456.61 | K61: 606.29
B62: demolish cribbing, stairs, entryways, etc. | D62: m3 | E62: 250.3 | F62: C305L | G62: 19 | H62: 4755.7 | I62: 0.9 | J62: 4280.13 | K62: 475.57
B63: demolish arctic corridor | D63: m3 | E63: 132.5 | F63: C305L | G63: 19 | H63: 2517.5 | I63: 0.9 | J63: 2265.75 | K63: 251.75
B64: collect all debris | D64: m2 | E64: 380.9 | F64: C310L | G64: 0.18 | H64: 68.562 | I64: 0.9 | J64: 61.7058 | K64: 6.8562
B65: load waste for transport to Landfill | D65: m3 | E65: 623.1 | F65: C401L | G65: 13.13 | H65: 8181.303 | I65: 0.9 | J65: 7363.1727 | K65: 818.1303
B66: Haul waste to Landfill | D66: m3 | E66: 623.1 | F66: C414L | G66: 6.34 | H66: 3950.454 | I66: 0.9 | J66: 3555.4086 | K66: 395.0454
B67: regrade area for positive drainage | D67: m2 | E67: 21050 | F67: C518L | G67: 0.12 | H67: 2526 | I67: 0.9 | J67: 2273.4 | K67: 252.6
B68: regrade pad transitions to blend in with topography | D68: m2 | E68: 15200 | F68: C505L | G68: 1.58 | H68: 24016 | I68: 0.5 | J68: 12008 | K68: 12008
B69: regrade surface to prevent ponding | D69: m2 | E69: 152000 | F69: C518L | G69: 0.12 | H69: 18240 | I69: 0.5 | J69: 9120 | K69: 9120
B70: TANK FARM
B71: Drain tanks into portable fuel storage (EnviroTanks) | D71: each | E71: 5 | F71: C203L | G71: =IF(ISNA(F71),0,INDEX(IF(UPPER(RIGHT(F71,1))=Low,UnitCostLow, IF(UPPER(RIGHT(F71,1))=High,UnitCostHigh,UnitCostSpecified)),MATCH(UPPER(LEFT(F71,LEN(F71)-1)),CostCode,0))) -> 10000 | H71: =G71*E71 -> 50000 | I71: 0.1 | J71: =H71*I71 -> 5000 | K71: =+H71*(1-I71) -> 45000
B72: Decommission Fuel Transfer Facilities | D72: each | E72: 5 | F72: C102L | G72: 550 | H72: 2750 | I72: 0.9 | J72: 2475 | K72: 275
B73: Wash tanks | D73: each | E73: 5 | F73: C204L | G73: 1420 | H73: 7100 | I73: 0.1 | J73: 710 | K73: 6390
B74: Operate oil/water separator | D74: m3 | E74: 10 | F74: C208L | G74: 30 | H74: 300 | I74: 0.1 | J74: 30 | K74: 270
B75: Disconnect piping and controls | D75: each | E75: 5 | F75: C102L | G75: 550 | H75: 2750 | I75: 0.9 | J75: 2475 | K75: 275
B76: Dismantle tanks and cut into manageable pieces | D76: each | E76: 5 | F76: CUT1L | G76: 15000 | H76: 75000 | I76: 0.9 | J76: 67500 | K76: 7500
B77: prepare pieces for transportation | D77: m3 | E77: 22.8 | F77: C401L | G77: 13.13 | H77: =G77*E77 -> 299.364 | I77: 0.9 | J77: =H77*I77 -> 269.4276 | K77: =+H77*(1-I77) -> 29.9364
B78: haul cut metal to landfill | D78: m3 | E78: 22.8 | F78: C414L | G78: 6.34 | H78: 144.552 | I78: 0.9 | J78: 130.0968 | K78: 14.4552
B79: remove and stockpile liner protection cover | D79: m3 | E79: 3360 | F79: SB1L | G79: 4.3 | H79: 14448 | I79: 0.9 | J79: 13003.2 | K79: 1444.8
B80: load contaminated soils into megabags for shipping off-site (assumed worst case) | D80: m3 | E80: 50 | F80: C412L | G80: 100.25 | H80: 5012.5 | I80: 0.9 | J80: 4511.25 | K80: 501.25
B81: haul contaminated material to Roberts Bay laydown | D81: m3 | E81: 62 | F81: C404L | G81: 6.34 | H81: 393.08 | I81: 0.9 | J81: 353.772 | K81: 39.308
B82: clean liner | D82: m2 | E82: 5500 | F82: C210L | G82: 0.39 | H82: 2145 | I82: 0.5 | J82: 1072.5 | K82: 1072.5
B83: remove and cut geosynthetics into manageable pieces | D83: m2 | E83: 5500 | F83: C302L | G83: 0.56 | H83: 3080 | I83: 0.9 | J83: 2772 | K83: 308
B84: load waste into containers for transport to landfill | D84: m3 | E84: 176.6 | F84: C401L | G84: 13.13 | H84: 2318.758 | I84: 0.9 | J84: 2086.8822 | K84: 231.8758
B85: haul waste to landfill | D85: m3 | E85: 176.6 | F85: C414L | G85: 6.34 | H85: 1119.644 | I85: 0.9 | J85: 1007.6796 | K85: 111.9644
B86: level containment berms | D86: m2 | E86: 962 | F86: C505L | G86: 1.58 | H86: 1519.96 | I86: 0.5 | J86: 759.98 | K86: 759.98
B87: regrade area for positive drainage | D87: m2 | E87: 4927.7 | F87: C518L | G87: 0.12 | H87: 591.324 | I87: 0.5 | J87: 295.662 | K87: 295.662
B89: PERMANAENT POWER GENERATOR
B90: Decommission (electrical) | D90: each | E90: 8 | F90: C106L | G90: =IF(ISNA(F90),0,INDEX(IF(UPPER(RIGHT(F90,1))=Low,UnitCostLow, IF(UPPER(RIGHT(F90,1))=High,UnitCostHigh,UnitCostSpecified)),MATCH(UPPER(LEFT(F90,LEN(F90)-1)),CostCode,0))) -> 750 | H90: =G90*E90 -> 6000 | I90: 0.9 | J90: =H90*I90 -> 5400 | K90: =+H90*(1-I90) -> 600
B91: Disconnect containers and prep for shipping off-site | D91: each | E91: 8 | F91: C108L | G91: 1325 | H91: 10600 | I91: 0.9 | J91: 9540 | K91: 1060
B92: haul containers to Roberts Bay laydown | D92: m3 | E92: 265.66 | F92: C404L | G92: 6.34 | H92: 1684.2844 | I92: 0.9 | J92: 1515.85596 | K92: 168.42844
B93: dismantle stacks | D93: each | E93: 2 | F93: C313L | G93: 20000 | H93: 40000 | I93: 0.9 | J93: 36000 | K93: 4000
B94: prep stacks for shipping off-site | D94: each | E94: 2 | F94: C312L | G94: 1500 | H94: 3000 | I94: 0.9 | J94: 2700 | K94: 300
B95: haul stack sections to Roberts Bay laydown | D95: m3 | E95: 166 | F95: C404L | G95: 6.34 | H95: 1052.44 | I95: 0.9 | J95: 947.196 | K95: 105.244
B96: collect all debris | D96: m2 | E96: 2103 | F96: C310L | G96: 0.18 | H96: 378.54 | I96: 0.9 | J96: 340.686 | K96: 37.854
B97: load waste for shipping to landfill | D97: m3 | E97: 2 | F97: C401L | G97: 13.13 | H97: 26.26 | I97: 0.9 | J97: 23.634 | K97: 2.626
B98: haul waste to landfill | D98: m3 | E98: 2 | F98: C414L | G98: 6.34 | H98: 12.68 | I98: 0.9 | J98: 11.412 | K98: 1.268
B99: BACKUP POWER GENERATOR
B100: Decommission (electrical) | D100: each | E100: 4 | F100: c105l | G100: =IF(ISNA(F100),0,INDEX(IF(UPPER(RIGHT(F100,1))=Low,UnitCostLow, IF(UPPER(RIGHT(F100,1))=High,UnitCostHigh,UnitCostSpecified)),MATCH(UPPER(LEFT(F100,LEN(F100)-1)),CostCode,0))) -> 640 | H100: =G100*E100 -> 2560 | I100: 0.9 | J100: =H100*I100 -> 2304 | K100: =+H100*(1-I100) -> 256
B101: Disconnect generator units and prep for shipping off-site | D101: each | E101: 2 | F101: c106l | G101: 750 | H101: 1500 | I101: 0.9 | J101: 1350 | K101: 150
B102: haul units to Roberts Bay laydown | D102: m3 | E102: 67.6 | F102: C404L | G102: 6.34 | H102: 428.584 | I102: 0.9 | J102: 385.7256 | K102: 42.8584
B103: demolish tent housing structure | D103: m3 | E103: 94.1 | F103: C305L | G103: 19 | H103: 1787.9 | I103: 0.9 | J103: 1609.11 | K103: 178.79
B104: collect all debris | D104: m2 | E104: 259.3 | F104: C310L | G104: 0.18 | H104: 46.674 | I104: 0.9 | J104: 42.0066 | K104: 4.6674
B105: load waste for shipping to landfill | D105: m3 | E105: 122.4 | F105: C401L | G105: 13.13 | H105: 1607.112 | I105: 0.9 | J105: 1446.4008 | K105: 160.7112
B106: haul waste to landfill | D106: m3 | E106: 122.4 | F106: C414L | G106: 6.34 | H106: 776.016 | I106: 0.9 | J106: 698.4144 | K106: 77.6016
B107: SEWAGE TREATMENT PLANT
B108: Flush & remove sewage plumbing, collect sewage sludge/waste water in 55 gallon drums | D108: each | E108: 9 | F108: C206L | G108: =IF(ISNA(F108),0,INDEX(IF(UPPER(RIGHT(F108,1))=Low,UnitCostLow, IF(UPPER(RIGHT(F108,1))=High,UnitCostHigh,UnitCostSpecified)),MATCH(UPPER(LEFT(F108,LEN(F108)-1)),CostCode,0))) -> 657.86 | H108: =G108*E108 -> 5920.74 | I108: 0 | J108: 0 | K108: =+H108*(1-I108) -> 5920.74
B109: Decommission (electrical) 9.0 each | D109: each | E109: 9 | F109: C105L | G109: 640 | H109: 5760 | I109: 0.9 | J109: =H109*I109 -> 5184 | K109: 576
B110: Disconnect containers and prep for shipping off-site | D110: each | E110: 9 | F110: C108L | G110: 1325 | H110: 11925 | I110: 0.9 | J110: 10732.5 | K110: 1192.5
B111: haul containers to Roberts Bay laydown | D111: m3 | E111: 597.6 | F111: C404L | G111: 6.34 | H111: 3788.784 | I111: 0.9 | J111: 3409.9056 | K111: 378.8784
B112: Collect Debris | D112: m2 | E112: 29.8 | F112: C310L | G112: 0.18 | H112: 5.364 | I112: 0.9 | J112: 4.8276 | K112: 0.5364
B113: Load debris into containers for transport (to Roberts Bay) | D113: m3 | E113: 23.8 | F113: C401L | G113: 13.13 | H113: 312.494 | I113: 0.9 | J113: 281.2446 | K113: 31.2494
B114: Haul debris to Roberts Bay | D114: m3 | E114: 23.8 | F114: C414L | G114: 6.34 | H114: 150.892 | I114: 0.9 | J114: 135.8028 | K114: 15.0892
B115: FIRE WATER STORAGE TANK
B116: decommission and disconnect electrical and plumbing | D116: each | E116: 3 | F116: C105L | G116: =IF(ISNA(F116),0,INDEX(IF(UPPER(RIGHT(F116,1))=Low,UnitCostLow, IF(UPPER(RIGHT(F116,1))=High,UnitCostHigh,UnitCostSpecified)),MATCH(UPPER(LEFT(F116,LEN(F116)-1)),CostCode,0))) -> 640 | H116: =G116*E116 -> 1920 | I116: 0.9 | J116: =H116*I116 -> 1728 | K116: =+H116*(1-I116) -> 192
B117: disconnect & remove container housing pumps & controls; prep for shipping | D117: each | E117: 1 | F117: C108L | G117: 1325 | H117: 1325 | I117: 0.9 | J117: 1192.5 | K117: 132.5
B118: haul container to Roberts Bay laydown | D118: m3 | E118: 33.2 | F118: C404L | G118: 6.34 | H118: 210.488 | I118: 0.9 | J118: 189.4392 | K118: 21.0488
B119: remove tank insulation | D119: m3 | E119: 53 | F119: C315L | G119: 720 | H119: 38160 | I119: 0.9 | J119: 34344 | K119: 3816
B120: Dismantle tanks and cut into manageable pieces | D120: m3 | E120: 2 | F120: C307L | G120: 19 | H120: 38 | I120: 0.9 | J120: 34.2 | K120: 3.8
B121: prepare pieces for transportation | D121: m3 | E121: 3.4 | F121: C401L | G121: 13.13 | H121: 44.642 | I121: 0.9 | J121: 40.1778 | K121: 4.4642
B122: haul cut metal to Roberts Bay laydown | D122: m3 | E122: 3.4 | F122: C404L | G122: 6.34 | H122: 21.556 | I122: 0.9 | J122: 19.4004 | K122: 2.1556
B123: Collect Debris | D123: m3 | E123: 73.2 | F123: C310L | G123: 0.18 | H123: 13.176 | I123: 0.9 | J123: 11.8584 | K123: 1.3176
B124: Load debris for transport Landfill | D124: m2 | E124: 29.7 | F124: C401L | G124: 13.13 | H124: 389.961 | I124: 0.9 | J124: 350.9649 | K124: 38.9961
B125: Haul debris to landfill | D125: m3 | E125: 29.7 | F125: C404L | G125: 6.34 | H125: 188.298 | I125: 0.9 | J125: 169.4682 | K125: 18.8298
B126: Muster Station
B127: demolish tent structure | D127: m3 | E127: 227.3 | F127: C305L | G127: =IF(ISNA(F127),0,INDEX(IF(UPPER(RIGHT(F127,1))=Low,UnitCostLow, IF(UPPER(RIGHT(F127,1))=High,UnitCostHigh,UnitCostSpecified)),MATCH(UPPER(LEFT(F127,LEN(F127)-1)),CostCode,0))) -> 19 | H127: =G127*E127 -> 4318.7 | I127: 0.9 | J127: =H127*I127 -> 3886.83 | K127: =+H127*(1-I127) -> 431.87
B128: dismantle wood flooring | D128: m3 | E128: 27.3 | F128: C305L | G128: =IF(ISNA(F128),0,INDEX(IF(UPPER(RIGHT(F128,1))=Low,UnitCostLow, IF(UPPER(RIGHT(F128,1))=High,UnitCostHigh,UnitCostSpecified)),MATCH(UPPER(LEFT(F128,LEN(F128)-1)),CostCode,0))) -> 19 | H128: =G128*E128 -> 518.7 | I128: 0.9 | J128: =H128*I128 -> 466.83 | K128: =+H128*(1-I128) -> 51.87
B129: Collect Debris | D129: m2 | E129: 90.9 | F129: C310L | G129: =IF(ISNA(F129),0,INDEX(IF(UPPER(RIGHT(F129,1))=Low,UnitCostLow, IF(UPPER(RIGHT(F129,1))=High,UnitCostHigh,UnitCostSpecified)),MATCH(UPPER(LEFT(F129,LEN(F129)-1)),CostCode,0))) -> 0.18 | H129: =G129*E129 -> 16.362 | I129: 0.9 | J129: =H129*I129 -> 14.7258 | K129: =+H129*(1-I129) -> 1.6362
B130: Load debris for transport to landfill | D130: m3 | E130: 42.7 | F130: C404L | G130: =IF(ISNA(F130),0,INDEX(IF(UPPER(RIGHT(F130,1))=Low,UnitCostLow, IF(UPPER(RIGHT(F130,1))=High,UnitCostHigh,UnitCostSpecified)),MATCH(UPPER(LEFT(F130,LEN(F130)-1)),CostCode,0))) -> 6.34 | H130: =G130*E130 -> 270.718 | I130: 0.9 | J130: =H130*I130 -> 243.6462 | K130: =+H130*(1-I130) -> 27.0718
B131: Haul Debris to landfill | D131: m3 | E131: 42.7 | F131: C414L | G131: =IF(ISNA(F131),0,INDEX(IF(UPPER(RIGHT(F131,1))=Low,UnitCostLow, IF(UPPER(RIGHT(F131,1))=High,UnitCostHigh,UnitCostSpecified)),MATCH(UPPER(LEFT(F131,LEN(F131)-1)),CostCode,0))) -> 6.34 | H131: =G131*E131 -> 270.718 | I131: 0.9 | J131: =H131*I131 -> 243.6462 | K131: =+H131*(1-I131) -> 27.0718
B132: WAREHOUSE / CORE SHACK
B133: demolish tent structure | D133: m3 | E133: 269.5 | F133: C305L | G133: =IF(ISNA(F133),0,INDEX(IF(UPPER(RIGHT(F133,1))=Low,UnitCostLow, IF(UPPER(RIGHT(F133,1))=High,UnitCostHigh,UnitCostSpecified)),MATCH(UPPER(LEFT(F133,LEN(F133)-1)),CostCode,0))) -> 19 | H133: =G133*E133 -> 5120.5 | I133: 0.9 | J133: =H133*I133 -> 4608.45 | K133: =+H133*(1-I133) -> 512.05
B134: dismantle wood flooring, shelving, and lofts | D134: m3 | E134: 186.2 | F134: C305L | G134: 19 | H134: 3537.8 | I134: 0.9 | J134: 3184.02 | K134: 353.78
B135: Collect Debris | D135: m2 | E135: 720.1 | F135: C310L | G135: 0.18 | H135: 129.618 | I135: 0.9 | J135: 116.6562 | K135: 12.9618
B136: Load debris for transport to landfill | D136: m3 | E136: 350.3 | F136: C401L | G136: 13.13 | H136: 4599.439 | I136: 0.9 | J136: 4139.4951 | K136: 459.9439
B137: Haul debris to landfill | D137: m3 | E137: 350.3 | F137: C414L | G137: 6.34 | H137: 2220.902 | I137: 0.9 | J137: 1998.8118 | K137: 222.0902
B138: haul all warehouse containers to Roberts Bay | D138: m3 | E138: 796.8 | F138: C404L | G138: 6.34 | H138: 5051.712 | I138: 0.9 | J138: 4546.5408 | K138: 505.1712
B139: OFFICE & MINE DRY COMPLEX
B140: Decommission (electrical, mechanical, plumbing) | D140: each | E140: 3 | F140: C105L | G140: =IF(ISNA(F140),0,INDEX(IF(UPPER(RIGHT(F140,1))=Low,UnitCostLow, IF(UPPER(RIGHT(F140,1))=High,UnitCostHigh,UnitCostSpecified)),MATCH(UPPER(LEFT(F140,LEN(F140)-1)),CostCode,0))) -> 640 | H140: =G140*E140 -> 1920 | I140: 0.9 | J140: =H140*I140 -> 1728 | K140: =+H140*(1-I140) -> 192
B141: disconnect trailers and prep for moving (remove boards, cladding, etc.; wrap in plastic) | D141: each | E141: 17 | F141: C108L | G141: 1325 | H141: 22525 | I141: 0.9 | J141: 20272.5 | K141: 2252.5
B142: haul trailers to Roberts Bay for shipping off-site | D142: m3 | E142: 564.4 | F142: C404L | G142: 6.34 | H142: 3578.296 | I142: 0.9 | J142: 3220.4664 | K142: 357.8296
B143: demolish arctic corridor | D143: m3 | E143: 219.5 | F143: C305L | G143: 19 | H143: 4170.5 | I143: 0.9 | J143: 3753.45 | K143: 417.05
B144: demolish cribbing, stairs, entryways, etc. | D144: m3 | E144: 998.2 | F144: C305L | G144: 19 | H144: 18965.8 | I144: 0.9 | J144: 17069.22 | K144: 1896.58
B145: collect all debris | D145: m3 | E145: 998.2 | F145: C310L | G145: 0.18 | H145: 179.676 | I145: 0.9 | J145: 161.7084 | K145: 17.9676
B146: Load debris for transport to landfill | D146: m3 | E146: 2325.6 | F146: C401L | G146: 13.13 | H146: 30535.128 | I146: 0.9 | J146: 27481.6152 | K146: 3053.5128
B147: haul debris to landfill | D147: m3 | E147: 2325.6 | F147: C414L | G147: 6.34 | H147: 14744.304 | I147: 0.9 | J147: 13269.8736 | K147: 1474.4304
B148: regrade area for positive drainage | D148: m2 | E148: 6910 | F148: C518L | G148: 0.12 | H148: 829.2 | I148: 0.7 | J148: 580.44 | K148: 248.76
B149: CRUSHING, MILLING & PROCESSING PLANT
B150: decommission crusher, milling, and process plants | D150: each | E150: 1 | F150: PLNT1L | G150: =IF(ISNA(F150),0,INDEX(IF(UPPER(RIGHT(F150,1))=Low,UnitCostLow, IF(UPPER(RIGHT(F150,1))=High,UnitCostHigh,UnitCostSpecified)),MATCH(UPPER(LEFT(F150,LEN(F150)-1)),CostCode,0))) -> 150000 | H150: =G150*E150 -> 150000 | I150: 0.9 | J150: =H150*I150 -> 135000 | K150: =+H150*(1-I150) -> 15000
B151: Drain chemicals and reagents into containers for shipping off site | D151: m3 | E151: 8.3 | F151: c208al | G151: 100 | H151: 830 | I151: 0 | J151: 0 | K151: 830
B152: disassemble equipment | D152: each | E152: 1 | F152: PLNT2L | G152: 200000 | H152: 200000 | I152: 0.9 | J152: 180000 | K152: 20000
B153: prepare equipment for shipping off-site | D153: each | E153: 1 | F153: PLNT3L | G153: 50000 | H153: 50000 | I153: 0.9 | J153: 45000 | K153: 5000
B154: demolish / dismantle mill building | D154: m3 | E154: 123515 | F154: C305L | G154: 19 | H154: 2346785 | I154: 0.9 | J154: 2112106.5 | K154: 234678.5
B155: Collect Debris | D155: m2 | E155: 8700 | F155: C310L | G155: 0.18 | H155: 1566 | I155: 0.9 | J155: 1409.4 | K155: 156.6
B156: load waste for transport to Landfill | D156: m3 | E156: 4381.8 | F156: C401L | G156: 13.13 | H156: 57533.034 | I156: 0.9 | J156: 51779.7306 | K156: 5753.3034
B157: Haul debris to landfill | D157: m3 | E157: 4381.8 | F157: C414L | G157: 6.34 | H157: 27780.612 | I157: 0.9 | J157: 25002.5508 | K157: 2778.0612
B158: transport drums to Roberts Bay | D158: m3 | E158: 8.3 | F158: C404L | G158: 6.34 | H158: 52.622 | I158: 0.9 | J158: 47.3598 | K158: 5.2622
B159: UNDERGROUND WASHBAY | F159: 0.74
B160: demolish tent structure | D160: m3 | E160: 776.9 | F160: C305L | G160: =IF(ISNA(F160),0,INDEX(IF(UPPER(RIGHT(F160,1))=Low,UnitCostLow, IF(UPPER(RIGHT(F160,1))=High,UnitCostHigh,UnitCostSpecified)),MATCH(UPPER(LEFT(F160,LEN(F160)-1)),CostCode,0))) -> 19 | H160: =G160*E160 -> 14761.1 | I160: 0.9 | J160: =H160*I160 -> 13284.99 | K160: =+H160*(1-I160) -> 1476.11
B161: Collect Debris | D161: m2 | E161: 155.4 | F161: C310L | G161: =IF(ISNA(F161),0,INDEX(IF(UPPER(RIGHT(F161,1))=Low,UnitCostLow, IF(UPPER(RIGHT(F161,1))=High,UnitCostHigh,UnitCostSpecified)),MATCH(UPPER(LEFT(F161,LEN(F161)-1)),CostCode,0))) -> 0.18 | H161: =G161*E161 -> 27.972 | I161: 0.9 | J161: =H161*I161 -> 25.1748 | K161: =+H161*(1-I161) -> 2.7972
B162: Load debris for transport to landfill | D162: m3 | E162: 15.5 | F162: C401L | G162: =IF(ISNA(F162),0,INDEX(IF(UPPER(RIGHT(F162,1))=Low,UnitCostLow, IF(UPPER(RIGHT(F162,1))=High,UnitCostHigh,UnitCostSpecified)),MATCH(UPPER(LEFT(F162,LEN(F162)-1)),CostCode,0))) -> 13.13 | H162: =G162*E162 -> 203.515 | I162: 0.9 | J162: =H162*I162 -> 183.1635 | K162: =+H162*(1-I162) -> 20.3515
B163: Haul debris to landfill | D163: m3 | E163: 15.5 | F163: C414L | G163: =IF(ISNA(F163),0,INDEX(IF(UPPER(RIGHT(F163,1))=Low,UnitCostLow, IF(UPPER(RIGHT(F163,1))=High,UnitCostHigh,UnitCostSpecified)),MATCH(UPPER(LEFT(F163,LEN(F163)-1)),CostCode,0))) -> 6.34 | H163: =G163*E163 -> 98.27 | I163: 0.9 | J163: =H163*I163 -> 88.443 | K163: =+H163*(1-I163) -> 9.827
B164: UNDERGROUND DRILLING SUPPORT SHOP
B165: demolish tent structure | D165: m3 | E165: 859.2 | F165: C305L | G165: =IF(ISNA(F165),0,INDEX(IF(UPPER(RIGHT(F165,1))=Low,UnitCostLow, IF(UPPER(RIGHT(F165,1))=High,UnitCostHigh,UnitCostSpecified)),MATCH(UPPER(LEFT(F165,LEN(F165)-1)),CostCode,0))) -> 19 | H165: =G165*E165 -> 16324.8 | I165: 0.9 | J165: =H165*I165 -> 14692.32 | K165: =+H165*(1-I165) -> 1632.48
B166: Collect Debris | D166: m2 | E166: 229.1 | F166: C310L | G166: =IF(ISNA(F166),0,INDEX(IF(UPPER(RIGHT(F166,1))=Low,UnitCostLow, IF(UPPER(RIGHT(F166,1))=High,UnitCostHigh,UnitCostSpecified)),MATCH(UPPER(LEFT(F166,LEN(F166)-1)),CostCode,0))) -> 0.18 | H166: =G166*E166 -> 41.238 | I166: 0.9 | J166: =H166*I166 -> 37.1142 | K166: =+H166*(1-I166) -> 4.1238
B167: Load debris for transport to landfill | D167: m3 | E167: 17.7 | F167: C401L | G167: =IF(ISNA(F167),0,INDEX(IF(UPPER(RIGHT(F167,1))=Low,UnitCostLow, IF(UPPER(RIGHT(F167,1))=High,UnitCostHigh,UnitCostSpecified)),MATCH(UPPER(LEFT(F167,LEN(F167)-1)),CostCode,0))) -> 13.13 | H167: =G167*E167 -> 232.401 | I167: 0.9 | J167: =H167*I167 -> 209.1609 | K167: =+H167*(1-I167) -> 23.2401
B168: Haul debris to landfill | D168: m3 | E168: 17.7 | F168: C414L | G168: =IF(ISNA(F168),0,INDEX(IF(UPPER(RIGHT(F168,1))=Low,UnitCostLow, IF(UPPER(RIGHT(F168,1))=High,UnitCostHigh,UnitCostSpecified)),MATCH(UPPER(LEFT(F168,LEN(F168)-1)),CostCode,0))) -> 6.34 | H168: =G168*E168 -> 112.218 | I168: 0.9 | J168: =H168*I168 -> 100.9962 | K168: =+H168*(1-I168) -> 11.2218
B169: WATER INTAKE STRUCTURE AND PUMPING FACILITY
B170: remove water intake line from Doris Lake | D170: lm | E170: 25 | F170: PLRL | G170: =IF(ISNA(F170),0,INDEX(IF(UPPER(RIGHT(F170,1))=Low,UnitCostLow, IF(UPPER(RIGHT(F170,1))=High,UnitCostHigh,UnitCostSpecified)),MATCH(UPPER(LEFT(F170,LEN(F170)-1)),CostCode,0))) -> 22 | H170: =G170*E170 -> 550 | I170: 0 | J170: =H170*I170 -> 0 | K170: =+H170*(1-I170) -> 550
B171: decommission pumping facility (remove electrical) | D171: each | E171: 2 | F171: C105L | G171: 640 | H171: 1280 | I171: 0.9 | J171: 1152 | K171: 128
B172: prep containers for shipping off-site | D172: each | E172: 2 | F172: C108L | G172: 1325 | H172: 2650 | I172: 0.9 | J172: 2385 | K172: 265
B173: disconnect and remove generator fuel tank (place in Doris tank farm for cleaning) | D173: each | E173: 1 | F173: C105L | G173: 640 | H173: 640 | I173: 0 | J173: 0 | K173: 640
B174: clean TidyTank and prep for shipping off-site | D174: each | E174: 1 | F174: C204L | G174: 1420 | H174: 1420 | I174: 0 | J174: 0 | K174: 1420
B175: run oil-water separator | D175: m3 | E175: 3 | F175: C208L | G175: 30 | H175: 90 | I175: 0 | J175: 0 | K175: 90
B176: prep generator container for shipping off-site | D176: each | E176: 1 | F176: C108L | G176: 1325 | H176: 1325 | I176: 0.9 | J176: 1192.5 | K176: 132.5
B177: haul containers to Roberts Bay laydown | D177: m3 | E177: 66.4 | F177: C404L | G177: 6.34 | H177: 420.976 | I177: 0.9 | J177: 378.8784 | K177: 42.0976
B178: Collect Debris | D178: m2 | E178: 2226.2 | F178: C310L | G178: 0.18 | H178: 400.716 | I178: 0.9 | J178: 360.6444 | K178: 40.0716
B179: Load debris for transport to landfill | D179: m3 | E179: 20 | F179: C401L | G179: 13.13 | H179: 262.6 | I179: 0.9 | J179: 236.34 | K179: 26.26
B180: Haul debris to landfill | D180: m3 | E180: 20 | F180: C414L | G180: 6.34 | H180: 126.8 | I180: 0.9 | J180: 114.12 | K180: 12.68
B181: SEDIMENTATION / POLLUTION CONTROL POND
B182: disconnect piping and electrical wiring, remove sump pumps | D182: each | E182: 2 | F182: C105L | G182: =IF(ISNA(F182),0,INDEX(IF(UPPER(RIGHT(F182,1))=Low,UnitCostLow, IF(UPPER(RIGHT(F182,1))=High,UnitCostHigh,UnitCostSpecified)),MATCH(UPPER(LEFT(F182,LEN(F182)-1)),CostCode,0))) -> 640 | H182: =G182*E182 -> 1280 | I182: 0.9 | J182: =H182*I182 -> 1152 | K182: =+H182*(1-I182) -> 128
B183: remove and cut liner into manageable pieces (Sedimentation Pond only) | D183: m2 | E183: 14110 | F183: C302L | G183: 0.56 | H183: 7901.6 | I183: 0.5 | J183: 3950.8 | K183: 3950.8
B184: load waste for transport to Landfill | D184: m3 | E184: 42.3 | F184: C401L | G184: 13.13 | H184: 555.399 | I184: 0.9 | J184: 499.8591 | K184: 55.5399
B185: Haul Debris to landfill | D185: m3 | E185: 42.3 | F185: C414L | G185: 6.34 | H185: 268.182 | I185: 0.9 | J185: 241.3638 | K185: 26.8182
B186: breach Pollution Control pond and Sedimentation Pond containment berms | D186: m3 | E186: 2608.2 | F186: SB1L | G186: 4.3 | H186: 11215.26 | I186: 0.7 | J186: 7850.682 | K186: 3364.578
B187: rip-rap breach for erosion protection | D187: m3 | E187: 13.8 | F187: RR1L | G187: 13.5 | H187: 186.3 | I187: 0.7 | J187: 130.41 | K187: 55.89
B188: UNDERGROUND SUPPORT MECHANICAL SHOP
B189: Decommission electrical, mechanical (including connections to generator house & transformer) | D189: each | E189: 3 | F189: C105L | G189: =IF(ISNA(F189),0,INDEX(IF(UPPER(RIGHT(F189,1))=Low,UnitCostLow, IF(UPPER(RIGHT(F189,1))=High,UnitCostHigh,UnitCostSpecified)),MATCH(UPPER(LEFT(F189,LEN(F189)-1)),CostCode,0))) -> 640 | H189: =G189*E189 -> 1920 | I189: 0.9 | J189: =H189*I189 -> 1728 | K189: =+H189*(1-I189) -> 192
B190: demolish building | D190: m3 | E190: 2281.6 | F190: C305L | G190: 19 | H190: 43350.4 | I190: 0.9 | J190: 39015.36 | K190: 4335.04
B191: Collect Debris | D191: m2 | E191: 456.3 | F191: C310L | G191: 0.18 | H191: 82.134 | I191: 0.9 | J191: 73.9206 | K191: 8.2134
B192: load waste for transport to Landfill | D192: m3 | E192: 504.5 | F192: C401L | G192: 13.13 | H192: 6624.085 | I192: 0.9 | J192: 5961.6765 | K192: 662.4085
B193: haul debris to landfill | D193: m3 | E193: 504.5 | F193: C414L | G193: 6.34 | H193: 3198.53 | I193: 0.9 | J193: 2878.677 | K193: 319.853
B194: Load hazardous waste into container for transport off site | D194: m3 | E194: 33.2 | F194: C401L | G194: 13.13 | H194: 435.916 | I194: 0.9 | J194: 392.3244 | K194: 43.5916
B195: Haul Waste container to Roberts Bay | D195: m3 | E195: 33.2 | F195: C414L | G195: 6.34 | H195: 210.488 | I195: 0.9 | J195: 189.4392 | K195: 21.0488
B196: FRESH WATER PIPELINES
B197: Cut pipelines into manageable pieces | D197: lm | E197: 830 | F197: PLDL | G197: =IF(ISNA(F197),0,INDEX(IF(UPPER(RIGHT(F197,1))=Low,UnitCostLow, IF(UPPER(RIGHT(F197,1))=High,UnitCostHigh,UnitCostSpecified)),MATCH(UPPER(LEFT(F197,LEN(F197)-1)),CostCode,0))) -> 11.5 | H197: =G197*E197 -> 9545 | I197: 0.5 | J197: =H197*I197 -> 4772.5 | K197: =+H197*(1-I197) -> 4772.5
B198: decommission electrical (heat tracing) | D198: each | E198: 4 | F198: C105L | G198: =IF(ISNA(F198),0,INDEX(IF(UPPER(RIGHT(F198,1))=Low,UnitCostLow, IF(UPPER(RIGHT(F198,1))=High,UnitCostHigh,UnitCostSpecified)),MATCH(UPPER(LEFT(F198,LEN(F198)-1)),CostCode,0))) -> 640 | H198: =G198*E198 -> 2560 | I198: 0.9 | J198: =H198*I198 -> 2304 | K198: =+H198*(1-I198) -> 256
B199: collect electrical cables and controllers and prep for shipping off-site | D199: m2 | E199: 1600 | F199: C310L | G199: =IF(ISNA(F199),0,INDEX(IF(UPPER(RIGHT(F199,1))=Low,UnitCostLow, IF(UPPER(RIGHT(F199,1))=High,UnitCostHigh,UnitCostSpecified)),MATCH(UPPER(LEFT(F199,LEN(F199)-1)),CostCode,0))) -> 0.18 | H199: =G199*E199 -> 288 | I199: 0.9 | J199: =H199*I199 -> 259.2 | K199: =+H199*(1-I199) -> 28.8
B200: Load debris for transport to landfill | D200: m3 | E200: 28.2 | F200: C404L | G200: =IF(ISNA(F200),0,INDEX(IF(UPPER(RIGHT(F200,1))=Low,UnitCostLow, IF(UPPER(RIGHT(F200,1))=High,UnitCostHigh,UnitCostSpecified)),MATCH(UPPER(LEFT(F200,LEN(F200)-1)),CostCode,0))) -> 6.34 | H200: =G200*E200 -> 178.788 | I200: 0.9 | J200: =H200*I200 -> 160.9092 | K200: =+H200*(1-I200) -> 17.8788
B201: haul debris to landfill | D201: m3 | E201: 28.2 | F201: C414L | G201: =IF(ISNA(F201),0,INDEX(IF(UPPER(RIGHT(F201,1))=Low,UnitCostLow, IF(UPPER(RIGHT(F201,1))=High,UnitCostHigh,UnitCostSpecified)),MATCH(UPPER(LEFT(F201,LEN(F201)-1)),CostCode,0))) -> 6.34 | H201: =G201*E201 -> 178.788 | I201: 0.9 | J201: =H201*I201 -> 160.9092 | K201: =+H201*(1-I201) -> 17.8788
B202: HELECOPTER SUPPORT FACILITIES
... 40 more rows

Sheet Water Management
A1: 1 | B1: Capital Expenditures and Short Term Water Treatment identified in 'Instructions' worksheet
B3: ACTIVITY/MATERIAL | C3: Notes | D3: Units | E3: Quantity | F3: Cost Code | G3: Unit Cost | H3: Cost
B4: BREACH DYKE EMBANKMENT
B5: Remove fill | D5: m3 | F5: =NA() ->  | G5: =IF(ISNA(F5),0,INDEX(IF(UPPER(RIGHT(F5,1))=Low,UnitCostLow, IF(UPPER(RIGHT(F5,1))=High,UnitCostHigh,UnitCostSpecified)),MATCH(UPPER(LEFT(F5,LEN(F5)-1)),CostCode,0))) -> 0 | H5: =G5*E5 -> 0
B6: Contour water intake area | D6: m3 | F6: =NA() ->  | G6: =IF(ISNA(F6),0,INDEX(IF(UPPER(RIGHT(F6,1))=Low,UnitCostLow, IF(UPPER(RIGHT(F6,1))=High,UnitCostHigh,UnitCostSpecified)),MATCH(UPPER(LEFT(F6,LEN(F6)-1)),CostCode,0))) -> 0 | H6: =G6*E6 -> 0
B7: STABILIZE SEDIMENT PONDS/WATER MANAGEMENT PONDS
B8: Place soil cover | D8: m3 | F8: =NA() ->  | G8: =IF(ISNA(F8),0,INDEX(IF(UPPER(RIGHT(F8,1))=Low,UnitCostLow, IF(UPPER(RIGHT(F8,1))=High,UnitCostHigh,UnitCostSpecified)),MATCH(UPPER(LEFT(F8,LEN(F8)-1)),CostCode,0))) -> 0 | H8: =G8*E8 -> 0
B9: Doze & spread excavated material | D9: m3 | F9: =NA() ->  | G9: =IF(ISNA(F9),0,INDEX(IF(UPPER(RIGHT(F9,1))=Low,UnitCostLow, IF(UPPER(RIGHT(F9,1))=High,UnitCostHigh,UnitCostSpecified)),MATCH(UPPER(LEFT(F9,LEN(F9)-1)),CostCode,0))) -> 0 | H9: =G9*E9 -> 0
B10: Vegetate spread material | D10: ha | F10: =NA() ->  | G10: =IF(ISNA(F10),0,INDEX(IF(UPPER(RIGHT(F10,1))=Low,UnitCostLow, IF(UPPER(RIGHT(F10,1))=High,UnitCostHigh,UnitCostSpecified)),MATCH(UPPER(LEFT(F10,LEN(F10)-1)),CostCode,0))) -> 0 | H10: =G10*E10 -> 0
B11: Rip rap in channel base | D11: each | F11: =NA() ->  | G11: =IF(ISNA(F11),0,INDEX(IF(UPPER(RIGHT(F11,1))=Low,UnitCostLow, IF(UPPER(RIGHT(F11,1))=High,UnitCostHigh,UnitCostSpecified)),MATCH(UPPER(LEFT(F11,LEN(F11)-1)),CostCode,0))) -> 0 | H11: =G11*E11 -> 0
B12: REDIRECT RUNOFF/CONSTRUCT DIVERSION DITCHES
B13: Excavate ditches -soil | D13: m3 | F13: =NA() ->  | G13: =IF(ISNA(F13),0,INDEX(IF(UPPER(RIGHT(F13,1))=Low,UnitCostLow, IF(UPPER(RIGHT(F13,1))=High,UnitCostHigh,UnitCostSpecified)),MATCH(UPPER(LEFT(F13,LEN(F13)-1)),CostCode,0))) -> 0 | H13: =G13*E13 -> 0
B14: Excavate ditches -rock | D14: m3 | F14: =NA() ->  | G14: =IF(ISNA(F14),0,INDEX(IF(UPPER(RIGHT(F14,1))=Low,UnitCostLow, IF(UPPER(RIGHT(F14,1))=High,UnitCostHigh,UnitCostSpecified)),MATCH(UPPER(LEFT(F14,LEN(F14)-1)),CostCode,0))) -> 0 | H14: =G14*E14 -> 0
B15: Stabilize side slopes | D15: m3 | F15: =NA() ->  | G15: =IF(ISNA(F15),0,INDEX(IF(UPPER(RIGHT(F15,1))=Low,UnitCostLow, IF(UPPER(RIGHT(F15,1))=High,UnitCostHigh,UnitCostSpecified)),MATCH(UPPER(LEFT(F15,LEN(F15)-1)),CostCode,0))) -> 0 | H15: =G15*E15 -> 0
B16: Rip rap in channel base | D16: m3 | F16: =NA() ->  | G16: =IF(ISNA(F16),0,INDEX(IF(UPPER(RIGHT(F16,1))=Low,UnitCostLow, IF(UPPER(RIGHT(F16,1))=High,UnitCostHigh,UnitCostSpecified)),MATCH(UPPER(LEFT(F16,LEN(F16)-1)),CostCode,0))) -> 0 | H16: =G16*E16 -> 0
B17: BREACH DITCHES
B18: Excavate breaches | D18: m3 | F18: =NA() ->  | G18: =IF(ISNA(F18),0,INDEX(IF(UPPER(RIGHT(F18,1))=Low,UnitCostLow, IF(UPPER(RIGHT(F18,1))=High,UnitCostHigh,UnitCostSpecified)),MATCH(UPPER(LEFT(F18,LEN(F18)-1)),CostCode,0))) -> 0 | H18: =G18*E18 -> 0
B19: Backfill/recontour | D19: m3 | F19: =NA() ->  | G19: =IF(ISNA(F19),0,INDEX(IF(UPPER(RIGHT(F19,1))=Low,UnitCostLow, IF(UPPER(RIGHT(F19,1))=High,UnitCostHigh,UnitCostSpecified)),MATCH(UPPER(LEFT(F19,LEN(F19)-1)),CostCode,0))) -> 0 | H19: =G19*E19 -> 0
B20: Install flow dissipation | D20: m3 | F20: =NA() ->  | G20: =IF(ISNA(F20),0,INDEX(IF(UPPER(RIGHT(F20,1))=Low,UnitCostLow, IF(UPPER(RIGHT(F20,1))=High,UnitCostHigh,UnitCostSpecified)),MATCH(UPPER(LEFT(F20,LEN(F20)-1)),CostCode,0))) -> 0 | H20: =G20*E20 -> 0
B21: Vegetate remainder of ditch | D21: m2 | F21: =NA() ->  | G21: =IF(ISNA(F21),0,INDEX(IF(UPPER(RIGHT(F21,1))=Low,UnitCostLow, IF(UPPER(RIGHT(F21,1))=High,UnitCostHigh,UnitCostSpecified)),MATCH(UPPER(LEFT(F21,LEN(F21)-1)),CostCode,0))) -> 0 | H21: =G21*E21 -> 0
B22: DECOMISSION FRESH WATER SUPPLY
B23: Breach embankment | D23: m | F23: =NA() ->  | G23: =IF(ISNA(F23),0,INDEX(IF(UPPER(RIGHT(F23,1))=Low,UnitCostLow, IF(UPPER(RIGHT(F23,1))=High,UnitCostHigh,UnitCostSpecified)),MATCH(UPPER(LEFT(F23,LEN(F23)-1)),CostCode,0))) -> 0 | H23: =G23*E23 -> 0
B24: Remove pump | D24: LS | F24: =NA() ->  | G24: =IF(ISNA(F24),0,INDEX(IF(UPPER(RIGHT(F24,1))=Low,UnitCostLow, IF(UPPER(RIGHT(F24,1))=High,UnitCostHigh,UnitCostSpecified)),MATCH(UPPER(LEFT(F24,LEN(F24)-1)),CostCode,0))) -> 0 | H24: =G24*E24 -> 0
B25: Remove pipeline | D25: m | F25: =NA() ->  | G25: =IF(ISNA(F25),0,INDEX(IF(UPPER(RIGHT(F25,1))=Low,UnitCostLow, IF(UPPER(RIGHT(F25,1))=High,UnitCostHigh,UnitCostSpecified)),MATCH(UPPER(LEFT(F25,LEN(F25)-1)),CostCode,0))) -> 0 | H25: =G25*E25 -> 0
B26: PUMPS
B27: Pump capital cost | D27: LS | E27: 5 | F27: pcl | G27: =IF(ISNA(F27),0,INDEX(IF(UPPER(RIGHT(F27,1))=Low,UnitCostLow, IF(UPPER(RIGHT(F27,1))=High,UnitCostHigh,UnitCostSpecified)),MATCH(UPPER(LEFT(F27,LEN(F27)-1)),CostCode,0))) -> 25000 | H27: =G27*E27 -> 125000
B28: Pump shipping | D28: LS | E28: 5 | F28: psl | G28: =IF(ISNA(F28),0,INDEX(IF(UPPER(RIGHT(F28,1))=Low,UnitCostLow, IF(UPPER(RIGHT(F28,1))=High,UnitCostHigh,UnitCostSpecified)),MATCH(UPPER(LEFT(F28,LEN(F28)-1)),CostCode,0))) -> 2500 | H28: =G28*E28 -> 12500
B29: Pump maintenance | D29: allow | E29: 5 | F29: pml | G29: =IF(ISNA(F29),0,INDEX(IF(UPPER(RIGHT(F29,1))=Low,UnitCostLow, IF(UPPER(RIGHT(F29,1))=High,UnitCostHigh,UnitCostSpecified)),MATCH(UPPER(LEFT(F29,LEN(F29)-1)),CostCode,0))) -> 10000 | H29: =G29*E29 -> 50000
B30: Install pumping system | D30: LS | F30: =NA() ->  | G30: =IF(ISNA(F30),0,INDEX(IF(UPPER(RIGHT(F30,1))=Low,UnitCostLow, IF(UPPER(RIGHT(F30,1))=High,UnitCostHigh,UnitCostSpecified)),MATCH(UPPER(LEFT(F30,LEN(F30)-1)),CostCode,0))) -> 0 | H30: =G30*E30 -> 0
B31: Remove pumping system | D31: LS | F31: =NA() ->  | G31: =IF(ISNA(F31),0,INDEX(IF(UPPER(RIGHT(F31,1))=Low,UnitCostLow, IF(UPPER(RIGHT(F31,1))=High,UnitCostHigh,UnitCostSpecified)),MATCH(UPPER(LEFT(F31,LEN(F31)-1)),CostCode,0))) -> 0 | H31: =G31*E31 -> 0
B32: REMOVE PIPELINES
B33: Remove pipes | D33: m | F33: =NA() ->  | G33: =IF(ISNA(F33),0,INDEX(IF(UPPER(RIGHT(F33,1))=Low,UnitCostLow, IF(UPPER(RIGHT(F33,1))=High,UnitCostHigh,UnitCostSpecified)),MATCH(UPPER(LEFT(F33,LEN(F33)-1)),CostCode,0))) -> 0 | H33: =G33*E33 -> 0
B34: Concrete plug deep pipes | D34: m3 | F34: =NA() ->  | G34: =IF(ISNA(F34),0,INDEX(IF(UPPER(RIGHT(F34,1))=Low,UnitCostLow, IF(UPPER(RIGHT(F34,1))=High,UnitCostHigh,UnitCostSpecified)),MATCH(UPPER(LEFT(F34,LEN(F34)-1)),CostCode,0))) -> 0 | H34: =G34*E34 -> 0
B35: Other | F35: =NA() ->  | G35: =IF(ISNA(F35),0,INDEX(IF(UPPER(RIGHT(F35,1))=Low,UnitCostLow, IF(UPPER(RIGHT(F35,1))=High,UnitCostHigh,UnitCostSpecified)),MATCH(UPPER(LEFT(F35,LEN(F35)-1)),CostCode,0))) -> 0 | H35: =G35*E35 -> 0
B36: GROUNDWATER COLLECTION SYSTEM
B37: Excavate/install sumps | D37: m3 | F37: =NA() ->  | G37: =IF(ISNA(F37),0,INDEX(IF(UPPER(RIGHT(F37,1))=Low,UnitCostLow, IF(UPPER(RIGHT(F37,1))=High,UnitCostHigh,UnitCostSpecified)),MATCH(UPPER(LEFT(F37,LEN(F37)-1)),CostCode,0))) -> 0 | H37: =G37*E37 -> 0
B38: Install pumping wells | D38: m3 | F38: =NA() ->  | G38: =IF(ISNA(F38),0,INDEX(IF(UPPER(RIGHT(F38,1))=Low,UnitCostLow, IF(UPPER(RIGHT(F38,1))=High,UnitCostHigh,UnitCostSpecified)),MATCH(UPPER(LEFT(F38,LEN(F38)-1)),CostCode,0))) -> 0 | H38: =G38*E38 -> 0
B39: Install pumps/pipelines/power supply | D39: LS | F39: =NA() ->  | G39: =IF(ISNA(F39),0,INDEX(IF(UPPER(RIGHT(F39,1))=Low,UnitCostLow, IF(UPPER(RIGHT(F39,1))=High,UnitCostHigh,UnitCostSpecified)),MATCH(UPPER(LEFT(F39,LEN(F39)-1)),CostCode,0))) -> 0 | H39: =G39*E39 -> 0
B40: CONSTRUCT CONTAMINATED WATER STORAGE POND
B41: Excavate pond | D41: m3 | F41: =NA() ->  | G41: =IF(ISNA(F41),0,INDEX(IF(UPPER(RIGHT(F41,1))=Low,UnitCostLow, IF(UPPER(RIGHT(F41,1))=High,UnitCostHigh,UnitCostSpecified)),MATCH(UPPER(LEFT(F41,LEN(F41)-1)),CostCode,0))) -> 0 | H41: =G41*E41 -> 0
B42: Doze & spread excavated material | D42: m3 | F42: =NA() ->  | G42: 0 | H42: 0
B43: Vegetate spread material | D43: ha | F43: =NA() ->  | G43: 0 | H43: 0
B44: Bedding layer | D44: m3 | F44: =NA() ->  | G44: 0 | H44: 0
B45: Supply geomembrane | D45: m2 | F45: =NA() ->  | G45: 0 | H45: 0
B46: Install geomembrane | D46: m2 | F46: =NA() ->  | G46: 0 | H46: 0
B47: Erosion protection layer | D47: m3 | F47: =NA() ->  | G47: 0 | H47: 0
B48: INSPECT AND MAINTAIN WATER MANAGEMENT STRUCTURES
B49: Inspect and maintain water management structures2 | D49: ls | E49: 0 | F49: WTR3L | G49: =IF(ISNA(F49),0,INDEX(IF(UPPER(RIGHT(F49,1))=Low,UnitCostLow, IF(UPPER(RIGHT(F49,1))=High,UnitCostHigh,UnitCostSpecified)),MATCH(UPPER(LEFT(F49,LEN(F49)-1)),CostCode,0))) -> 70000 | H49: =G49*E49 -> 0
B50: OPERATE / MAINTAIN WATER MANAGEMENT SYSTEM
B51: technician (camp rental / operations incl under Mob) | D51: month | E51: 25 | F51: WTR1S | G51: =IF(ISNA(F51),0,INDEX(IF(UPPER(RIGHT(F51,1))=Low,UnitCostLow, IF(UPPER(RIGHT(F51,1))=High,UnitCostHigh,UnitCostSpecified)),MATCH(UPPER(LEFT(F51,LEN(F51)-1)),CostCode,0))) -> 34200 | H51: =G51*E51 -> 855000
B52: site support, consumables | D52: month | E52: 25 | F52: WTR2S | G52: =IF(ISNA(F52),0,INDEX(IF(UPPER(RIGHT(F52,1))=Low,UnitCostLow, IF(UPPER(RIGHT(F52,1))=High,UnitCostHigh,UnitCostSpecified)),MATCH(UPPER(LEFT(F52,LEN(F52)-1)),CostCode,0))) -> 5800 | H52: =G52*E52 -> 145000
B53: CONSTRUCT PASSIVE TREATMENT SYSTEM (e.g. Constructed Wetland)
B54: Construct access roads | D54: km | F54: =NA() ->  | G54: 0 | H54: =G54*E54 -> 0
B55: Install HDPE piping system from collection pond | D55: m | F55: =NA() ->  | G55: 0 | H55: 0
B56: Inter-cell flow structures | D56: allow | F56: =NA() ->  | G56: 0 | H56: 0
B57: Install liners | D57: m2 | F57: =NA() ->  | G57: 0 | H57: 0
B58: Install growth media | D58: m3 | F58: =NA() ->  | G58: 0 | H58: 0
B59: Wetland vegetation | D59: ha | F59: =NA() ->  | G59: 0 | H59: 0
B60: WATER TESTING & REPORTING DURING CLOSUREACTIVITES (3 YEARS)
B61: Annual geotechnical inspection (during closure activites)3 | D61: each | E61: 2.5 | F61: GEOIL | G61: =IF(ISNA(F61),0,INDEX(IF(UPPER(RIGHT(F61,1))=Low,UnitCostLow, IF(UPPER(RIGHT(F61,1))=High,UnitCostHigh,UnitCostSpecified)),MATCH(UPPER(LEFT(F61,LEN(F61)-1)),CostCode,0))) -> 25000 | H61: =G61*E61 -> 62500
B62: Regulatory costs4 | C62: EACH YEAR | D62: each | E62: 2.5 | F62: RPTL | G62: 20000 | H62: =G62*E62 -> 50000
B63: Water sampling and testing5 | C63: EACH YEAR | D63: each | E63: 2.5 | F63: WTR4L | G63: 60000 | H63: =G63*E63 -> 150000
B64: Build treatment plant | D64: LS | F64: =NA() ->  | G64: =IF(ISNA(F64),0,INDEX(IF(UPPER(RIGHT(F64,1))=Low,UnitCostLow, IF(UPPER(RIGHT(F64,1))=High,UnitCostHigh,UnitCostSpecified)),MATCH(UPPER(LEFT(F64,LEN(F64)-1)),CostCode,0))) -> 0 | H64: =G64*E64 -> 0
B65: Build sludge containment facility | D65: LS | F65: =NA() ->  | G65: =IF(ISNA(F65),0,INDEX(IF(UPPER(RIGHT(F65,1))=Low,UnitCostLow, IF(UPPER(RIGHT(F65,1))=High,UnitCostHigh,UnitCostSpecified)),MATCH(UPPER(LEFT(F65,LEN(F65)-1)),CostCode,0))) -> 0 | H65: =G65*E65 -> 0
B66: DECOMMISSION WATER MANAGEMENT STRUCTURES (after year 5)
B67: Decommission water management structures | D67: LS | E67: 0 | F67: DITCL | G67: =IF(ISNA(F67),0,INDEX(IF(UPPER(RIGHT(F67,1))=Low,UnitCostLow, IF(UPPER(RIGHT(F67,1))=High,UnitCostHigh,UnitCostSpecified)),MATCH(UPPER(LEFT(F67,LEN(F67)-1)),CostCode,0))) -> 500000 | H67: =G67*E67 -> 0
G68: Total | H68: =SUM(H27:H67) -> 1450000
B70: 2. Water management will be carried out for 5 years (3 years closure activities and 2 years afterwards). Inspections and oversite of maintenance activites carried out by Consultants.
B72: 3, 4 and 5. Regulatory and Water sampling /testing costs beyond Year 3 are included in Post-Closure

Sheet Water Treatment
A1: 9 | B1: Post Closure Water Treatment - Identified as long term/post-closure in 'Instructions' worksheet
B3: ACTIVITY/MATERIAL | C3: Notes | D3: Units | E3: Quantity | F3: Cost Code | G3: Unit Cost | H3: Cost
B4: ADDITION OF REAGENTS TO WTP
B5: H2O2 | D5: kg | F5: =NA() ->  | G5: =IF(ISNA(F5),0,INDEX(IF(UPPER(RIGHT(F5,1))=Low,UnitCostLow, IF(UPPER(RIGHT(F5,1))=High,UnitCostHigh,UnitCostSpecified)),MATCH(UPPER(LEFT(F5,LEN(F5)-1)),CostCode,0))) -> 0 | H5: =G5*E5 -> 0
B6: lime | D6: kg | F6: =NA() ->  | G6: 0 | H6: 0
B7: ferric sulphate | D7: kg | F7: =NA() ->  | G7: 0 | H7: 0
B8: ferrous sulphate | D8: kg | F8: =NA() ->  | G8: 0 | H8: 0
B9: flocculents | D9: kg | F9: =NA() ->  | G9: 0 | H9: 0
B10: Other | F10: =NA() ->  | G10: 0 | H10: 0
B11: LABOUR AND SUPPLIES
B12: Annual fuel | D12: litres | F12: =NA() ->  | G12: =IF(ISNA(F12),0,INDEX(IF(UPPER(RIGHT(F12,1))=Low,UnitCostLow, IF(UPPER(RIGHT(F12,1))=High,UnitCostHigh,UnitCostSpecified)),MATCH(UPPER(LEFT(F12,LEN(F12)-1)),CostCode,0))) -> 0 | H12: =G12*E12 -> 0
B13: Annual power | D13: kW-h | F13: =NA() ->  | G13: =IF(ISNA(F13),0,INDEX(IF(UPPER(RIGHT(F13,1))=Low,UnitCostLow, IF(UPPER(RIGHT(F13,1))=High,UnitCostHigh,UnitCostSpecified)),MATCH(UPPER(LEFT(F13,LEN(F13)-1)),CostCode,0))) -> 0 | H13: =G13*E13 -> 0
B14: Electrician/mechanic to maintain treatment plant | D14: allow | F14: =NA() ->  | G14: 0 | H14: 0
B15: Equipment maintenance and parts | D15: allow | F15: =NA() ->  | G15: 0 | H15: 0
B16: Misc. supplies, hoses, tools | D16: allow | F16: =NA() ->  | G16: 0 | H16: 0
B17: Communications | D17: allow | F17: =NA() ->  | G17: 0 | H17: 0
B18: Other | F18: =NA() ->  | G18: 0 | H18: 0
B19: WTP WATER SAMPLING AND ANALYSES
B20: Sampling equipment | D20: allow | F20: =NA() ->  | G20: =IF(ISNA(F20),0,INDEX(IF(UPPER(RIGHT(F20,1))=Low,UnitCostLow, IF(UPPER(RIGHT(F20,1))=High,UnitCostHigh,UnitCostSpecified)),MATCH(UPPER(LEFT(F20,LEN(F20)-1)),CostCode,0))) -> 0 | H20: =G20*E20 -> 0
B21: Analyses | D21: allow | F21: =NA() ->  | G21: =IF(ISNA(F21),0,INDEX(IF(UPPER(RIGHT(F21,1))=Low,UnitCostLow, IF(UPPER(RIGHT(F21,1))=High,UnitCostHigh,UnitCostSpecified)),MATCH(UPPER(LEFT(F21,LEN(F21)-1)),CostCode,0))) -> 0 | H21: =G21*E21 -> 0
B22: Shipping to laboratory | D22: allow | F22: =NA() ->  | G22: =IF(ISNA(F22),0,INDEX(IF(UPPER(RIGHT(F22,1))=Low,UnitCostLow, IF(UPPER(RIGHT(F22,1))=High,UnitCostHigh,UnitCostSpecified)),MATCH(UPPER(LEFT(F22,LEN(F22)-1)),CostCode,0))) -> 0 | H22: =G22*E22 -> 0
B23: Reporting | D23: allow | F23: =NA() ->  | G23: =IF(ISNA(F23),0,INDEX(IF(UPPER(RIGHT(F23,1))=Low,UnitCostLow, IF(UPPER(RIGHT(F23,1))=High,UnitCostHigh,UnitCostSpecified)),MATCH(UPPER(LEFT(F23,LEN(F23)-1)),CostCode,0))) -> 0 | H23: =G23*E23 -> 0
B24: Other | F24: =NA() ->  | G24: =IF(ISNA(F24),0,INDEX(IF(UPPER(RIGHT(F24,1))=Low,UnitCostLow, IF(UPPER(RIGHT(F24,1))=High,UnitCostHigh,UnitCostSpecified)),MATCH(UPPER(LEFT(F24,LEN(F24)-1)),CostCode,0))) -> 0 | H24: =G24*E24 -> 0
B25: SITE ACCESS
B26: Road maintenance (incl. snow removal) | D26: allow | F26: =NA() ->  | G26: =IF(ISNA(F26),0,INDEX(IF(UPPER(RIGHT(F26,1))=Low,UnitCostLow, IF(UPPER(RIGHT(F26,1))=High,UnitCostHigh,UnitCostSpecified)),MATCH(UPPER(LEFT(F26,LEN(F26)-1)),CostCode,0))) -> 0 | H26: =G26*E26 -> 0
B27: Winter road tariff | D27: allow | F27: =NA() ->  | G27: =IF(ISNA(F27),0,INDEX(IF(UPPER(RIGHT(F27,1))=Low,UnitCostLow, IF(UPPER(RIGHT(F27,1))=High,UnitCostHigh,UnitCostSpecified)),MATCH(UPPER(LEFT(F27,LEN(F27)-1)),CostCode,0))) -> 0 | H27: =G27*E27 -> 0
B28: Truck rental | D28: allow | F28: =NA() ->  | G28: =IF(ISNA(F28),0,INDEX(IF(UPPER(RIGHT(F28,1))=Low,UnitCostLow, IF(UPPER(RIGHT(F28,1))=High,UnitCostHigh,UnitCostSpecified)),MATCH(UPPER(LEFT(F28,LEN(F28)-1)),CostCode,0))) -> 0 | H28: =G28*E28 -> 0
B29: Air support | D29: allow | F29: =NA() ->  | G29: =IF(ISNA(F29),0,INDEX(IF(UPPER(RIGHT(F29,1))=Low,UnitCostLow, IF(UPPER(RIGHT(F29,1))=High,UnitCostHigh,UnitCostSpecified)),MATCH(UPPER(LEFT(F29,LEN(F29)-1)),CostCode,0))) -> 0 | H29: =G29*E29 -> 0
G31: Annual water treatment costs | H31: =SUM(H5:H30)+0.0001 -> 0.0001
B32: Number of years of water treatment | D32: years
G33: Total | H33: =AnnualTreat1Cost*E32 -> 0
E51: 60
E52: 60 | M52: =SUM(H52:H62) -> 0

Sheet ICM
A1: 1 | B1: Interim Care and Maintenance | C1: 18 MONTHS
B3: ACTIVITY/MATERIAL | C3: Notes | D3: Units | E3: Quantity | F3: Cost Code | G3: Unit Cost | H3: Cost
B4: INTERIM CARE & MAINTENANCE
B5: on-site caretaker / pump technician | D5: manmonths | E5: 6 | F5: MM1S | G5: =IF(ISNA(F5),0,INDEX(IF(UPPER(RIGHT(F5,1))=Low,UnitCostLow, IF(UPPER(RIGHT(F5,1))=High,UnitCostHigh,UnitCostSpecified)),MATCH(UPPER(LEFT(F5,LEN(F5)-1)),CostCode,0))) -> 17550 | H5: =G5*E5 -> 105300
B6: extra personnel | D6: manmonths | H6: =G6*E6 -> 0
B7: -electrician | D7: manmonths | E7: 6 | F7: MM2S | G7: =IF(ISNA(F7),0,INDEX(IF(UPPER(RIGHT(F7,1))=Low,UnitCostLow, IF(UPPER(RIGHT(F7,1))=High,UnitCostHigh,UnitCostSpecified)),MATCH(UPPER(LEFT(F7,LEN(F7)-1)),CostCode,0))) -> 25650 | H7: 153900
B8: -mechanic | D8: manmonths | E8: 6 | F8: MM3S | G8: 20250 | H8: 121500
B9: flights (yellowknife - cambridge bay) | F9: =NA() ->  | G9: 0 | H9: 0
B10: mobile camp rental | D10: year | E10: 1 | F10: camrl | G10: 425000 | H10: 425000
B11: camp operation (<10 persons) - 3 persons | D11: days | E11: 182 | F11: CPOPAL | G11: 2000 | H11: =G11*E11 -> 364000
B12: annual fuel | D12: litre | E12: 35000 | F12: FCGL | G12: 1.05 | H12: 36750
B13: misc. supplies | D13: allow | F13: =NA() ->  | G13: 0 | H13: 0
B14: pick-up truck | D14: month | E14: 24 | F14: EQP1S | G14: 2000 | H14: =G14*E14 -> 48000
B15: small dozer | D15: month | E15: 12 | F15: EQP2L | G15: 8000 | H15: =G15*E15 -> 96000
B16: small excavator | D16: month | E16: 12 | F16: EQP3L | G16: 10000 | H16: 120000
B17: snow machine | D17: month | E17: 0 | F17: EQP4S | G17: 10000 | H17: 0
B18: articulated dump truck | D18: month | E18: 12 | F18: EQP5L | G18: 10000 | H18: 120000
B19: communications | D19: month | F19: =NA() ->  | G19: 0 | H19: 0
B20: SNP/AEMP water sampling & reporting | D20: each | E20: 1 | F20: WSH | G20: =IF(ISNA(F20),0,INDEX(IF(UPPER(RIGHT(F20,1))=Low,UnitCostLow, IF(UPPER(RIGHT(F20,1))=High,UnitCostHigh,UnitCostSpecified)),MATCH(UPPER(LEFT(F20,LEN(F20)-1)),CostCode,0))) -> 10000 | H20: =G20*E20 -> 10000
B21: geotechnical assessment3 | D21: each | E21: 1 | F21: GEOIL | G21: 25000 | H21: 25000
B22: Water Management
B23: Inspect and maintain water management structures | D23: ls | E23: 0 | F23: WTR3L | G23: =IF(ISNA(F23),0,INDEX(IF(UPPER(RIGHT(F23,1))=Low,UnitCostLow, IF(UPPER(RIGHT(F23,1))=High,UnitCostHigh,UnitCostSpecified)),MATCH(UPPER(LEFT(F23,LEN(F23)-1)),CostCode,0))) -> 70000 | H23: =G23*E23 -> 0
B24: Operate / maintain pumping system
B25: technician (camp rental /operations incl under Mob) | D25: month | E25: 0 | F25: WTR1L | G25: =IF(ISNA(F25),0,INDEX(IF(UPPER(RIGHT(F25,1))=Low,UnitCostLow, IF(UPPER(RIGHT(F25,1))=High,UnitCostHigh,UnitCostSpecified)),MATCH(UPPER(LEFT(F25,LEN(F25)-1)),CostCode,0))) -> 34200 | H25: =G25*E25 -> 0
B26: site support, consumables | D26: month | E26: 0 | F26: WTR2L | G26: =IF(ISNA(F26),0,INDEX(IF(UPPER(RIGHT(F26,1))=Low,UnitCostLow, IF(UPPER(RIGHT(F26,1))=High,UnitCostHigh,UnitCostSpecified)),MATCH(UPPER(LEFT(F26,LEN(F26)-1)),CostCode,0))) -> 5800 | H26: =G26*E26 -> 0
B27: interim water treatment | F27: =NA() ->  | G27: =IF(ISNA(F27),0,INDEX(IF(UPPER(RIGHT(F27,1))=Low,UnitCostLow, IF(UPPER(RIGHT(F27,1))=High,UnitCostHigh,UnitCostSpecified)),MATCH(UPPER(LEFT(F27,LEN(F27)-1)),CostCode,0))) -> 0 | H27: =G27*E27 -> 0
B28: equipment mob / demob | C28: (see below) | D28: each | E28: 1 | H28: =G28*E28 -> 0
G29: Annual Interim C&M Cost | H29: =SUM(H5:H28) -> 1625450
B30: Number of years of ICM | D30: years | E30: 1.5 | G30: Total | H30: =(H29*E30) -> 2438175
B32: 3. Geotechnical inspection is to assess the stability of the dams, thermal pads, look for obvious permafrost degredation, assess stability of road embankments.

Sheet PostClosure
A1: 1 | B1: Post-Closure Monitoring & Maintenance:
B3: ACTIVITY/MATERIAL | C3: Notes | D3: Units | E3: Quantity | F3: Cost Code | G3: Unit Cost | H3: Cost
B4: MONITORING & INSPECTIONS
B5: Annual geotechnical inspection | C5: (years 1, 2, 3, 6 and 10 after closure activities) | D5: each | E5: 0.5 | F5: GEOI2L | G5: =IF(ISNA(F5),0,INDEX(IF(UPPER(RIGHT(F5,1))=Low,UnitCostLow, IF(UPPER(RIGHT(F5,1))=High,UnitCostHigh,UnitCostSpecified)),MATCH(UPPER(LEFT(F5,LEN(F5)-1)),CostCode,0))) -> 70000 | H5: =G5*E5 -> 35000
B6: Cover monitoring | C6: (years 1, 3, 5, 7, 10) | D6: each | E6: 0.5 | F6: GEOI2L | G6: =IF(ISNA(F6),0,INDEX(IF(UPPER(RIGHT(F6,1))=Low,UnitCostLow, IF(UPPER(RIGHT(F6,1))=High,UnitCostHigh,UnitCostSpecified)),MATCH(UPPER(LEFT(F6,LEN(F6)-1)),CostCode,0))) -> 70000 | H6: =G6*E6 -> 35000
B7: Survey inspection | D7: each | F7: =NA() ->  | G7: 0 | H7: 0
B8: Regulatory costs* | C8: every year | D8: each | E8: 1 | F8: RPTL | G8: 20000 | H8: =G8*E8 -> 20000
B9: Site water monitoring (AEMP and SNP) | D9: each | F9: =NA() ->  | G9: =IF(ISNA(F9),0,INDEX(IF(UPPER(RIGHT(F9,1))=Low,UnitCostLow, IF(UPPER(RIGHT(F9,1))=High,UnitCostHigh,UnitCostSpecified)),MATCH(UPPER(LEFT(F9,LEN(F9)-1)),CostCode,0))) -> 0 | H9: 0
B10: - Active closure and flooding | D10: each | F10: =NA() ->  | G10: 0 | H10: 0
B11: - Post pit flooding | D11: each | F11: =NA() ->  | G11: 0 | H11: 0
B12: Water sampling and testing | C12: (years 1, 2, 3, 4, 5, 7 and 10) | D12: each | E12: 0.7 | F12: WTR4L | G12: =IF(ISNA(F12),0,INDEX(IF(UPPER(RIGHT(F12,1))=Low,UnitCostLow, IF(UPPER(RIGHT(F12,1))=High,UnitCostHigh,UnitCostSpecified)),MATCH(UPPER(LEFT(F12,LEN(F12)-1)),CostCode,0))) -> 60000 | H12: =G12*E12 -> 42000
B13: Air Quality Monitoring Program (AQMP) | D13: each | F13: =NA() ->  | G13: 0 | H13: 0
B14: Wildlife Effects Monitoring Program (WEMP) | D14: each | F14: =NA() ->  | G14: =IF(ISNA(F14),0,INDEX(IF(UPPER(RIGHT(F14,1))=Low,UnitCostLow, IF(UPPER(RIGHT(F14,1))=High,UnitCostHigh,UnitCostSpecified)),MATCH(UPPER(LEFT(F14,LEN(F14)-1)),CostCode,0))) -> 0 | H14: 0
B15: Vegetation Monitoring | D15: each | F15: =NA() ->  | G15: =IF(ISNA(F15),0,INDEX(IF(UPPER(RIGHT(F15,1))=Low,UnitCostLow, IF(UPPER(RIGHT(F15,1))=High,UnitCostHigh,UnitCostSpecified)),MATCH(UPPER(LEFT(F15,LEN(F15)-1)),CostCode,0))) -> 0 | H15: 0
B16: Other | F16: =NA() ->  | G16: =IF(ISNA(F16),0,INDEX(IF(UPPER(RIGHT(F16,1))=Low,UnitCostLow, IF(UPPER(RIGHT(F16,1))=High,UnitCostHigh,UnitCostSpecified)),MATCH(UPPER(LEFT(F16,LEN(F16)-1)),CostCode,0))) -> 0 | H16: =G16*E16 -> 0
B17: SPILLWAY MAINTENANCE
B18: Repair erosion | D18: m3 | F18: =NA() ->  | G18: 0 | H18: =G18*E18 -> 0
B19: Clear spillway | D19: each | F19: =NA() ->  | G19: 0 | H19: =G19*E19 -> 0
B20: CWTS MAINTENANCE
B21: Maintain flow, restore vegetation | D21: allow | F21: =NA() ->  | G21: =IF(ISNA(F21),0,INDEX(IF(UPPER(RIGHT(F21,1))=Low,UnitCostLow, IF(UPPER(RIGHT(F21,1))=High,UnitCostHigh,UnitCostSpecified)),MATCH(UPPER(LEFT(F21,LEN(F21)-1)),CostCode,0))) -> 0 | H21: =G21*E21 -> 0
B22: POST-CLOSURE WATER TREATMENT
B23: Annual water treatment cost, from "Water Treatment" | H23: =AnnualTreat1Cost -> 0.0001
B25: Subtotal, Annual post-closure costs | H25: =SUM(H5:H24)+0.0001 -> 132000.0002
B26: Discount rate for calculation of net present value of post-closure cost, % | F26: 0
B27: Number of years of post-closure activity | F27: 10 | G27: years
B28: Present Value of payment stream | H28: =PV(DiscountRate,PCYears, PCAnnualTotal)*-1 -> 1320000.002
B30: *Regulatory costs - annual reporting, management plans, progress reports etc.

Sheet Mobilization
A1: 1 | B1: Mobilization/Demobilization:
B3: ACTIVITY/MATERIAL | C3: Notes | D3: Units | E3: Quantity | F3: Cost Code | G3: Unit Cost | H3: Cost
B4: MOBILIZE HEAVY EQUIPMENT
B5: Excavators
B6: Edmonton to Hay River | C6: (3 x 36.1 tonnes) | D6: tonne | E6: =3*36.1 -> 108.3 | F6: MOB1L | G6: =IF(ISNA(F6),0,INDEX(IF(UPPER(RIGHT(F6,1))=Low,UnitCostLow, IF(UPPER(RIGHT(F6,1))=High,UnitCostHigh,UnitCostSpecified)),MATCH(UPPER(LEFT(F6,LEN(F6)-1)),CostCode,0))) -> 443 | H6: =G6*E6 -> 47976.9
B7: Hay River to Roberts Bay | C7: (3 x 36.1 tonnes) | D7: tonne | E7: =+E6 -> 108.3 | F7: MOB1L | G7: =IF(ISNA(F7),0,INDEX(IF(UPPER(RIGHT(F7,1))=Low,UnitCostLow, IF(UPPER(RIGHT(F7,1))=High,UnitCostHigh,UnitCostSpecified)),MATCH(UPPER(LEFT(F7,LEN(F7)-1)),CostCode,0))) -> 443 | H7: =G7*E7 -> 47976.9
B8: Dump trucks
B9: Edmonton to Hay River | C9: (6 x 34.4 tonnes) | D9: tonne | E9: =6*34.4 -> 206.4 | F9: MOB1L | G9: =IF(ISNA(F9),0,INDEX(IF(UPPER(RIGHT(F9,1))=Low,UnitCostLow, IF(UPPER(RIGHT(F9,1))=High,UnitCostHigh,UnitCostSpecified)),MATCH(UPPER(LEFT(F9,LEN(F9)-1)),CostCode,0))) -> 443 | H9: =G9*E9 -> 91435.2
B10: Hay River to Roberts Bay | C10: (6 x 34.4 tonnes) | D10: tonne | E10: =+E9 -> 206.4 | F10: MOB1L | G10: =IF(ISNA(F10),0,INDEX(IF(UPPER(RIGHT(F10,1))=Low,UnitCostLow, IF(UPPER(RIGHT(F10,1))=High,UnitCostHigh,UnitCostSpecified)),MATCH(UPPER(LEFT(F10,LEN(F10)-1)),CostCode,0))) -> 443 | H10: =G10*E10 -> 91435.2
B11: Dozers
B12: Edmonton to Hay River | C12: (3 x 33.5 tonnes) | D12: tonne | E12: =3*33.5 -> 100.5 | F12: MOB1L | G12: =IF(ISNA(F12),0,INDEX(IF(UPPER(RIGHT(F12,1))=Low,UnitCostLow, IF(UPPER(RIGHT(F12,1))=High,UnitCostHigh,UnitCostSpecified)),MATCH(UPPER(LEFT(F12,LEN(F12)-1)),CostCode,0))) -> 443 | H12: =G12*E12 -> 44521.5
B13: Hay River to Roberts Bay | C13: (3 x 33.5 tonnes) | D13: tonne | E13: =+E12 -> 100.5 | F13: MOB1L | G13: =IF(ISNA(F13),0,INDEX(IF(UPPER(RIGHT(F13,1))=Low,UnitCostLow, IF(UPPER(RIGHT(F13,1))=High,UnitCostHigh,UnitCostSpecified)),MATCH(UPPER(LEFT(F13,LEN(F13)-1)),CostCode,0))) -> 443 | H13: =G13*E13 -> 44521.5
B14: Loaders
B15: Edmonton to Hay River | C15: (2 x 30 tonnes) | D15: tonne | E15: =2*30 -> 60 | F15: MOB1L | G15: =IF(ISNA(F15),0,INDEX(IF(UPPER(RIGHT(F15,1))=Low,UnitCostLow, IF(UPPER(RIGHT(F15,1))=High,UnitCostHigh,UnitCostSpecified)),MATCH(UPPER(LEFT(F15,LEN(F15)-1)),CostCode,0))) -> 443 | H15: =G15*E15 -> 26580
B16: Hay River to Roberts Bay | C16: (2 x 30 tonnes) | D16: tonne | E16: =+E15 -> 60 | F16: MOB1L | G16: =IF(ISNA(F16),0,INDEX(IF(UPPER(RIGHT(F16,1))=Low,UnitCostLow, IF(UPPER(RIGHT(F16,1))=High,UnitCostHigh,UnitCostSpecified)),MATCH(UPPER(LEFT(F16,LEN(F16)-1)),CostCode,0))) -> 443 | H16: =G16*E16 -> 26580
B17: Drills
B18: Edmonton to Hay River | C18: (3 x 11 tonnes) | D18: tonne | E18: =3*11 -> 33 | F18: MOB1L | G18: =IF(ISNA(F18),0,INDEX(IF(UPPER(RIGHT(F18,1))=Low,UnitCostLow, IF(UPPER(RIGHT(F18,1))=High,UnitCostHigh,UnitCostSpecified)),MATCH(UPPER(LEFT(F18,LEN(F18)-1)),CostCode,0))) -> 443 | H18: =G18*E18 -> 14619
B19: Hay River to Roberts Bay | C19: (3 x 11 tonnes) | D19: tonne | E19: =+E18 -> 33 | F19: MOB1L | G19: =IF(ISNA(F19),0,INDEX(IF(UPPER(RIGHT(F19,1))=Low,UnitCostLow, IF(UPPER(RIGHT(F19,1))=High,UnitCostHigh,UnitCostSpecified)),MATCH(UPPER(LEFT(F19,LEN(F19)-1)),CostCode,0))) -> 443 | H19: =G19*E19 -> 14619
B20: Light duty vehicles
B21: Edmonton to Hay River | D21: each | E21: 6 | F21: MOB3L | G21: =IF(ISNA(F21),0,INDEX(IF(UPPER(RIGHT(F21,1))=Low,UnitCostLow, IF(UPPER(RIGHT(F21,1))=High,UnitCostHigh,UnitCostSpecified)),MATCH(UPPER(LEFT(F21,LEN(F21)-1)),CostCode,0))) -> 5050 | H21: =G21*E21 -> 30300
B22: Hay River to Roberts Bay | D22: each | E22: =+E21 -> 6 | F22: MOB3L | G22: =IF(ISNA(F22),0,INDEX(IF(UPPER(RIGHT(F22,1))=Low,UnitCostLow, IF(UPPER(RIGHT(F22,1))=High,UnitCostHigh,UnitCostSpecified)),MATCH(UPPER(LEFT(F22,LEN(F22)-1)),CostCode,0))) -> 5050 | H22: =G22*E22 -> 30300
B23: Standard 20' containers
B24: Edmonton to Hay River | D24: each | E24: 12 | F24: MOB2H | G24: =IF(ISNA(F24),0,INDEX(IF(UPPER(RIGHT(F24,1))=Low,UnitCostLow, IF(UPPER(RIGHT(F24,1))=High,UnitCostHigh,UnitCostSpecified)),MATCH(UPPER(LEFT(F24,LEN(F24)-1)),CostCode,0))) -> 6500 | H24: =G24*E24 -> 78000
B25: Hay River to Roberts Bay | D25: each | E25: =+E24 -> 12 | F25: MOB2H | G25: =IF(ISNA(F25),0,INDEX(IF(UPPER(RIGHT(F25,1))=Low,UnitCostLow, IF(UPPER(RIGHT(F25,1))=High,UnitCostHigh,UnitCostSpecified)),MATCH(UPPER(LEFT(F25,LEN(F25)-1)),CostCode,0))) -> 6500 | H25: =G25*E25 -> 78000
B27: MOBILIZE MISC. EQUIPMENT
B28: Pump shipping | D28: each | F28: =NA() ->  | G28: =IF(ISNA(F28),0,INDEX(IF(UPPER(RIGHT(F28,1))=Low,UnitCostLow, IF(UPPER(RIGHT(F28,1))=High,UnitCostHigh,UnitCostSpecified)),MATCH(UPPER(LEFT(F28,LEN(F28)-1)),CostCode,0))) -> 0 | H28: =G28*E28 -> 0
B29: Pipe shipping | D29: m | F29: =NA() ->  | G29: =IF(ISNA(F29),0,INDEX(IF(UPPER(RIGHT(F29,1))=Low,UnitCostLow, IF(UPPER(RIGHT(F29,1))=High,UnitCostHigh,UnitCostSpecified)),MATCH(UPPER(LEFT(F29,LEN(F29)-1)),CostCode,0))) -> 0 | H29: =G29*E29 -> 0
B30: Minor tools and equipment | D30: allow | F30: =NA() ->  | G30: =IF(ISNA(F30),0,INDEX(IF(UPPER(RIGHT(F30,1))=Low,UnitCostLow, IF(UPPER(RIGHT(F30,1))=High,UnitCostHigh,UnitCostSpecified)),MATCH(UPPER(LEFT(F30,LEN(F30)-1)),CostCode,0))) -> 0 | H30: =G30*E30 -> 0
B31: Truck tires | D31: allow | F31: =NA() ->  | G31: =IF(ISNA(F31),0,INDEX(IF(UPPER(RIGHT(F31,1))=Low,UnitCostLow, IF(UPPER(RIGHT(F31,1))=High,UnitCostHigh,UnitCostSpecified)),MATCH(UPPER(LEFT(F31,LEN(F31)-1)),CostCode,0))) -> 0 | H31: =G31*E31 -> 0
B32: Other | F32: =NA() ->  | G32: =IF(ISNA(F32),0,INDEX(IF(UPPER(RIGHT(F32,1))=Low,UnitCostLow, IF(UPPER(RIGHT(F32,1))=High,UnitCostHigh,UnitCostSpecified)),MATCH(UPPER(LEFT(F32,LEN(F32)-1)),CostCode,0))) -> 0 | H32: =G32*E32 -> 0
B33: MOBILIZE CAMP
B34: ICM activities | D34: year | E34: 0 | F34: CPRTL | G34: =IF(ISNA(F34),0,INDEX(IF(UPPER(RIGHT(F34,1))=Low,UnitCostLow, IF(UPPER(RIGHT(F34,1))=High,UnitCostHigh,UnitCostSpecified)),MATCH(UPPER(LEFT(F34,LEN(F34)-1)),CostCode,0))) -> 425000 | H34: =G34*E34 -> 0
B35: Reclamation / Closure activities | D35: year | E35: 2.5 | F35: CPRTL | G35: =IF(ISNA(F35),0,INDEX(IF(UPPER(RIGHT(F35,1))=Low,UnitCostLow, IF(UPPER(RIGHT(F35,1))=High,UnitCostHigh,UnitCostSpecified)),MATCH(UPPER(LEFT(F35,LEN(F35)-1)),CostCode,0))) -> 425000 | H35: =G35*E35 -> 1062500
B36: Long term reclamation activities (eg pump flooding) | D36: allow | F36: =NA() ->  | G36: =IF(ISNA(F36),0,INDEX(IF(UPPER(RIGHT(F36,1))=Low,UnitCostLow, IF(UPPER(RIGHT(F36,1))=High,UnitCostHigh,UnitCostSpecified)),MATCH(UPPER(LEFT(F36,LEN(F36)-1)),CostCode,0))) -> 0 | H36: =G36*E36 -> 0
B37: MOBILIZE WORKERS
B38: flights from Yellowknife to Cambridge Bay in summer months | D38: month | E38: 0 | F38: =NA() ->  | G38: =IF(ISNA(F38),0,INDEX(IF(UPPER(RIGHT(F38,1))=Low,UnitCostLow, IF(UPPER(RIGHT(F38,1))=High,UnitCostHigh,UnitCostSpecified)),MATCH(UPPER(LEFT(F38,LEN(F38)-1)),CostCode,0))) -> 0 | H38: =G38*E38 -> 0
B39: flights from Yellowknife to Cambridge Bay in winter months | D39: month | E39: 0 | F39: =NA() ->  | G39: =IF(ISNA(F39),0,INDEX(IF(UPPER(RIGHT(F39,1))=Low,UnitCostLow, IF(UPPER(RIGHT(F39,1))=High,UnitCostHigh,UnitCostSpecified)),MATCH(UPPER(LEFT(F39,LEN(F39)-1)),CostCode,0))) -> 0 | H39: =G39*E39 -> 0
B40: Long term reclamation activities (eg pump flooding) - transport | D40: each | F40: =NA() ->  | G40: =IF(ISNA(F40),0,INDEX(IF(UPPER(RIGHT(F40,1))=Low,UnitCostLow, IF(UPPER(RIGHT(F40,1))=High,UnitCostHigh,UnitCostSpecified)),MATCH(UPPER(LEFT(F40,LEN(F40)-1)),CostCode,0))) -> 0 | H40: =G40*E40 -> 0
B41: Long term reclamation activities (eg pump flooding) - travel time | D41: each | F41: =NA() ->  | G41: =IF(ISNA(F41),0,INDEX(IF(UPPER(RIGHT(F41,1))=Low,UnitCostLow, IF(UPPER(RIGHT(F41,1))=High,UnitCostHigh,UnitCostSpecified)),MATCH(UPPER(LEFT(F41,LEN(F41)-1)),CostCode,0))) -> 0 | H41: =G41*E41 -> 0
B42: Monitoring Airfare | D42: each | F42: =NA() ->  | G42: =IF(ISNA(F42),0,INDEX(IF(UPPER(RIGHT(F42,1))=Low,UnitCostLow, IF(UPPER(RIGHT(F42,1))=High,UnitCostHigh,UnitCostSpecified)),MATCH(UPPER(LEFT(F42,LEN(F42)-1)),CostCode,0))) -> 0 | H42: =G42*E42 -> 0
B43: WORKER ACCOMODATIONS
B44: Closure Activities - camp operations (winter months , <10 persons, incl food, maintenance, air travel) | D44: day | E44: 512 | F44: CPOPAL | G44: =IF(ISNA(F44),0,INDEX(IF(UPPER(RIGHT(F44,1))=Low,UnitCostLow, IF(UPPER(RIGHT(F44,1))=High,UnitCostHigh,UnitCostSpecified)),MATCH(UPPER(LEFT(F44,LEN(F44)-1)),CostCode,0))) -> 2000 | H44: =G44*E44 -> 1024000
B45: Closure Activities - camp operations (non-winter months , 25 persons, incl food, maintenance, air travel) | D45: person/day | E45: 6601 | F45: CPOPL | G45: =IF(ISNA(F45),0,INDEX(IF(UPPER(RIGHT(F45,1))=Low,UnitCostLow, IF(UPPER(RIGHT(F45,1))=High,UnitCostHigh,UnitCostSpecified)),MATCH(UPPER(LEFT(F45,LEN(F45)-1)),CostCode,0))) -> 500 | H45: =G45*E45 -> 3300500
B46: Long term reclamation activities (eg pump flooding) | D46: manmonths | F46: =NA() ->  | G46: =IF(ISNA(F46),0,INDEX(IF(UPPER(RIGHT(F46,1))=Low,UnitCostLow, IF(UPPER(RIGHT(F46,1))=High,UnitCostHigh,UnitCostSpecified)),MATCH(UPPER(LEFT(F46,LEN(F46)-1)),CostCode,0))) -> 0 | H46: =G46*E46 -> 0
B47: Water Managemnt (2 years after closure) - camp operations (<10 persons, incl food, maintenance, air travel) | C47: (8 months per year) | D47: day | E47: 0 | F47: CPOPAL | G47: =IF(ISNA(F47),0,INDEX(IF(UPPER(RIGHT(F47,1))=Low,UnitCostLow, IF(UPPER(RIGHT(F47,1))=High,UnitCostHigh,UnitCostSpecified)),MATCH(UPPER(LEFT(F47,LEN(F47)-1)),CostCode,0))) -> 2000 | H47: =G47*E47 -> 0
B48: MOBILIZE FUEL
B49: Fuel freight - reclamation activities | D49: litre | E49: 1250000 | F49: FCGl | G49: =IF(ISNA(F49),0,INDEX(IF(UPPER(RIGHT(F49,1))=Low,UnitCostLow, IF(UPPER(RIGHT(F49,1))=High,UnitCostHigh,UnitCostSpecified)),MATCH(UPPER(LEFT(F49,LEN(F49)-1)),CostCode,0))) -> 1.05 | H49: =G49*E49 -> 1312500
B50: Fuel freight - long term reclamation activities | D50: litre | F50: =NA() ->  | G50: =IF(ISNA(F50),0,INDEX(IF(UPPER(RIGHT(F50,1))=Low,UnitCostLow, IF(UPPER(RIGHT(F50,1))=High,UnitCostHigh,UnitCostSpecified)),MATCH(UPPER(LEFT(F50,LEN(F50)-1)),CostCode,0))) -> 0 | H50: =G50*E50 -> 0
B51: Fuel freight accommodations | D51: litre | F51: =NA() ->  | G51: =IF(ISNA(F51),0,INDEX(IF(UPPER(RIGHT(F51,1))=Low,UnitCostLow, IF(UPPER(RIGHT(F51,1))=High,UnitCostHigh,UnitCostSpecified)),MATCH(UPPER(LEFT(F51,LEN(F51)-1)),CostCode,0))) -> 0 | H51: =G51*E51 -> 0
B52: WINTER ROAD
B53: Construction and operation | D53: km | E53: 0 | F53: =NA() ->  | G53: =IF(ISNA(F53),0,INDEX(IF(UPPER(RIGHT(F53,1))=Low,UnitCostLow, IF(UPPER(RIGHT(F53,1))=High,UnitCostHigh,UnitCostSpecified)),MATCH(UPPER(LEFT(F53,LEN(F53)-1)),CostCode,0))) -> 0 | H53: =G53*E53 -> 0
B54: Limited winter use | D54: km | E54: 0 | F54: =NA() ->  | G54: =IF(ISNA(F54),0,INDEX(IF(UPPER(RIGHT(F54,1))=Low,UnitCostLow, IF(UPPER(RIGHT(F54,1))=High,UnitCostHigh,UnitCostSpecified)),MATCH(UPPER(LEFT(F54,LEN(F54)-1)),CostCode,0))) -> 0 | H54: =G54*E54 -> 0
B55: Winter road tariff | D55: km | F55: =NA() ->  | G55: =IF(ISNA(F55),0,INDEX(IF(UPPER(RIGHT(F55,1))=Low,UnitCostLow, IF(UPPER(RIGHT(F55,1))=High,UnitCostHigh,UnitCostSpecified)),MATCH(UPPER(LEFT(F55,LEN(F55)-1)),CostCode,0))) -> 0 | H55: =G55*E55 -> 0
B56: DEMOBILIZE HEAVY EQUIPMENT | E56: 60
B57: Excavators | E57: 60
B58: Edmonton to Hay River | C58: =+C6 -> (3 x 36.1 tonnes) | D58: tonne | E58: =+E6 -> 108.3 | F58: MOB1S | G58: =IF(ISNA(F58),0,INDEX(IF(UPPER(RIGHT(F58,1))=Low,UnitCostLow, IF(UPPER(RIGHT(F58,1))=High,UnitCostHigh,UnitCostSpecified)),MATCH(UPPER(LEFT(F58,LEN(F58)-1)),CostCode,0))) -> 288 | H58: =G58*E58 -> 31190.4
B59: Hay River to Roberts Bay | C59: =+C58 -> (3 x 36.1 tonnes) | D59: tonne | E59: =+E58 -> 108.3 | F59: MOB1S | G59: =IF(ISNA(F59),0,INDEX(IF(UPPER(RIGHT(F59,1))=Low,UnitCostLow, IF(UPPER(RIGHT(F59,1))=High,UnitCostHigh,UnitCostSpecified)),MATCH(UPPER(LEFT(F59,LEN(F59)-1)),CostCode,0))) -> 288 | H59: =G59*E59 -> 31190.4
B60: Dump trucks
B61: Edmonton to Hay River | C61: =+C9 -> (6 x 34.4 tonnes) | D61: tonne | E61: =+E9 -> 206.4 | F61: MOB1S | G61: =IF(ISNA(F61),0,INDEX(IF(UPPER(RIGHT(F61,1))=Low,UnitCostLow, IF(UPPER(RIGHT(F61,1))=High,UnitCostHigh,UnitCostSpecified)),MATCH(UPPER(LEFT(F61,LEN(F61)-1)),CostCode,0))) -> 288 | H61: =G61*E61 -> 59443.2
B62: Hay River to Roberts Bay | C62: =+C61 -> (6 x 34.4 tonnes) | D62: tonne | E62: =+E61 -> 206.4 | F62: MOB1S | G62: =IF(ISNA(F62),0,INDEX(IF(UPPER(RIGHT(F62,1))=Low,UnitCostLow, IF(UPPER(RIGHT(F62,1))=High,UnitCostHigh,UnitCostSpecified)),MATCH(UPPER(LEFT(F62,LEN(F62)-1)),CostCode,0))) -> 288 | H62: =G62*E62 -> 59443.2
B63: Dozers
B64: Edmonton to Hay River | C64: =+C12 -> (3 x 33.5 tonnes) | D64: tonne | E64: =+E12 -> 100.5 | F64: MOB1S | G64: =IF(ISNA(F64),0,INDEX(IF(UPPER(RIGHT(F64,1))=Low,UnitCostLow, IF(UPPER(RIGHT(F64,1))=High,UnitCostHigh,UnitCostSpecified)),MATCH(UPPER(LEFT(F64,LEN(F64)-1)),CostCode,0))) -> 288 | H64: =G64*E64 -> 28944
B65: Hay River to Roberts Bay | C65: =+C64 -> (3 x 33.5 tonnes) | D65: tonne | E65: =+E64 -> 100.5 | F65: MOB1S | G65: =IF(ISNA(F65),0,INDEX(IF(UPPER(RIGHT(F65,1))=Low,UnitCostLow, IF(UPPER(RIGHT(F65,1))=High,UnitCostHigh,UnitCostSpecified)),MATCH(UPPER(LEFT(F65,LEN(F65)-1)),CostCode,0))) -> 288 | H65: =G65*E65 -> 28944
B66: Loaders
B67: Edmonton to Hay River | C67: =+C15 -> (2 x 30 tonnes) | D67: tonne | E67: =+E15 -> 60 | F67: MOB1S | G67: =IF(ISNA(F67),0,INDEX(IF(UPPER(RIGHT(F67,1))=Low,UnitCostLow, IF(UPPER(RIGHT(F67,1))=High,UnitCostHigh,UnitCostSpecified)),MATCH(UPPER(LEFT(F67,LEN(F67)-1)),CostCode,0))) -> 288 | H67: =G67*E67 -> 17280
B68: Hay River to Roberts Bay | C68: =+C67 -> (2 x 30 tonnes) | D68: tonne | E68: =+E67 -> 60 | F68: MOB1S | G68: =IF(ISNA(F68),0,INDEX(IF(UPPER(RIGHT(F68,1))=Low,UnitCostLow, IF(UPPER(RIGHT(F68,1))=High,UnitCostHigh,UnitCostSpecified)),MATCH(UPPER(LEFT(F68,LEN(F68)-1)),CostCode,0))) -> 288 | H68: =G68*E68 -> 17280
B69: Drills
B70: Edmonton to Hay River | C70: =+C18 -> (3 x 11 tonnes) | D70: tonne | E70: =+E18 -> 33 | F70: MOB1S | G70: =IF(ISNA(F70),0,INDEX(IF(UPPER(RIGHT(F70,1))=Low,UnitCostLow, IF(UPPER(RIGHT(F70,1))=High,UnitCostHigh,UnitCostSpecified)),MATCH(UPPER(LEFT(F70,LEN(F70)-1)),CostCode,0))) -> 288 | H70: =G70*E70 -> 9504
B71: Hay River to Roberts Bay | C71: =+C70 -> (3 x 11 tonnes) | D71: tonne | E71: =+E70 -> 33 | F71: MOB1S | G71: =IF(ISNA(F71),0,INDEX(IF(UPPER(RIGHT(F71,1))=Low,UnitCostLow, IF(UPPER(RIGHT(F71,1))=High,UnitCostHigh,UnitCostSpecified)),MATCH(UPPER(LEFT(F71,LEN(F71)-1)),CostCode,0))) -> 288 | H71: =G71*E71 -> 9504
B72: Light duty vehicles
B73: Edmonton to Hay River | D73: each | E73: =+E21 -> 6 | F73: MOB3S | G73: =IF(ISNA(F73),0,INDEX(IF(UPPER(RIGHT(F73,1))=Low,UnitCostLow, IF(UPPER(RIGHT(F73,1))=High,UnitCostHigh,UnitCostSpecified)),MATCH(UPPER(LEFT(F73,LEN(F73)-1)),CostCode,0))) -> 3300 | H73: =G73*E73 -> 19800 | P73: =SUM(M58:M73) -> 0
B74: Hay River to Roberts Bay | D74: each | E74: =+E73 -> 6 | F74: MOB3S | G74: =IF(ISNA(F74),0,INDEX(IF(UPPER(RIGHT(F74,1))=Low,UnitCostLow, IF(UPPER(RIGHT(F74,1))=High,UnitCostHigh,UnitCostSpecified)),MATCH(UPPER(LEFT(F74,LEN(F74)-1)),CostCode,0))) -> 3300 | H74: =G74*E74 -> 19800
B75: Standard 20' containers
B76: Edmonton to Hay River | D76: each | E76: =+E24 -> 12 | F76: MOB2S | G76: =IF(ISNA(F76),0,INDEX(IF(UPPER(RIGHT(F76,1))=Low,UnitCostLow, IF(UPPER(RIGHT(F76,1))=High,UnitCostHigh,UnitCostSpecified)),MATCH(UPPER(LEFT(F76,LEN(F76)-1)),CostCode,0))) -> 4250 | H76: =G76*E76 -> 51000
B77: Hay River to Roberts Bay | D77: each | E77: =+E76 -> 12 | F77: MOB2S | G77: =IF(ISNA(F77),0,INDEX(IF(UPPER(RIGHT(F77,1))=Low,UnitCostLow, IF(UPPER(RIGHT(F77,1))=High,UnitCostHigh,UnitCostSpecified)),MATCH(UPPER(LEFT(F77,LEN(F77)-1)),CostCode,0))) -> 4250 | H77: =G77*E77 -> 51000
B79: DEMOBILIZE CAMP
D80: allow | F80: =NA() ->  | G80: =IF(ISNA(F80),0,INDEX(IF(UPPER(RIGHT(F80,1))=Low,UnitCostLow, IF(UPPER(RIGHT(F80,1))=High,UnitCostHigh,UnitCostSpecified)),MATCH(UPPER(LEFT(F80,LEN(F80)-1)),CostCode,0))) -> 0 | H80: =G80*E80 -> 0
B81: DEMOBILIZE WORKERS
B82: flights from Yellowknife to Cambridge Bay in summer months | D82: month | E82: 0 | F82: =NA() ->  | G82: =IF(ISNA(F82),0,INDEX(IF(UPPER(RIGHT(F82,1))=Low,UnitCostLow, IF(UPPER(RIGHT(F82,1))=High,UnitCostHigh,UnitCostSpecified)),MATCH(UPPER(LEFT(F82,LEN(F82)-1)),CostCode,0))) -> 0 | H82: =G82*E82 -> 0
B83: flights from Yellowknife to Cambridge Bay in winter months | D83: month | E83: 0 | F83: =NA() ->  | G83: =IF(ISNA(F83),0,INDEX(IF(UPPER(RIGHT(F83,1))=Low,UnitCostLow, IF(UPPER(RIGHT(F83,1))=High,UnitCostHigh,UnitCostSpecified)),MATCH(UPPER(LEFT(F83,LEN(F83)-1)),CostCode,0))) -> 0 | H83: =G83*E83 -> 0
B84: WINTER ROAD
B85: Construction and operation | D85: km | E85: 0 | F85: =NA() ->  | G85: =IF(ISNA(F85),0,INDEX(IF(UPPER(RIGHT(F85,1))=Low,UnitCostLow, IF(UPPER(RIGHT(F85,1))=High,UnitCostHigh,UnitCostSpecified)),MATCH(UPPER(LEFT(F85,LEN(F85)-1)),CostCode,0))) -> 0 | H85: =G85*E85 -> 0
B86: Limited winter use | D86: km | E86: 0 | F86: =NA() ->  | G86: =IF(ISNA(F86),0,INDEX(IF(UPPER(RIGHT(F86,1))=Low,UnitCostLow, IF(UPPER(RIGHT(F86,1))=High,UnitCostHigh,UnitCostSpecified)),MATCH(UPPER(LEFT(F86,LEN(F86)-1)),CostCode,0))) -> 0 | H86: =G86*E86 -> 0
B87: Winter road tariff | D87: km | F87: =NA() ->  | G87: =IF(ISNA(F87),0,INDEX(IF(UPPER(RIGHT(F87,1))=Low,UnitCostLow, IF(UPPER(RIGHT(F87,1))=High,UnitCostHigh,UnitCostSpecified)),MATCH(UPPER(LEFT(F87,LEN(F87)-1)),CostCode,0))) -> 0 | H87: =G87*E87 -> 0
G88: Total | H88: =SUM(H5:H87)+0.0001 -> 7800688.4
B89: includes camp operations for ICM

Sheet Unit_Costs
A1: Unit Cost Table (for refining unit costs see "Estimator" worksheet)
D2: Filter by unit
A4: ITEM | B4: Detail | D4: COST CODE | E4: UNITS | F4: LOW $ | G4: HIGH $ | H4: SPECIFIED $ | J4: COMMENTS
A6: Accomodation
D7: ACCM | E7: manday | F7: 100 | G7: 175
A8: Buildings - Decontaminate
B9: Asbestos | D9: BDA | E9: m2 | F9: 25.6 | G9: 51.2 | J9: Low: removal of asbestos siding & flooring; High: removal of insulated pipes, friable asbestos
A10: Buildings - Remove | J10: Unit costs are based on 3m high, single storey building. Scale areas accordingly.
B11: Wood | D11: BRW | E11: m2 | F11: 27.5 | G11: 41
B12: Concrete | D12: BRC | E12: m2 | F12: 40 | G12: 65 | H12: 6 | J12: Specified: puncture concrete foundation slabs
B13: Steel - teardown | D13: BRS1 | E13: m2 | F13: 45 | G13: 65
B14: Steel - for salvage | D14: BRS2 | E14: m2 | F14: 67 | G14: 100
A15: Concrete work
B16: Small pour | D16: CSF | E16: m3 | F16: 426.5 | G16: 639.75 | J16: Low: YK; High=1.5xLow
B17: Large pour | D17: CLF | E17: m3 | F17: 353.5 | G17: 530.25 | H17: 2130 | J17: Specified: concrete crown pillar
A18: Contaminated Soils
B19: ESA Phase 1 | D19: CS1 | E19: each | F19: 7500 | J19: Low: small, "clean" site
B20: ESA Phase 1 | D20: CS2 | E20: each | J20: Low: small, "clean" site
B21: Remediate on site | D21: CSR | E21: m3 | F21: 47 | G21: 146
A22: Dozing
B23: doze rock piles | D23: DR | E23: m3 | F23: 1.05 | G23: 2.4 | J23: Low cost: doze crest off dump
B24: doze overburden/soil piles | D24: DS | E24: m3 | F24: 0.95 | G24: 3.8 | J24: High cost: push up to 300 m
A25: Excavate Rock; Low Spec's and QA/QC
B26: drill/blast/load/short haul | D26: RB1 | E26: m3 | F26: 11.4 | G26: 31.99 | J26: Low:quarry operations for bulk fill
B27: drill/blast/load/long haul | D27: RB2 | E27: m3 | F27: 12.05 | G27: 17.8
B28: RB1 + spread and compact | D28: RB3 | E28: m3 | F28: 12.05 | G28: 17.8
B29: RB2 + spread and compact | D29: RB4 | E29: m3 | F29: 12.5 | G29: 30.75
B30: Specified activity | D30: RBS | E30: m3
A31: Excavate Rock; High Spec's and QA/QC | J31: (e.g. ditch/spillway excavation)
B32: drill/blast/load/short haul | D32: RC1 | E32: m3 | F32: 12.05 | G32: 17.8 | J32: Low:foundation excavation;High:spillway excavation
B33: drill/blast/load/long haul | D33: RC2 | E33: m3 | F33: 12.7 | G33: 18.4
B34: RC1 + spread and compact | D34: RC3 | E34: m3 | F34: 12.7 | G34: 18.4 | J34: e,g, cover construction
B35: RC2 + spread and compact | D35: RC4 | E35: m3 | F35: 13.5 | G35: 19.2 | J35: e,g, cover construction
B36: Specified activity | D36: RCS | E36: m3 | H36: 175 | J36: Specified-drift excavation
A37: Excavate Rip Rap
B38: drill/blast/load/short haul/place | D38: RR1 | E38: m3 | F38: 13.5 | G38: 17.75 | J38: High: quarry & place rip rap in channel
B39: drill/blast/load/long haul/place | D39: RR2 | E39: m3 | F39: 14.2 | G39: 20.65
B40: source is waste dump/short haul | D40: RR3 | E40: m3 | F40: 7 | J40: cost includes sorting
B41: source is waste dump/long haul | D41: RR4 | E41: m3 | F41: 7.6
B42: Specified activity | D42: RRS | E42: m3
A43: Excavate Soil; Low Spec's and QA/QC
B44: clear & grub | D44: SBC | E44: m2 | F44: 3.4 | G44: 5
B45: excavate/load/short haul | D45: SB1 | E45: m3 | F45: 4.3 | G45: 5.9
B46: excavate/load/long haul | D46: SB2 | E46: m3 | F46: 4.6 | G46: 7.3
B47: SB1 + spread and compact | D47: SB3 | E47: m3 | F47: 5.1 | G47: 8.9 | J47: Low: non-engineered; High:engineered
B48: SB2 + spread and compact | D48: SB4 | E48: m3 | F48: 5.5 | G48: 11 | J48: Low: non-engineered; High:engineered
B49: LHD to TIA | D49: SBS | E49: m3 | F49: 3.2 | G49: 6.3 | J49: Low: rehandle waste rock dump by dozing; High:rehandle waste rock by hauling
B50: Tailings | D50: SBT | E50: m3 | F50: 1.35 | G50: 3.7 | H50: 15.5 | J50: High:contour surface - wet or frozen; Specified:haul/place wet infill
A51: Excavate Soil, High Spec's and QA/QC
B52: excavate/load/short haul | D52: SC1 | E52: m3 | F52: 6.8 | G52: 9.3
B53: excavate/load/long haul | D53: SC2 | E53: m3 | F53: 7.1 | G53: 11.75
B54: SC1 + spread and compact | D54: SC3 | E54: m3 | F54: =+Summary!J14 -> 0 | G54: 14.2 | J54: Low: non-engineered; High:engineered
B55: SC2 + spread and compact | D55: SC4 | E55: m3 | F55: 9.3 | G55: 23.2 | J55: Low: non-engineered; High:engineered (e.g. complex covers, low volume dam construction)
B56: Specified activity | D56: SCS | E56: m3 | H56: 18.8 | J56: Backfill adit with waste rock
A57: Fence
D58: FNC | E58: m | F58: 13.55 | G58: 203
A59: Fuel and Electricity
B60: Fuel cost - gas | D60: FCG | E60: litre | F60: 1.05 | G60: 1.4
B61: Fuel cost - diesel | D61: FCD | E61: litre | F61: 0.99 | G61: 1.39
B62: Fuel mobilization | D62: FCM | E62: litre | F62: 0.22 | G62: 0.42 | J62: High: winter road usage
B63: Electricity | D63: FCE | E63: kW-h | F63: 0.17 | G63: 0.19 | H63: 0.49 | J63: Low and High:Yellowknife; Specified:diesel generator
A64: Geo-Synthetics
B65: geotextile | D65: GST | E65: m2 | F65: 3.44 | G65: 18 | J65: Supply and install
B66: geogrid | D66: GSG | E66: m2 | F66: 5.75
B67: liner, HDPE | D67: GSHDPE | E67: m2 | F67: 7.95 | J67: Supply and install; large quantity
B68: liner, ES3 | D68: GSES3 | E68: m2 | F68: 20.2 | J68: FOB Yellowknife
B69: geosynthetic installation | D69: GSI | E69: m2 | F69: 3.16 | G69: 14 | J69: Low:geotextile; High:ES3 or HDPE
B70: bentonite soil ammendment | D70: GSBA | E70: tonne | F70: 308.3 | G70: 348.5 | J70: FOB Edmonton, add shipping & mixing
A71: Grouting (/m3 of rock grouted)
D72: grout | E72: m3 | F72: 236.55 | G72: 286.75 | J72: High: cement, FOB Yellowknife
A73: Labour & Equipment Rates
B74: Site manager | D74: sman | E74: $/hr | F74: 125 | G74: 152
B75: Supervisor | D75: super | E75: $/hr | F75: 52 | G75: 91.84
B76: Registered engineer | D76: eng | E76: $/hr | F76: 95 | G76: 220
B77: Environmental coordinator | D77: envco | E77: $/hr | F77: 74.16 | G77: 130
B78: Evironmental technologist | D78: envtech | E78: $/hr | F78: 36 | G78: 65
B79: Electrician | D79: elec | E79: $/hr | F79: 74 | G79: 95
B80: Journeyman - various | D80: journey | E80: $/hr | F80: 44 | G80: 71.79
B81: Labour - skilled | D81: lab-s | E81: $/hr | F81: 41 | G81: 49.6
B82: Labour - unskilled | D82: lab-us | E82: $/hr | F82: 31 | G82: 43.98
B83: Equipment operator | D83: oper | E83: $/hr | F83: 41 | G83: 65
B84: Heavy duty mechanic | D84: mech | E84: $/hr | F84: 49 | G84: 72.85
B85: Water treatment plant operator | D85: oper-wt | E85: $/hr | F85: 41 | G85: 59.86
B86: Security / first aid | D86: safety | E86: $/hr | F86: 36 | G86: 66.97
B87: Administative staff | D87: admin | E87: $/hr | F87: 38 | G87: 57.89
B89: Equipment rates include operator and fuel
B90: Loader - 4 cu.yd (3.06m3) | D90: load-s | E90: $/hr | F90: 175
B91: Loader - 7 cu.yd (5.35m3) | D91: load-l | E91: $/hr | F91: 315
B92: Excavator - 26.76-30.84 tonnes | D92: exc-s | E92: $/hr | F92: 190
B93: Excavator - 68.95+tonnes | D93: exc-l | E93: $/hr | F93: 420
B94: Grader | D94: grad | E94: $/hr | F94: 190
B95: Dump truck off hwy 30-50 tonnes | D95: truck-s | E95: $/hr | F95: 225
B96: Dump truck off hwy 55-75 tonnes | D96: truck-l | E96: $/hr | F96: 300
B97: dozer, small | D97: dozers | E97: $/hr | F97: 205 | G97: 260
B98: dozer, large | D98: dozerl | E98: $/hr | F98: 490 | G98: 565
B99: smooth drum compactor | D99: comp | E99: $/hr | F99: 155
B100: scooptram, 6 yd3 bucket | D100: scoop | E100: $/hr | F100: 170
B101: flat bed truck with hiab | D101: hiab | E101: $/hr | F101: 155
B102: fuel truck | D102: ftruck | E102: $/hr | F102: 150
B103: water truck | D103: wtruck | E103: $/hr | F103: 58 | G103: 150
A105: Other
B106: remove onshore mooring point | D106: OSHR | E106: ls | F106: 1500
B107: remove offshore mooring | D107: FSHR | E107: ls | F107: 3000
B108: construct concrete cap | D108: CCAP | E108: ls | F108: 40000
B109: remove culvert | D109: RCUL | E109: ls | F109: 2625
B110: dismantle 5ML tank, cut up | D110: CUT5 | E110: ls | F110: 15000
B111: dismantle 1ML tank, cut up | D111: CUT1 | E111: ls | F111: 15000
B112: dismantle fire water storage tank | D112: FRTK | E112: ls | F112: 2500
B113: decommission crusher, milling & processing plants | D113: PLNT1 | E113: ls | F113: 150000
B114: disassemble processing plant equipment | D114: PLNT2 | E114: ls | F114: 200000
B115: prepare processing equipment for shipping off-site | D115: PLNT3 | E115: ls | F115: 50000
B116: remove pumps. Pipes, cables culverts | D116: RPPC | E116: ls | F116: 2000
B117: treat contained water and discharge | D117: TRT | E117: ls | F117: 6500
B118: remove bridge | D118: RBRG | E118: ls | F118: 50000
B119: remove arch culvert | D119: RARC | E119: ls | F119: 100000
B120: remove infrastructure / debris from Doris Mountain (helicopter) | D120: DEB1 | E120: m3 | F120: 2500
B122: decommission above ground tanks / fuel transfer facilities- piping, controls | D122: C102 | E122: ea | F122: 550 | K122: C104
B123: decommission electrical hookups / mechanical / heating | D123: C105 | E123: ea | F123: 640 | K123: C105
B124: decommisson electrical | D124: C106 | E124: ea | F124: 750 | K124: c106
B125: remove communication equipment | D125: C107 | E125: ea | F125: 350 | K125: c107c
B126: disconnect containers / trailers and prep for shipping | D126: C108 | E126: ea | F126: 1325 | K126: c108
B127: decommission (elec) airstrip | D127: C109 | E127: ea | F127: 1500 | K127: c109
B128: remove lighting fixtures / airstrip | D128: C110 | E128: ea | F128: 100 | K128: c110
B129: drain tanks into portable fuel storage containers | D129: C203 | E129: ea | F129: 10000 | K129: C203
B130: drain tanks into portable fuel storage containers | D130: C203A | E130: ea | F130: 1500 | K130: c203a
B131: wash tanks | D131: C204 | E131: ea | F131: 1420 | K131: c204
B132: drain / wash empty fuel drums | D132: C205 | E132: ea | F132: 60 | K132: c205
B133: Flush and remove sewage plumbing, collect sewage sludge/waste water in 55 gallon drums | D133: C206 | E133: ea | F133: 657.86 | K133: c206
B134: operate oil / water separator | D134: C208 | E134: m3 | F134: 30 | K134: c208
B135: Drain chemicals and prepare for shipping | D135: C208A | E135: m3 | F135: 100
B136: collect ashes / place in containers | D136: C207 | E136: m3 | F136: 13.13 | K136: c207
B137: clean liner | D137: C210 | E137: m2 | F137: 0.39 | K137: c210
B138: crush empty fuel drums | D138: C301 | E138: ea | F138: 35 | K138: c301
B139: remove / cut liner into pieces | D139: C302 | E139: m2 | F139: 0.56 | K139: c302
B140: demolish structures | D140: C305 | E140: m3 | F140: 19 | K140: c305
B141: dismantle small a/g storage tank | D141: C307 | E141: m3 | F141: 19 | K141: c307
B142: dismantle by welding | D142: C308 | E142: ea | F142: 1500 | K142: c308
B143: collect debris | D143: C310 | E143: m2 | F143: 0.18 | K143: c310
B144: collect debris | D144: C310A | E144: m3 | F144: 13.13 | K144: c310a
B145: dismantle radio towers | D145: C311 | E145: ea | F145: 15500 | K145: c311
B146: prep tower sections for shipping off-site | D146: C312 | E146: ea | F146: 1500 | K146: c312
B147: dismantle stacks | D147: C313 | E147: ea | F147: 20000 | K147: c313
B148: remove cables / posts | D148: C314 | E148: ea | F148: 150 | K148: c314
B149: remove tank insulation | D149: C315 | E149: m3 | F149: 720 | K149: c315
B150: remove ducts / pipes, cables | D150: C316 | E150: m | F150: 113 | K150: c316
B151: prepare / load material for transport to landfill | D151: C401 | E151: m3 | F151: 13.13 | K151: c401
B152: haul material to roberts bay | D152: C404 | E152: m3 | F152: 6.34 | K152: c404
B153: haul material to roberts bay | D153: C404A | E153: hr | F153: 155 | K153: c404a
B154: load contaminated soils into megabags | D154: C412 | E154: m3 | F154: 100.25 | K154: c412
B155: haul debris to landfill | D155: C414 | E155: m3 | F155: 6.34 | K155: c414
B156: haul metal / materials to landfill | D156: C415 | E156: m3 | F156: 6.34 | K156: c415
B157: move metal / materials to landfill | D157: C415A | E157: m3 | F157: 50 | K157: c415a
B158: haul debris to landfill | D158: C416 | E158: m3 | F158: 6.34 | K158: c416
B159: haul debris to landfill | D159: C417 | E159: m3 | F159: 6.34 | K159: c417
B160: fill in low- lying areas (source within 0.5 km) | D160: C502 | E160: m3 | K160: c502
B161: construct portal plug | D161: C503 | E161: m3 | F161: 24.53 | K161: c503
B162: remove and stockpile liner protection cover | D162: C504 | E162: m3 | F162: use RECLAIM rate SC3 | K162: c504
B163: level containment berm | D163: C505 | E163: m2 | F163: 1.58 | K163: c505
B164: reslope 3H : 1V | D164: C506 | E164: m3 | F164: use RECLAIM rate DR $2.40 / m3 | K164: c506
B165: install erosion protection, coconut matting | D165: C508 | E165: m2 | F165: 8 | K165: c508
B167: regrade area for positive drainage | D167: C518 | E167: m2 | F167: 0.12 | K167: c518
B168: construct a concrete cap for vent raise | D168: C603 | E168: ea | F168: 40000 | K168: c603
B169: manmonth (caretaker) | D169: mm1 | E169: ea | F169: 17550 | H169: =+F169 -> 17550
B170: manmonth (electrician) | D170: mm2 | E170: ea | F170: 25650 | H170: =+F170 -> 25650
B171: manmonth (mechanic | D171: mm3 | E171: ea | F171: 20250 | H171: =+F171 -> 20250
B172: camp operations (>25 persons, incl food, camp maintenance and air travel) | D172: cpop | E172: day | F172: 500
B173: camp operations (<10 persons, incl food, camp maintenance and air travel) | D173: CPOPA | E173: day | F173: 2000
B174: camp retal | D174: camr | E174: year | F174: 425000
B175: flights (Yellowknife - Cambridge Bay) | D175: FLT | E175: month | F175: 5100
B176: flights from Yellowknife to Cambridge Bay (return) in summer months; 50 persons | D176: FLT1 | E176: month | F176: 340000
B177: flights from Yellowknife to Cambridge Bay (return) in winter months; 10 persons | D177: FLT2 | E177: month | F177: 68000
B178: mobile camp rental | D178: cprt | E178: yr | F178: 425000
B179: geotechnical assessment | D179: GEOI | E179: yr | F179: 25000
B180: pickup rental | D180: eqp1 | E180: ea | F180: 2000 | H180: =+F180 -> 2000
B181: dozer rental | D181: eqp2 | E181: ea | F181: 8000
B182: excavator rental | D182: eqp3 | E182: ea | F182: 10000
B183: snow removal rental | D183: eqp4 | E183: ea | F183: 10000 | H183: =+F183 -> 10000
B184: articulated dump rental | D184: eqp5 | E184: ea | F184: 10000
B185: mob / demob for ICM heavy equip | E185: ls | F185: 750000
B186: Remove thermosyphon radiators and superstructure | D186: THR | E186: ea | F186: 1000
B187: Crown Road for +'ve Drainage | D187: CRWN | E187: km | F187: 1190
B188: per tonne from Hay River to Cambridge Bay | D188: MOB1 | E188: tonne | F188: 443 | H188: 288 | J188: barging south is lower rate (from NTCL published rates)
B189: 20' container - Hay River to Cambridge Bay | D189: MOB2 | E189: ea | F189: 13400 | G189: 6500 | H189: 4250 | J189: barging south is lower rate (from NTCL published rates)
B190: Heavy duty pick up - - Hay River to Cambridge bay | D190: MOB3 | E190: ea | F190: 5050 | H190: 3300 | J190: barging south is lower rate (from NTCL published rates)
B191: Flush sewage pipeline | D191: SEW | E191: ea | F191: 770
B192: water managment (technician) | D192: WTR1 | E192: month | F192: 34200 | H192: =+F192 -> 34200
B193: water manageemnt (support) | D193: WTR2 | E193: month | F193: 5800 | H193: =+F193 -> 5800
B194: Inspect a nd Maintain water management structures | D194: WTR3 | E194: ls | F194: 70000
B195: site inspection post closure (two day by helecopter) | D195: GEOI2 | E195: ls | F195: 70000
B196: decommission water management structures | D196: DITC | E196: ls | F196: 500000
B197: water sampling / report post closure (two day by helecopter) | D197: WTR4 | E197: ls | F197: 60000
B198: annual regulatory reporting | D198: RPT | E198: ls | F198: 20000
A203: Mobilize Heavy Equipment
B204: Road access | D204: MHER | E204: kmtonne | F204: 3.4 | G204: 10.25
B205: Air access | D205: MHEA | E205: kmtonne | F205: 12 | J205: cargo rate>500lb
A206: Mobilize Camp
B207: Road access | D207: MCR | E207: each | F207: 50000 | J207: refurbish existing camp
A208: Mobilize Workers
B209: flight | D209: MW | E209: each | F209: 4500 | G209: 9100 | J209: Low:e.g. 8 passenger; High: Dash 7
A210: Oil Removal
... 65 more rows

Sheet Estimator
B1: Unit Cost Estimator | D1: 1 | E1: Equipment Productivity Figures and Graphs have been reproduced from Caterpillar Performance Handbook - Edition 42
B2: EXCAVATION | G2: HAUL AND DUMPING | L2: SPREADING/DOZING
B3: Productivity | G3: Productivity | L3: Productivity
B4: Machine | C4: Cat 336EL | G4: Machine | H4: Cat 770 | L4: Machine | M4: Cat D8
B5: bucket capacity | D5: 3.16 | E5: m3 | G5: truck capacity | I5: 25.1 | J5: m3 | L5: Estimate production using example curves provided or | N5: 600 | O5: m3/hr
B6: fill factor | D6: 0.75 | E6: % | G6: fill factor | I6: 0.8 | J6: % | L6: equivalent from other supplier
B7: cycle time | D7: 45 | E7: seconds | L7: Correction factors (see table provided)
B8: operator skill | D8: 0.8 | E8: % | G8: load time | I8: 6 | J8: min. | L8: operator skill | N8: 0.75
B9: machine availability | D9: 0.83 | E9: % | G9: haul distance | I9: 1.5 | J9: km | L9: material type, see table | N9: 0.8
B10: altitude adjustment | D10: 1 | E10: % | G10: average velocity | I10: 20 | J10: km/hr | L10: slot dozing | N10: 1
B11: Hourly productivity | D11: =D5*D6*(60*60/D7)*D8*D9*D10 -> 125.8944 | E11: m3/hr | G11: haul time + return time | I11: =+I9/I10*60*2 -> 9 | J11: min. | L11: side by side dozing | N11: 1
G12: wait time | I12: 0.5 | J12: min. | L12: visibility | N12: 1
G13: dump time | I13: 1 | J13: min. | L13: job efficiency | N13: 0.83
G14: cycle time | I14: =I8+SUM(I11:I13) -> 16.5 | J14: min. | L14: altitude adjustment | N14: 1
G15: machine availability | I15: 0.83 | J15: % | L15: slope adjustment | N15: 1
G16: altitude adjustment | I16: 1 | J16: % | L16: Hourly productivity | N16: =+N5*N8*N9*N10*N11*N12*N13*N14*N15 -> 298.8 | O16: m3/hr
I17: =I14*I15*I16 -> 13.695 | J17: ave. min/cycle
G18: Hourly productivity | I18: =I5*I6*60/I17 -> 87.97371303 | J18: m3/hr
B19: Operating Costs | G19: Operating Costs | L19: Operating Costs
B20: - Contractor | G20: - Contractor | L20: - Contractor
B21: Contractor hourly rate | D21: 180 | E21: $/hr | G21: Contractor hourly rate | I21: 225 | J21: $/hr | L21: Hourly rate - contractor supplied | N21: 260 | O21: $/hr
B22: Excavation cost - contractor rate | D22: =D21/D11 -> 1.429769712 | E22: $/m3 | G22: Haul and Dump - contractor rate | I22: =I21/I18 -> 2.557582171 | J22: $/m3 | L22: Dozing - contractor rate | N22: =N21/N16 -> 0.8701472557 | O22: $/m3
B24: - Owner | G24: - Owner | L24: - Owner
B25: ownership, daily | E25: $/day | G25: ownership, daily | J25: $/day | L25: ownership, daily | O25: $/day
B26: maintenance | E26: $/hr | G26: maintenance | J26: $/hr | L26: maintenance | O26: $/hr
B27: fuel | E27: $/hr | G27: fuel | J27: $/hr | L27: fuel | O27: $/hr
B28: consumables (cutters, tires) | E28: $/hr | G28: consumables (cutters, tires) | J28: $/hr | L28: consumables (cutters, tires) | O28: $/hr
B29: operator | E29: $/hr | G29: operator | J29: $/hr | L29: operator | O29: $/hr
B30: Owner hourly rate | D30: =D25/10+SUM(D26:D29) -> 0 | E30: $/hr | G30: Owner hourly rate | I30: =I25/10+SUM(I26:I29) -> 0 | J30: $/hr | L30: Owner hourly rate | N30: =N25/10+SUM(N26:N29) -> 0
B31: Excavation cost - owner rate | D31: =D30/D11 -> 0 | E31: $/m3 | G31: Haul/Dumping Cost - owner rate | I31: =I30/I18 -> 0 | J31: $/m3 | L31: Spreading/Dozing Cost - owner rate | N31: =N30/N16 -> 0 | O31: $/hr
B32: Excavation cost - select contractor or owner rate (D22 or D31) | E32: $/m3 | G32: Haul/Dumping Cost - select contractor or owner rate (I22 or I31 | J32: $/m3 | L32: Spreading/Dozing Cost - select contractor or owner rate (N22 or N31) | O32: $/m3
B36: Excavator | G36: Trucking | L36: Dozing
C37: Cat 320 | D37: Cat 325B | E37: Cat 375 | H37: Cat 771 D | I37: Cat 777D | J37: Cat 789C
B38: heaped bucket capacity, m3 | C38: 1.5 | D38: 2.2 | E38: 5.4 | G38: Truck capacity - heaped, m3 | H38: 27.5 | I38: 60.5 | J38: 137
D39: Typical Cycle Times (seconds)
B40: easy digging, shallow digging, small swing angle | C40: 16 | D40: 18 | E40: 20
B41: med. to hard digging, rocky soil, swing angle to 90 deg. | C41: 23 | D41: 23 | E41: 25
B42: tough digging, sandstone, caliche, at max. machine depth, swing angle > 120 deg. | C42: 27 | D42: 29 | E42: 35
B44: Material | C44: Fill Factor (% of heaped bucket capacity
B45: Moist loam or sandy clay | D45: 100 - 110
B46: sand and gravel (not till) | D46: 95 - 110
B47: hard tough clay | D47: 80 - 90
B48: rock - will blasted | D48: 60 - 75
B49: rock - poorly blasted | D49: 40 -60
B51: Operator Skill | C51: poor | D51: average | E51: good
B52: Correction factor | C52: 0.6 | D52: 0.75 | E52: 1
B54: Machine availability | C54: poor | D54: average | E54: good
B55: Correction factor | C55: 0.9 | D55: 0.95 | E55: 1

Sheet Tools
A1: The functions in this worksheet serve as a back up in the event that the menu item "Add-Ins" is not shown in Excel menu bar
C4: Save file before clearing all data
L6: These functions duplicate components within worksheet
C9: Shows both active worksheet as well as table of Unit Costs in a separate window
C12: Prints all worksheets having non-zero sums
